Body Name,Body,Service Label,Service Code,CIPFA Detailed Expenditure Type,CIPFA Detailed Expenditure Code,Date,Transaction Number,Net Amount,Supplier Name
Nottinghamshire County Council,1111/1001,Children and Young People,CYP,Premises Related,BAA,05/11/2021,10-10729,278.25,ARC Property Services Partnership L
Nottinghamshire County Council,1111/1001,Children and Young People,CYP,Premises Related,BAA,05/11/2021,10-10732,6418.7,ARC Property Services Partnership L
Nottinghamshire County Council,1111/1001,Children and Young People,CYP,Premises Related,BAA,17/11/2021,10-13420,75.66,ARC Property Services Partnership L
Nottinghamshire County Council,1111/1001,Children and Young People,CYP,Premises Related,BAA,17/11/2021,10-13426,3515.26,ARC Property Services Partnership L
Nottinghamshire County Council,1111/1001,Children and Young People,CYP,Premises Related,BAA,19/11/2021,10-13708,11581.26,ARC Property Services Partnership L
Nottinghamshire County Council,1111/1001,Children and Young People,CYP,Premises Related,BDA,01/11/2021,10-10001,"1,085.00",High Peak Borough Council
Nottinghamshire County Council,1111/1001,Children and Young People,CYP,Premises Related,BDA,01/11/2021,10-10002,886.00,Derbyshire Dales District Council
Nottinghamshire County Council,1111/1001,Children and Young People,CYP,Premises Related,BDA,01/11/2021,10-10003,920,Portland College
Nottinghamshire County Council,1111/1001,Children and Young People,CYP,Premises Related,BDA,01/11/2021,10-10004,"1,500.00",Portland College
Nottinghamshire County Council,1111/1001,Children and Young People,CYP,Premises Related,BDA,12/11/2021,10-10006,15000,Severn Trent Water Ltd (Rental Acco
Nottinghamshire County Council,1111/1001,Children and Young People,CYP,Premises Related,BDA,23/11/2021,10-10008,"2,000.00",Royal Society for the Prot. of Bird
Nottinghamshire County Council,1111/1001,Children and Young People,CYP,Transport Related,CAA,04/11/2021,10-10666,450.23,Via East Midlands Ltd
Nottinghamshire County Council,1111/1001,Children and Young People,CYP,Transport Related,CAA,05/11/2021,10-10711,22.25,Via East Midlands Ltd
Nottinghamshire County Council,1111/1001,Children and Young People,CYP,Transport Related,CAA,16/11/2021,10-13241,350.11,Via East Midlands Ltd
Nottinghamshire County Council,1111/1001,Children and Young People,CYP,Transport Related,CAA,29/11/2021,10-17708,"1,003.00",Via East Midlands Ltd
Nottinghamshire County Council,1111/1001,Children and Young People,CYP,Transport Related,CAA,30/11/2021,10-17747,365.95,Via East Midlands Ltd
Nottinghamshire County Council,1111/1001,Children and Young People,CYP,Transport Related,CCA,02/11/2021,10-10391,1100,Taxicover Uk Ltd
Nottinghamshire County Council,1111/1001,Children and Young People,CYP,Transport Related,CCA,02/11/2021,10-10392,"1,364.00",Taxicover Uk Ltd
Nottinghamshire County Council,1111/1001,Children and Young People,CYP,Transport Related,CCA,02/11/2021,10-10393,1166,Taxicover Uk Ltd
Nottinghamshire County Council,1111/1001,Children and Young People,CYP,Transport Related,CCA,02/11/2021,10-10394,1078,Central Cars Nottm Ltd
Nottinghamshire County Council,1111/1001,Children and Young People,CYP,Transport Related,CCA,02/11/2021,10-10395,1466.52,Alpha Cars
Nottinghamshire County Council,1111/1001,Children and Young People,CYP,Transport Related,CCA,02/11/2021,10-10396,700,Alpha Cars
Nottinghamshire County Council,1111/1001,Children and Young People,CYP,Transport Related,CCA,02/11/2021,10-10397,"1,045.00",Alpha Cars
Nottinghamshire County Council,1111/1001,Children and Young People,CYP,Transport Related,CCA,02/11/2021,10-10401,"1,745.48",Bridges Transport Ltd
Nottinghamshire County Council,1111/1001,Children and Young People,CYP,Transport Related,CCA,02/11/2021,10-10402,2205,Bridges Transport Ltd
Nottinghamshire County Council,1111/1001,Children and Young People,CYP,Transport Related,CCA,02/11/2021,10-10403,"1,331.00",Bridges Transport Ltd
Nottinghamshire County Council,1111/1001,Children and Young People,CYP,Transport Related,CCA,02/11/2021,10-10404,"1,354.32",Bridges Transport Ltd
Nottinghamshire County Council,1111/1001,Children and Young People,CYP,Transport Related,CCA,02/11/2021,10-10405,"1,311.20",Bridges Transport Ltd
Nottinghamshire County Council,1111/1001,Children and Young People,CYP,Transport Related,CCA,02/11/2021,10-10406,1397,Bridges Transport Ltd
Nottinghamshire County Council,1111/1001,Children and Young People,CYP,Transport Related,CCA,02/11/2021,10-10407,"1,550.34",Horizon Travel
Nottinghamshire County Council,1111/1001,Children and Young People,CYP,Transport Related,CCA,02/11/2021,10-10408,1977.58,Vallances Coaches
Nottinghamshire County Council,1111/1001,Children and Young People,CYP,Transport Related,CCA,02/11/2021,10-10409,"1,977.58",Vallances Coaches
Nottinghamshire County Council,1111/1001,Children and Young People,CYP,Transport Related,CCA,02/11/2021,10-10410,2156,Vallances Coaches
Nottinghamshire County Council,1111/1001,Children and Young People,CYP,Transport Related,CCA,02/11/2021,10-10411,2365,Vallances Coaches
Nottinghamshire County Council,1111/1001,Children and Young People,CYP,Transport Related,CCA,02/11/2021,10-10412,2750,Vallances Coaches
Nottinghamshire County Council,1111/1001,Children and Young People,CYP,Transport Related,CCA,02/11/2021,10-10413,"1,606.33",Midfield Travel
Nottinghamshire County Council,1111/1001,Children and Young People,CYP,Transport Related,CCA,02/11/2021,10-10414,"1,529.00",Skills Motor Coaches Ltd
Nottinghamshire County Council,1111/1001,Children and Young People,CYP,Transport Related,CCA,02/11/2021,10-10415,"1,735.00",Skills Motor Coaches Ltd
Nottinghamshire County Council,1111/1001,Children and Young People,CYP,Transport Related,CCA,02/11/2021,10-10416,1438,Skills Motor Coaches Ltd
Nottinghamshire County Council,1111/1001,Children and Young People,CYP,Transport Related,CCA,02/11/2021,10-10421,"1,576.40",Nottingham Minibuses & Coaches
Nottinghamshire County Council,1111/1001,Children and Young People,CYP,Transport Related,CCA,02/11/2021,10-10422,"1,639.00",Kettlewell Retford Ltd
Nottinghamshire County Council,1111/1001,Children and Young People,CYP,Transport Related,CCA,02/11/2021,10-10423,1045,Kettlewell Retford Ltd
Nottinghamshire County Council,1111/1001,Children and Young People,CYP,Transport Related,CCA,02/11/2021,10-10424,1309,Kettlewell Retford Ltd
Nottinghamshire County Council,1111/1001,Children and Young People,CYP,Transport Related,CCA,02/11/2021,10-10425,1309,Kettlewell Retford Ltd
Nottinghamshire County Council,1111/1001,Children and Young People,CYP,Transport Related,CCA,02/11/2021,10-10426,"2,035.00",Kettlewell Retford Ltd
Nottinghamshire County Council,1111/1001,Children and Young People,CYP,Transport Related,CCA,02/11/2021,10-10427,"1,804.00",Kettlewell Retford Ltd
Nottinghamshire County Council,1111/1001,Children and Young People,CYP,Transport Related,CCA,02/11/2021,10-10428,1804,Kettlewell Retford Ltd
Nottinghamshire County Council,1111/1001,Children and Young People,CYP,Transport Related,CCA,02/11/2021,10-10431,"1,955.80",L A Travel
Nottinghamshire County Council,1111/1001,Children and Young People,CYP,Transport Related,CCA,02/11/2021,10-10433,"1,504.10",Nottingham Coaches Ltd
Nottinghamshire County Council,1111/1001,Children and Young People,CYP,Transport Related,CCA,02/11/2021,10-10434,1518,Nottingham Coaches Ltd
Nottinghamshire County Council,1111/1001,Children and Young People,CYP,Transport Related,CCA,02/11/2021,10-10435,"1,968.32",Nottingham Coaches Ltd
Nottinghamshire County Council,1111/1001,Children and Young People,CYP,Transport Related,CCA,02/11/2021,10-10436,1334.53,Nottingham Coaches Ltd
Nottinghamshire County Council,1111/1001,Children and Young People,CYP,Transport Related,CCA,02/11/2021,10-10437,1162.7,Nottingham Coaches Ltd
Nottinghamshire County Council,1111/1001,Children and Young People,CYP,Transport Related,CCA,02/11/2021,10-10438,"2,009.85",Nottingham Coaches Ltd
Nottinghamshire County Council,1111/1001,Children and Young People,CYP,Transport Related,CCA,02/11/2021,10-10439,1045,Reliable Cars Ltd
Nottinghamshire County Council,1111/1001,Children and Young People,CYP,Transport Related,CCA,02/11/2021,10-10440,"2,734.73",Millennium Travel (Mansfield) Ltd
Nottinghamshire County Council,1111/1001,Children and Young People,CYP,Transport Related,CCA,02/11/2021,10-10442,3329.48,Millennium Travel (Mansfield) Ltd
Nottinghamshire County Council,1111/1001,Children and Young People,CYP,Transport Related,CCA,02/11/2021,10-10443,"3,134.78",Millennium Travel (Mansfield) Ltd
Nottinghamshire County Council,1111/1001,Children and Young People,CYP,Transport Related,CCA,02/11/2021,10-10444,4807,Millennium Travel (Mansfield) Ltd
Nottinghamshire County Council,1111/1001,Children and Young People,CYP,Transport Related,CCA,02/11/2021,10-10445,1749,Unity Coaches Ltd
Nottinghamshire County Council,1111/1001,Children and Young People,CYP,Transport Related,CCA,02/11/2021,10-10446,2125.86,Arrow Specialised Transport Ltd
Nottinghamshire County Council,1111/1001,Children and Young People,CYP,Transport Related,CCA,02/11/2021,10-10447,"2,007.40",Arrow Specialised Transport Ltd
Nottinghamshire County Council,1111/1001,Children and Young People,CYP,Transport Related,CCA,02/11/2021,10-10448,1360,Arrow Specialised Transport Ltd
Nottinghamshire County Council,1111/1001,Children and Young People,CYP,Transport Related,CCA,02/11/2021,10-10449,"1,277.10",Arrow Specialised Transport Ltd
Nottinghamshire County Council,1111/1001,Children and Young People,CYP,Transport Related,CCA,02/11/2021,10-10450,1316.59,Arrow Specialised Transport Ltd
Nottinghamshire County Council,1111/1001,Children and Young People,CYP,Transport Related,CCA,02/11/2021,10-10451,2339.81,Arrow Specialised Transport Ltd
Nottinghamshire County Council,1111/1001,Children and Young People,CYP,Transport Related,CCA,02/11/2021,10-10452,"1,383.80",Arrow Specialised Transport Ltd
Nottinghamshire County Council,1111/1001,Children and Young People,CYP,Transport Related,CCA,02/11/2021,10-10453,1570.8,Arrow Specialised Transport Ltd
Nottinghamshire County Council,1111/1001,Children and Young People,CYP,Transport Related,CCA,02/11/2021,10-10454,1524.6,Arrow Specialised Transport Ltd
Nottinghamshire County Council,1111/1001,Children and Young People,CYP,Transport Related,CCA,02/11/2021,10-10455,1229.8,Arrow Specialised Transport Ltd
Nottinghamshire County Council,1111/1001,Children and Young People,CYP,Transport Related,CCA,02/11/2021,10-10456,1883.42,Arrow Specialised Transport Ltd
Nottinghamshire County Council,1111/1001,Children and Young People,CYP,Transport Related,CCA,02/11/2021,10-10457,1658.8,Arrow Specialised Transport Ltd
Nottinghamshire County Council,1111/1001,Children and Young People,CYP,Transport Related,CCA,02/11/2021,10-10458,1267.2,Arrow Specialised Transport Ltd
Nottinghamshire County Council,1111/1001,Children and Young People,CYP,Transport Related,CCA,02/11/2021,10-10459,1328.8,Arrow Specialised Transport Ltd
Nottinghamshire County Council,1111/1001,Children and Young People,CYP,Transport Related,CCA,02/11/2021,10-10460,1742.07,Arrow Specialised Transport Ltd
Nottinghamshire County Council,1111/1001,Children and Young People,CYP,Transport Related,CCA,02/11/2021,10-10461,1296.13,Arrow Specialised Transport Ltd
Nottinghamshire County Council,1111/1001,Children and Young People,CYP,Transport Related,CCA,02/11/2021,10-10462,1383.8,Arrow Specialised Transport Ltd
Nottinghamshire County Council,1111/1001,Children and Young People,CYP,Transport Related,CCA,02/11/2021,10-10463,1907.62,Arrow Specialised Transport Ltd
Nottinghamshire County Council,1111/1001,Children and Young People,CYP,Transport Related,CCA,02/11/2021,10-10464,1412.4,Arrow Specialised Transport Ltd
Nottinghamshire County Council,1111/1001,Children and Young People,CYP,Transport Related,CCA,02/11/2021,10-10465,1657.48,Arrow Specialised Transport Ltd
Nottinghamshire County Council,1111/1001,Children and Young People,CYP,Transport Related,CCA,02/11/2021,10-10466,1618.98,Arrow Specialised Transport Ltd
Nottinghamshire County Council,1111/1001,Children and Young People,CYP,Transport Related,CCA,02/11/2021,10-10467,1459.7,Arrow Specialised Transport Ltd
Nottinghamshire County Council,1111/1001,Children and Young People,CYP,Transport Related,CCA,02/11/2021,10-10468,1853.28,Arrow Specialised Transport Ltd
Nottinghamshire County Council,1111/1001,Children and Young People,CYP,Transport Related,CCA,02/11/2021,10-10469,977.24,Arrow Specialised Transport Ltd
Nottinghamshire County Council,1111/1001,Children and Young People,CYP,Transport Related,CCA,02/11/2021,10-10470,1037.52,Arrow Specialised Transport Ltd
Nottinghamshire County Council,1111/1001,Children and Young People,CYP,Transport Related,CCA,02/11/2021,10-10471,1411.08,Arrow Specialised Transport Ltd
Nottinghamshire County Council,1111/1001,Children and Young People,CYP,Transport Related,CCA,02/11/2021,10-10472,1450.68,Arrow Specialised Transport Ltd
Nottinghamshire County Council,1111/1001,Children and Young People,CYP,Transport Related,CCA,02/11/2021,10-10473,1477.3,Arrow Specialised Transport Ltd
Nottinghamshire County Council,1111/1001,Children and Young People,CYP,Transport Related,CCA,02/11/2021,10-10474,1418.34,Arrow Specialised Transport Ltd
Nottinghamshire County Council,1111/1001,Children and Young People,CYP,Transport Related,CCA,02/11/2021,10-10475,1225.4,Arrow Specialised Transport Ltd
Nottinghamshire County Council,1111/1001,Children and Young People,CYP,Transport Related,CCA,02/11/2021,10-10476,996.6,Arrow Specialised Transport Ltd
Nottinghamshire County Council,1111/1001,Children and Young People,CYP,Transport Related,CCA,02/11/2021,10-10477,1714.24,Arrow Specialised Transport Ltd
Nottinghamshire County Council,1111/1001,Children and Young People,CYP,Transport Related,CCA,02/11/2021,10-10478,1641.2,Arrow Specialised Transport Ltd
Nottinghamshire County Council,1111/1001,Children and Young People,CYP,Transport Related,CCA,02/11/2021,10-10479,1276,Arrow Specialised Transport Ltd
Nottinghamshire County Council,1111/1001,Children and Young People,CYP,Transport Related,CCA,02/11/2021,10-10480,2312.2,Arrow Specialised Transport Ltd
Nottinghamshire County Council,1111/1001,Children and Young People,CYP,Transport Related,CCA,02/11/2021,10-10481,1190.42,Arrow Specialised Transport Ltd
Nottinghamshire County Council,1111/1001,Children and Young People,CYP,Transport Related,CCA,02/11/2021,10-10482,1873.96,Arrow Specialised Transport Ltd
Nottinghamshire County Council,1111/1001,Children and Young People,CYP,Transport Related,CCA,02/11/2021,10-10483,2262.92,Arrow Specialised Transport Ltd
Nottinghamshire County Council,1111/1001,Children and Young People,CYP,Transport Related,CCA,02/11/2021,10-10484,1536.26,Arrow Specialised Transport Ltd
Nottinghamshire County Council,1111/1001,Children and Young People,CYP,Transport Related,CCA,02/11/2021,10-10485,2462.9,Arrow Specialised Transport Ltd
Nottinghamshire County Council,1111/1001,Children and Young People,CYP,Transport Related,CCA,02/11/2021,10-10486,1109.5,Arrow Specialised Transport Ltd
Nottinghamshire County Council,1111/1001,Children and Young People,CYP,Transport Related,CCA,02/11/2021,10-10487,1951,Arrow Specialised Transport Ltd
Nottinghamshire County Council,1111/1001,Children and Young People,CYP,Transport Related,CCA,02/11/2021,10-10488,1345,Arrow Specialised Transport Ltd
Nottinghamshire County Council,1111/1001,Children and Young People,CYP,Transport Related,CCA,02/11/2021,10-10489,2019.6,Arrow Specialised Transport Ltd
Nottinghamshire County Council,1111/1001,Children and Young People,CYP,Transport Related,CCA,02/11/2021,10-10490,1843.6,Arrow Specialised Transport Ltd
Nottinghamshire County Council,1111/1001,Children and Young People,CYP,Transport Related,CCA,02/11/2021,10-10491,1900.8,Arrow Specialised Transport Ltd
Nottinghamshire County Council,1111/1001,Children and Young People,CYP,Transport Related,CCA,02/11/2021,10-10492,1250.7,Arrow Specialised Transport Ltd
Nottinghamshire County Council,1111/1001,Children and Young People,CYP,Transport Related,CCA,02/11/2021,10-10493,3239.5,Arrow Specialised Transport Ltd
Nottinghamshire County Council,1111/1001,Children and Young People,CYP,Transport Related,CCA,02/11/2021,10-10494,1991.25,Arrow Specialised Transport Ltd
Nottinghamshire County Council,1111/1001,Children and Young People,CYP,Transport Related,CCA,02/11/2021,10-10498,1527.9,Travel Wright Ltd
Nottinghamshire County Council,1111/1001,Children and Young People,CYP,Transport Related,CCA,02/11/2021,10-10499,760,Travel Wright Ltd
Nottinghamshire County Council,1111/1001,Children and Young People,CYP,Transport Related,CCA,02/11/2021,10-10501,1912.9,Travel Wright Ltd
Nottinghamshire County Council,1111/1001,Children and Young People,CYP,Transport Related,CCA,02/11/2021,10-10502,3693.8,Travel Wright Ltd
Nottinghamshire County Council,1111/1001,Children and Young People,CYP,Transport Related,CCA,02/11/2021,10-10503,1647.8,Travel Wright Ltd
Nottinghamshire County Council,1111/1001,Children and Young People,CYP,Transport Related,CCA,03/11/2021,10-10516,1650,Sharpes Of Nottingham
Nottinghamshire County Council,1111/1001,Children and Young People,CYP,Transport Related,CCA,03/11/2021,10-10517,1200,All Wayz Travel
Nottinghamshire County Council,1111/1001,Children and Young People,CYP,Transport Related,CCA,03/11/2021,10-10518,2585,Johnson Bros Tours Ltd
Nottinghamshire County Council,1111/1001,Children and Young People,CYP,Transport Related,CCA,03/11/2021,10-10519,"2,145.00",Johnson Bros Tours Ltd
Nottinghamshire County Council,1111/1001,Children and Young People,CYP,Transport Related,CCA,03/11/2021,10-10521,2500,Johnson Bros Tours Ltd
Nottinghamshire County Council,1111/1001,Children and Young People,CYP,Transport Related,CCA,03/11/2021,10-10522,1760.88,Martins Travel
Nottinghamshire County Council,1111/1001,Children and Young People,CYP,Transport Related,CCA,03/11/2021,10-10523,"2,420.00",Ace Of Mansfield Ltd
Nottinghamshire County Council,1111/1001,Children and Young People,CYP,Transport Related,CCA,03/11/2021,10-10524,"1,844.70",Arrow Specialised Transport Ltd
Nottinghamshire County Council,1111/1001,Children and Young People,CYP,Transport Related,CCA,03/11/2021,10-10525,2343,Arrow Specialised Transport Ltd
Nottinghamshire County Council,1111/1001,Children and Young People,CYP,Transport Related,CCA,03/11/2021,10-10526,2404.6,Arrow Specialised Transport Ltd
Nottinghamshire County Council,1111/1001,Children and Young People,CYP,Transport Related,CCA,03/11/2021,10-10527,"1,449.80",Arrow Specialised Transport Ltd
Nottinghamshire County Council,1111/1001,Children and Young People,CYP,Transport Related,CCA,03/11/2021,10-10528,"1,570.80",Arrow Specialised Transport Ltd
Nottinghamshire County Council,1111/1001,Children and Young People,CYP,Transport Related,CCA,03/11/2021,10-10529,1411.3,Arrow Specialised Transport Ltd
Nottinghamshire County Council,1111/1001,Children and Young People,CYP,Transport Related,CCA,03/11/2021,10-10530,1351.68,Arrow Specialised Transport Ltd
Nottinghamshire County Council,1111/1001,Children and Young People,CYP,Transport Related,CCA,03/11/2021,10-10531,1694,Arrow Specialised Transport Ltd
Nottinghamshire County Council,1111/1001,Children and Young People,CYP,Transport Related,CCA,03/11/2021,10-10532,"1,525.37",Arrow Specialised Transport Ltd
Nottinghamshire County Council,1111/1001,Children and Young People,CYP,Transport Related,CCA,03/11/2021,10-10533,"1,485.00",Arrow Specialised Transport Ltd
Nottinghamshire County Council,1111/1001,Children and Young People,CYP,Transport Related,CCA,03/11/2021,10-10534,"1,538.24",Arrow Specialised Transport Ltd
Nottinghamshire County Council,1111/1001,Children and Young People,CYP,Transport Related,CCA,03/11/2021,10-10535,1045,Fozcabs Newark Taxis
Nottinghamshire County Council,1111/1001,Children and Young People,CYP,Transport Related,CCA,03/11/2021,10-10536,"1,280.00",Fozcabs Newark Taxis
Nottinghamshire County Council,1111/1001,Children and Young People,CYP,Transport Related,CCA,03/11/2021,10-10537,1100,Fozcabs Newark Taxis
Nottinghamshire County Council,1111/1001,Children and Young People,CYP,Transport Related,CCA,03/11/2021,10-10538,"1,120.00",Fozcabs Newark Taxis
Nottinghamshire County Council,1111/1001,Children and Young People,CYP,Transport Related,CCA,03/11/2021,10-10539,"1,875.00",Fozcabs Newark Taxis
Nottinghamshire County Council,1111/1001,Children and Young People,CYP,Transport Related,CCA,03/11/2021,10-10542,"1,100.00",Abacus Cars
Nottinghamshire County Council,1111/1001,Children and Young People,CYP,Transport Related,CCA,03/11/2021,10-10543,2080,Abacus Cars
Nottinghamshire County Council,1111/1001,Children and Young People,CYP,Transport Related,CCA,03/11/2021,10-10544,"1,360.00",Abacus Cars
Nottinghamshire County Council,1111/1001,Children and Young People,CYP,Transport Related,CCA,03/11/2021,10-10545,1430,Abacus Cars
Nottinghamshire County Council,1111/1001,Children and Young People,CYP,Transport Related,CCA,03/11/2021,10-10546,550,Abacus Cars
Nottinghamshire County Council,1111/1001,Children and Young People,CYP,Transport Related,CCA,03/11/2021,10-10547,"1,080.00",Abacus Cars
Nottinghamshire County Council,1111/1001,Children and Young People,CYP,Transport Related,CCA,03/11/2021,10-10548,920,Abacus Cars
Nottinghamshire County Council,1111/1001,Children and Young People,CYP,Transport Related,CCA,03/11/2021,10-10549,880.00,Abacus Cars
Nottinghamshire County Council,1111/1001,Children and Young People,CYP,Transport Related,CCA,03/11/2021,10-10552,1925,JB Tours Watnall Ltd
Nottinghamshire County Council,1111/1001,Children and Young People,CYP,Transport Related,CCA,03/11/2021,10-10553,"1,892.00",JB Tours Watnall Ltd
Nottinghamshire County Council,1111/1001,Children and Young People,CYP,Transport Related,CCA,03/11/2021,10-10558,2033.56,Marshalls Of Sutton On Trent Ltd
Nottinghamshire County Council,1111/1001,Children and Young People,CYP,Transport Related,CCA,03/11/2021,10-10561,1912.9,Travel Wright Ltd
Nottinghamshire County Council,1111/1001,Children and Young People,CYP,Transport Related,CCA,03/11/2021,10-10562,1925.9,Travel Wright Ltd
Nottinghamshire County Council,1111/1001,Children and Young People,CYP,Transport Related,CCA,03/11/2021,10-10564,1926.65,K Matthews Travel
Nottinghamshire County Council,1111/1001,Children and Young People,CYP,Transport Related,CCA,03/11/2021,10-10565,1813.35,K Matthews Travel
Nottinghamshire County Council,1111/1001,Children and Young People,CYP,Transport Related,CCA,03/11/2021,10-10566,"1,520.00",Sean's Taxi Services
Nottinghamshire County Council,1111/1001,Children and Young People,CYP,Transport Related,CCA,03/11/2021,10-10567,992,A Travel
Nottinghamshire County Council,1111/1001,Children and Young People,CYP,Transport Related,CCA,03/11/2021,10-10568,2871.68,Millennium Travel (Mansfield) Ltd
Nottinghamshire County Council,1111/1001,Children and Young People,CYP,Transport Related,CCA,03/11/2021,10-10569,2080,Home James Cars
Nottinghamshire County Council,1111/1001,Children and Young People,CYP,Transport Related,CCA,03/11/2021,10-10570,860.2,A Place To Call Our Own Ltd
Nottinghamshire County Council,1111/1001,Children and Young People,CYP,Transport Related,CCA,04/11/2021,10-10033,10928.94,Hope House School Ltd
Nottinghamshire County Council,1111/1001,Children and Young People,CYP,Transport Related,CCA,04/11/2021,10-10593,2211.44,All Wayz Travel
Nottinghamshire County Council,1111/1001,Children and Young People,CYP,Transport Related,CCA,04/11/2021,10-10594,"1,268.96",All Wayz Travel
Nottinghamshire County Council,1111/1001,Children and Young People,CYP,Transport Related,CCA,04/11/2021,10-10595,"1,320.00",All Wayz Travel
Nottinghamshire County Council,1111/1001,Children and Young People,CYP,Transport Related,CCA,04/11/2021,10-10596,"1,980.00",Glenn Ryder Coaches
Nottinghamshire County Council,1111/1001,Children and Young People,CYP,Transport Related,CCA,04/11/2021,10-10597,"1,980.00",Glenn Ryder Coaches
Nottinghamshire County Council,1111/1001,Children and Young People,CYP,Transport Related,CCA,04/11/2021,10-10598,680.13,200 Cars Ltd
Nottinghamshire County Council,1111/1001,Children and Young People,CYP,Transport Related,CCA,04/11/2021,10-10599,704.00,200 Cars Ltd
Nottinghamshire County Council,1111/1001,Children and Young People,CYP,Transport Related,CCA,04/11/2021,10-10601,"1,400.40",Arrow Specialised Transport Ltd
Nottinghamshire County Council,1111/1001,Children and Young People,CYP,Transport Related,CCA,04/11/2021,10-10602,1348.8,Arrow Specialised Transport Ltd
Nottinghamshire County Council,1111/1001,Children and Young People,CYP,Transport Related,CCA,04/11/2021,10-10605,868,Galaxy Cabs Ltd
Nottinghamshire County Council,1111/1001,Children and Young People,CYP,Transport Related,CCA,04/11/2021,10-10606,1860,Galaxy Cabs Ltd
Nottinghamshire County Council,1111/1001,Children and Young People,CYP,Transport Related,CCA,04/11/2021,10-10607,1309,Galaxy Cabs Ltd
Nottinghamshire County Council,1111/1001,Children and Young People,CYP,Transport Related,CCA,04/11/2021,10-10608,"1,300.00",Ng11 Cars
Nottinghamshire County Council,1111/1001,Children and Young People,CYP,Transport Related,CCA,04/11/2021,10-10609,660.00,Ng11 Cars
Nottinghamshire County Council,1111/1001,Children and Young People,CYP,Transport Related,CCA,04/11/2021,10-10610,550.00,Ng11 Cars
Nottinghamshire County Council,1111/1001,Children and Young People,CYP,Transport Related,CCA,04/11/2021,10-10611,726.00,Ng11 Cars
Nottinghamshire County Council,1111/1001,Children and Young People,CYP,Transport Related,CCA,04/11/2021,10-10613,"1,065.02",Midfield Travel
Nottinghamshire County Council,1111/1001,Children and Young People,CYP,Transport Related,CCA,04/11/2021,10-10615,"2,080.00",Abacus Cars
Nottinghamshire County Council,1111/1001,Children and Young People,CYP,Transport Related,CCA,04/11/2021,10-10616,"2,250.00",Abacus Cars
Nottinghamshire County Council,1111/1001,Children and Young People,CYP,Transport Related,CCA,04/11/2021,10-10618,"4,820.00",AOT Coaches Nottingham LLP
Nottinghamshire County Council,1111/1001,Children and Young People,CYP,Transport Related,CCA,04/11/2021,10-10619,"1,606.00",AOT Coaches Nottingham LLP
Nottinghamshire County Council,1111/1001,Children and Young People,CYP,Transport Related,CCA,04/11/2021,10-10620,"1,584.00",AOT Coaches Nottingham LLP
Nottinghamshire County Council,1111/1001,Children and Young People,CYP,Transport Related,CCA,04/11/2021,10-10621,"1,401.60",Bryans Taxis
Nottinghamshire County Council,1111/1001,Children and Young People,CYP,Transport Related,CCA,04/11/2021,10-10622,"1,350.00",K & R Cars
Nottinghamshire County Council,1111/1001,Children and Young People,CYP,Transport Related,CCA,04/11/2021,10-10623,792.00,Meden Travel
Nottinghamshire County Council,1111/1001,Children and Young People,CYP,Transport Related,CCA,04/11/2021,10-10625,"1,297.00",Silverdale Tours Nottm Ltd
Nottinghamshire County Council,1111/1001,Children and Young People,CYP,Transport Related,CCA,04/11/2021,10-10626,"1,412.00",Silverdale Tours Nottm Ltd
Nottinghamshire County Council,1111/1001,Children and Young People,CYP,Transport Related,CCA,04/11/2021,10-10627,"1,588.00",Silverdale Tours Nottm Ltd
Nottinghamshire County Council,1111/1001,Children and Young People,CYP,Transport Related,CCA,04/11/2021,10-10628,"1,650.00",Silverdale Tours Nottm Ltd
Nottinghamshire County Council,1111/1001,Children and Young People,CYP,Transport Related,CCA,04/11/2021,10-10629,"1,837.00",Silverdale Tours Nottm Ltd
Nottinghamshire County Council,1111/1001,Children and Young People,CYP,Transport Related,CCA,04/11/2021,10-10630,"2,800.40",Silverdale Tours Nottm Ltd
Nottinghamshire County Council,1111/1001,Children and Young People,CYP,Transport Related,CCA,04/11/2021,10-10631,"2,277.00",Silverdale Tours Nottm Ltd
Nottinghamshire County Council,1111/1001,Children and Young People,CYP,Transport Related,CCA,04/11/2021,10-10633,679.36,P & P Taxis Ltd
Nottinghamshire County Council,1111/1001,Children and Young People,CYP,Transport Related,CCA,04/11/2021,10-10634,"1,397.00",K Matthews Travel
Nottinghamshire County Council,1111/1001,Children and Young People,CYP,Transport Related,CCA,04/11/2021,10-10636,"1,309.00",Paul S Winson Coaches
Nottinghamshire County Council,1111/1001,Children and Young People,CYP,Transport Related,CCA,04/11/2021,10-10637,"13,223.00",C W Moxon Ltd
Nottinghamshire County Council,1111/1001,Children and Young People,CYP,Transport Related,CCA,04/11/2021,10-10640,"6,796.50",C W Moxon Ltd
Nottinghamshire County Council,1111/1001,Children and Young People,CYP,Transport Related,CCA,04/11/2021,10-10642,"2,725.50",Rio Cabs
Nottinghamshire County Council,1111/1001,Children and Young People,CYP,Transport Related,CCA,04/11/2021,10-10643,"1,419.00",Rio Cabs
Nottinghamshire County Council,1111/1001,Children and Young People,CYP,Transport Related,CCA,04/11/2021,10-10644,"1,422.40",Rio Cabs
Nottinghamshire County Council,1111/1001,Children and Young People,CYP,Transport Related,CCA,04/11/2021,10-10645,"1,582.40",Rio Cabs
Nottinghamshire County Council,1111/1001,Children and Young People,CYP,Transport Related,CCA,04/11/2021,10-10646,"1,754.50",Ace Cars & Minibuses Ltd
Nottinghamshire County Council,1111/1001,Children and Young People,CYP,Transport Related,CCA,04/11/2021,10-10647,"1,245.00",Ace Cars & Minibuses Ltd
Nottinghamshire County Council,1111/1001,Children and Young People,CYP,Transport Related,CCA,04/11/2021,10-10648,"1,295.00",Ace Cars & Minibuses Ltd
Nottinghamshire County Council,1111/1001,Children and Young People,CYP,Transport Related,CCA,04/11/2021,10-10649,"1,644.50",Ace Cars & Minibuses Ltd
Nottinghamshire County Council,1111/1001,Children and Young People,CYP,Transport Related,CCA,04/11/2021,10-10650,"1,255.50",Ace Cars & Minibuses Ltd
Nottinghamshire County Council,1111/1001,Children and Young People,CYP,Transport Related,CCA,04/11/2021,10-10651,"1,864.50",Ace Cars & Minibuses Ltd
Nottinghamshire County Council,1111/1001,Children and Young People,CYP,Transport Related,CCA,04/11/2021,10-10652,"1,644.50",Ace Cars & Minibuses Ltd
Nottinghamshire County Council,1111/1001,Children and Young People,CYP,Transport Related,CCA,04/11/2021,10-10653,"5,102.03",Nottingham Coaches Ltd
Nottinghamshire County Council,1111/1001,Children and Young People,CYP,Transport Related,CCA,04/11/2021,10-10655,"1,650.00",Hammonds Coaches Ltd
Nottinghamshire County Council,1111/1001,Children and Young People,CYP,Transport Related,CCA,04/11/2021,10-10656,990.50,Hammonds Coaches Ltd
Nottinghamshire County Council,1111/1001,Children and Young People,CYP,Transport Related,CCA,04/11/2021,10-10657,"1,229.00",Hammonds Coaches Ltd
Nottinghamshire County Council,1111/1001,Children and Young People,CYP,Transport Related,CCA,04/11/2021,10-10658,"1,792.00",Hammonds Coaches Ltd
Nottinghamshire County Council,1111/1001,Children and Young People,CYP,Transport Related,CCA,04/11/2021,10-10659,"1,911.88",Hammonds Coaches Ltd
Nottinghamshire County Council,1111/1001,Children and Young People,CYP,Transport Related,CCA,04/11/2021,10-10661,"1,654.40",APC Travel
Nottinghamshire County Council,1111/1001,Children and Young People,CYP,Transport Related,CCA,04/11/2021,10-10662,"1,744.00",Vectare Ltd
Nottinghamshire County Council,1111/1001,Children and Young People,CYP,Transport Related,CCA,04/11/2021,10-10663,"1,034.00",Carriage Solutions Ltd
Nottinghamshire County Council,1111/1001,Children and Young People,CYP,Transport Related,CCA,04/11/2021,10-10665,"1,698.00",D n K Travel
Nottinghamshire County Council,1111/1001,Children and Young People,CYP,Transport Related,CCA,08/11/2021,10-11265,"1,870.80",6 Five 2s
Nottinghamshire County Council,1111/1001,Children and Young People,CYP,Transport Related,CCA,08/11/2021,10-11266,"1,568.00",6 Five 2s
Nottinghamshire County Council,1111/1001,Children and Young People,CYP,Transport Related,CCA,08/11/2021,10-11267,"1,170.00",6 Five 2s
Nottinghamshire County Council,1111/1001,Children and Young People,CYP,Transport Related,CCA,08/11/2021,10-11270,550.00,6 Five 2s
Nottinghamshire County Council,1111/1001,Children and Young People,CYP,Transport Related,CCA,08/11/2021,10-11271,"1,822.59",6 Five 2s
Nottinghamshire County Council,1111/1001,Children and Young People,CYP,Transport Related,CCA,08/11/2021,10-11272,567.00,Ace Of Mansfield Ltd
Nottinghamshire County Council,1111/1001,Children and Young People,CYP,Transport Related,CCA,08/11/2021,10-11273,"2,234.00",Gem Mini Travel Ltd
Nottinghamshire County Council,1111/1001,Children and Young People,CYP,Transport Related,CCA,08/11/2021,10-11274,"2,890.00",Gem Mini Travel Ltd
Nottinghamshire County Council,1111/1001,Children and Young People,CYP,Transport Related,CCA,08/11/2021,10-11275,"2,593.00",Gem Mini Travel Ltd
Nottinghamshire County Council,1111/1001,Children and Young People,CYP,Transport Related,CCA,08/11/2021,10-11276,"2,345.00",Gem Mini Travel Ltd
Nottinghamshire County Council,1111/1001,Children and Young People,CYP,Transport Related,CCA,08/11/2021,10-11277,"2,758.90",Gem Mini Travel Ltd
Nottinghamshire County Council,1111/1001,Children and Young People,CYP,Transport Related,CCA,08/11/2021,10-11278,"2,728.00",Gem Mini Travel Ltd
Nottinghamshire County Council,1111/1001,Children and Young People,CYP,Transport Related,CCA,08/11/2021,10-11283,"1,740.00",Rushcliffe Travel Ltd
Nottinghamshire County Council,1111/1001,Children and Young People,CYP,Transport Related,CCA,08/11/2021,10-11284,"1,644.50",Rushcliffe Travel Ltd
Nottinghamshire County Council,1111/1001,Children and Young People,CYP,Transport Related,CCA,08/11/2021,10-11285,"2,744.50",Rushcliffe Travel Ltd
Nottinghamshire County Council,1111/1001,Children and Young People,CYP,Transport Related,CCA,08/11/2021,10-11286,"3,192.00",Rushcliffe Travel Ltd
Nottinghamshire County Council,1111/1001,Children and Young People,CYP,Transport Related,CCA,08/11/2021,10-11287,"3,036.00",Rushcliffe Travel Ltd
Nottinghamshire County Council,1111/1001,Children and Young People,CYP,Transport Related,CCA,08/11/2021,10-11288,"2,396.00",Rushcliffe Travel Ltd
Nottinghamshire County Council,1111/1001,Children and Young People,CYP,Transport Related,CCA,08/11/2021,10-11289,"1,534.50",Rushcliffe Travel Ltd
Nottinghamshire County Council,1111/1001,Children and Young People,CYP,Transport Related,CCA,08/11/2021,10-11290,"1,314.50",Rushcliffe Travel Ltd
Nottinghamshire County Council,1111/1001,Children and Young People,CYP,Transport Related,CCA,08/11/2021,10-11291,"2,084.50",Rushcliffe Travel Ltd
Nottinghamshire County Council,1111/1001,Children and Young People,CYP,Transport Related,CCA,08/11/2021,10-11292,"1,424.50",Rushcliffe Travel Ltd
Nottinghamshire County Council,1111/1001,Children and Young People,CYP,Transport Related,CCA,08/11/2021,10-11293,"1,204.50",Rushcliffe Travel Ltd
Nottinghamshire County Council,1111/1001,Children and Young People,CYP,Transport Related,CCA,08/11/2021,10-11294,"1,595.00",Rushcliffe Travel Ltd
Nottinghamshire County Council,1111/1001,Children and Young People,CYP,Transport Related,CCA,08/11/2021,10-11295,"1,644.50",Rushcliffe Travel Ltd
Nottinghamshire County Council,1111/1001,Children and Young People,CYP,Transport Related,CCA,08/11/2021,10-11296,"1,595.00",Rushcliffe Travel Ltd
Nottinghamshire County Council,1111/1001,Children and Young People,CYP,Transport Related,CCA,08/11/2021,10-11297,"1,424.50",Rushcliffe Travel Ltd
Nottinghamshire County Council,1111/1001,Children and Young People,CYP,Transport Related,CCA,08/11/2021,10-11298,"1,485.00",Rushcliffe Travel Ltd
Nottinghamshire County Council,1111/1001,Children and Young People,CYP,Transport Related,CCA,09/11/2021,10-11568,834.50,Southside Cars Ltd
Nottinghamshire County Council,1111/1001,Children and Young People,CYP,Transport Related,CCA,09/11/2021,10-11569,"2,451.84",Southside Cars Ltd
Nottinghamshire County Council,1111/1001,Children and Young People,CYP,Transport Related,CCA,09/11/2021,10-11570,"1,776.00",Southside Cars Ltd
Nottinghamshire County Council,1111/1001,Children and Young People,CYP,Transport Related,CCA,09/11/2021,10-11571,"1,245.12",Southside Cars Ltd
Nottinghamshire County Council,1111/1001,Children and Young People,CYP,Transport Related,CCA,09/11/2021,10-11572,"2,145.00",Southside Cars Ltd
Nottinghamshire County Council,1111/1001,Children and Young People,CYP,Transport Related,CCA,09/11/2021,10-11573,"1,312.00",Southside Cars Ltd
Nottinghamshire County Council,1111/1001,Children and Young People,CYP,Transport Related,CCA,09/11/2021,10-11574,"1,096.70",Southside Cars Ltd
Nottinghamshire County Council,1111/1001,Children and Young People,CYP,Transport Related,CCA,09/11/2021,10-11575,"1,197.60",Southside Cars Ltd
Nottinghamshire County Council,1111/1001,Children and Young People,CYP,Transport Related,CCA,09/11/2021,10-11576,906.48,Southside Cars Ltd
Nottinghamshire County Council,1111/1001,Children and Young People,CYP,Transport Related,CCA,09/11/2021,10-11577,816.00,Southside Cars Ltd
Nottinghamshire County Council,1111/1001,Children and Young People,CYP,Transport Related,CCA,09/11/2021,10-11578,"1,060.00",Southside Cars Ltd
Nottinghamshire County Council,1111/1001,Children and Young People,CYP,Transport Related,CCA,09/11/2021,10-11579,594.00,Southside Cars Ltd
Nottinghamshire County Council,1111/1001,Children and Young People,CYP,Transport Related,CCA,09/11/2021,10-11582,"1,515.52",Southside Cars Ltd
Nottinghamshire County Council,1111/1001,Children and Young People,CYP,Transport Related,CCA,09/11/2021,10-11583,"1,346.00",Southside Cars Ltd
Nottinghamshire County Council,1111/1001,Children and Young People,CYP,Transport Related,CCA,09/11/2021,10-11584,"1,085.26",Southside Cars Ltd
Nottinghamshire County Council,1111/1001,Children and Young People,CYP,Transport Related,CCA,09/11/2021,10-11585,"1,076.68",Southside Cars Ltd
Nottinghamshire County Council,1111/1001,Children and Young People,CYP,Transport Related,CCA,09/11/2021,10-11586,773.40,Southside Cars Ltd
Nottinghamshire County Council,1111/1001,Children and Young People,CYP,Transport Related,CCA,09/11/2021,10-11587,750.00,Southside Cars Ltd
Nottinghamshire County Council,1111/1001,Children and Young People,CYP,Transport Related,CCA,09/11/2021,10-11588,"1,536.00",Southside Cars Ltd
Nottinghamshire County Council,1111/1001,Children and Young People,CYP,Transport Related,CCA,09/11/2021,10-11589,"1,276.00",Southside Cars Ltd
Nottinghamshire County Council,1111/1001,Children and Young People,CYP,Transport Related,CCA,09/11/2021,10-11590,"1,080.20",Southside Cars Ltd
Nottinghamshire County Council,1111/1001,Children and Young People,CYP,Transport Related,CCA,09/11/2021,10-11591,"1,868.90",Southside Cars Ltd
Nottinghamshire County Council,1111/1001,Children and Young People,CYP,Transport Related,CCA,09/11/2021,10-11592,"1,740.16",Southside Cars Ltd
Nottinghamshire County Council,1111/1001,Children and Young People,CYP,Transport Related,CCA,09/11/2021,10-11593,"1,397.00",Southside Cars Ltd
Nottinghamshire County Council,1111/1001,Children and Young People,CYP,Transport Related,CCA,09/11/2021,10-11594,"1,157.20",Southside Cars Ltd
Nottinghamshire County Council,1111/1001,Children and Young People,CYP,Transport Related,CCA,09/11/2021,10-11595,"1,904.00",Southside Cars Ltd
Nottinghamshire County Council,1111/1001,Children and Young People,CYP,Transport Related,CCA,09/11/2021,10-11596,"1,080.20",Southside Cars Ltd
Nottinghamshire County Council,1111/1001,Children and Young People,CYP,Transport Related,CCA,09/11/2021,10-11597,"1,393.92",Southside Cars Ltd
Nottinghamshire County Council,1111/1001,Children and Young People,CYP,Transport Related,CCA,09/11/2021,10-11598,"1,050.48",Southside Cars Ltd
Nottinghamshire County Council,1111/1001,Children and Young People,CYP,Transport Related,CCA,09/11/2021,10-11599,"2,030.08",Southside Cars Ltd
Nottinghamshire County Council,1111/1001,Children and Young People,CYP,Transport Related,CCA,09/11/2021,10-11600,"1,560.00",Southside Cars Ltd
Nottinghamshire County Council,1111/1001,Children and Young People,CYP,Transport Related,CCA,09/11/2021,10-11601,"1,279.00",Southside Cars Ltd
Nottinghamshire County Council,1111/1001,Children and Young People,CYP,Transport Related,CCA,09/11/2021,10-11602,715.00,Southside Cars Ltd
Nottinghamshire County Council,1111/1001,Children and Young People,CYP,Transport Related,CCA,09/11/2021,10-11603,594.00,Southside Cars Ltd
Nottinghamshire County Council,1111/1001,Children and Young People,CYP,Transport Related,CCA,09/11/2021,10-11604,"1,958.00",Southside Cars Ltd
Nottinghamshire County Council,1111/1001,Children and Young People,CYP,Transport Related,CCA,09/11/2021,10-11605,"1,144.00",Southside Cars Ltd
Nottinghamshire County Council,1111/1001,Children and Young People,CYP,Transport Related,CCA,09/11/2021,10-11606,954.00,Southside Cars Ltd
Nottinghamshire County Council,1111/1001,Children and Young People,CYP,Transport Related,CCA,09/11/2021,10-11607,982.80,Southside Cars Ltd
Nottinghamshire County Council,1111/1001,Children and Young People,CYP,Transport Related,CCA,09/11/2021,10-11608,528.00,Southside Cars Ltd
Nottinghamshire County Council,1111/1001,Children and Young People,CYP,Transport Related,CCA,09/11/2021,10-11609,768.00,Southside Cars Ltd
Nottinghamshire County Council,1111/1001,Children and Young People,CYP,Transport Related,CCA,09/11/2021,10-11611,638.00,Southside Cars Ltd
Nottinghamshire County Council,1111/1001,Children and Young People,CYP,Transport Related,CCA,09/11/2021,10-11612,657.80,Southside Cars Ltd
Nottinghamshire County Council,1111/1001,Children and Young People,CYP,Transport Related,CCA,09/11/2021,10-11615,"1,760.00",6 Five 2s
Nottinghamshire County Council,1111/1001,Children and Young People,CYP,Transport Related,CCA,09/11/2021,10-11616,880.00,6 Five 2s
Nottinghamshire County Council,1111/1001,Children and Young People,CYP,Transport Related,CCA,09/11/2021,10-11617,660.00,6 Five 2s
Nottinghamshire County Council,1111/1001,Children and Young People,CYP,Transport Related,CCA,09/11/2021,10-11618,"1,100.00",6 Five 2s
Nottinghamshire County Council,1111/1001,Children and Young People,CYP,Transport Related,CCA,09/11/2021,10-11619,770.00,6 Five 2s
Nottinghamshire County Council,1111/1001,Children and Young People,CYP,Transport Related,CCA,09/11/2021,10-11620,880.00,6 Five 2s
Nottinghamshire County Council,1111/1001,Children and Young People,CYP,Transport Related,CCA,09/11/2021,10-11621,730.40,6 Five 2s
Nottinghamshire County Council,1111/1001,Children and Young People,CYP,Transport Related,CCA,09/11/2021,10-11622,720.00,6 Five 2s
Nottinghamshire County Council,1111/1001,Children and Young People,CYP,Transport Related,CCA,09/11/2021,10-11623,594.00,6 Five 2s
Nottinghamshire County Council,1111/1001,Children and Young People,CYP,Transport Related,CCA,09/11/2021,10-11624,770.00,6 Five 2s
Nottinghamshire County Council,1111/1001,Children and Young People,CYP,Transport Related,CCA,09/11/2021,10-11626,550.00,Acorn Contracts
Nottinghamshire County Council,1111/1001,Children and Young People,CYP,Transport Related,CCA,09/11/2021,10-11627,990.00,Acorn Contracts
Nottinghamshire County Council,1111/1001,Children and Young People,CYP,Transport Related,CCA,09/11/2021,10-11631,"1,520.00",Abacus Cars
Nottinghamshire County Council,1111/1001,Children and Young People,CYP,Transport Related,CCA,09/11/2021,10-11632,"4,737.24",Stagecoach Services Ltd
Nottinghamshire County Council,1111/1001,Children and Young People,CYP,Transport Related,CCA,09/11/2021,10-11634,"2,781.20",Stagecoach Services Ltd
Nottinghamshire County Council,1111/1001,Children and Young People,CYP,Transport Related,CCA,09/11/2021,10-11636,"5,904.75",Stagecoach Services Ltd
Nottinghamshire County Council,1111/1001,Children and Young People,CYP,Transport Related,CCA,09/11/2021,10-11638,"2,591.60",Stagecoach Services Ltd
Nottinghamshire County Council,1111/1001,Children and Young People,CYP,Transport Related,CCA,09/11/2021,10-11642,"2,849.00",Stagecoach Services Ltd
Nottinghamshire County Council,1111/1001,Children and Young People,CYP,Transport Related,CCA,09/11/2021,10-11643,"1,592.58",Stagecoach Services Ltd
Nottinghamshire County Council,1111/1001,Children and Young People,CYP,Transport Related,CCA,09/11/2021,10-11645,"4,268.48",Stagecoach Services Ltd
Nottinghamshire County Council,1111/1001,Children and Young People,CYP,Transport Related,CCA,09/11/2021,10-11648,764.72,Bassetlaw Action Centre
Nottinghamshire County Council,1111/1001,Children and Young People,CYP,Transport Related,CCA,09/11/2021,10-11649,720.00,D Bull T/A DB Cabs
Nottinghamshire County Council,1111/1001,Children and Young People,CYP,Transport Related,CCA,09/11/2021,10-11650,636.00,Ideal Cars (Private Hire) Ltd
Nottinghamshire County Council,1111/1001,Children and Young People,CYP,Transport Related,CCA,09/11/2021,10-11652,"1,178.00",Ideal Cars (Private Hire) Ltd
Nottinghamshire County Council,1111/1001,Children and Young People,CYP,Transport Related,CCA,09/11/2021,10-11653,"1,210.00",Ideal Cars (Private Hire) Ltd
Nottinghamshire County Council,1111/1001,Children and Young People,CYP,Transport Related,CCA,09/11/2021,10-11654,"1,210.00",Ideal Cars (Private Hire) Ltd
Nottinghamshire County Council,1111/1001,Children and Young People,CYP,Transport Related,CCA,09/11/2021,10-11655,702.00,Ideal Cars (Private Hire) Ltd
Nottinghamshire County Council,1111/1001,Children and Young People,CYP,Transport Related,CCA,09/11/2021,10-11656,686.00,Ideal Cars (Private Hire) Ltd
Nottinghamshire County Council,1111/1001,Children and Young People,CYP,Transport Related,CCA,09/11/2021,10-11660,"1,045.00",CT4N Ltd
Nottinghamshire County Council,1111/1001,Children and Young People,CYP,Transport Related,CCA,09/11/2021,10-11661,"1,540.00",CT4N Ltd
Nottinghamshire County Council,1111/1001,Children and Young People,CYP,Transport Related,CCA,09/11/2021,10-11662,"1,082.40",SM Travel Yorkshire Ltd
Nottinghamshire County Council,1111/1001,Children and Young People,CYP,Transport Related,CCA,09/11/2021,10-11663,"1,351.20",SM Travel Yorkshire Ltd
Nottinghamshire County Council,1111/1001,Children and Young People,CYP,Transport Related,CCA,09/11/2021,10-11664,"2,601.00",SM Travel Yorkshire Ltd
Nottinghamshire County Council,1111/1001,Children and Young People,CYP,Transport Related,CCA,09/11/2021,10-11665,"2,539.50",SM Travel Yorkshire Ltd
Nottinghamshire County Council,1111/1001,Children and Young People,CYP,Transport Related,CCA,09/11/2021,10-11666,"1,367.30",SM Travel Yorkshire Ltd
Nottinghamshire County Council,1111/1001,Children and Young People,CYP,Transport Related,CCA,09/11/2021,10-11667,"1,290.30",SM Travel Yorkshire Ltd
Nottinghamshire County Council,1111/1001,Children and Young People,CYP,Transport Related,CCA,09/11/2021,10-11668,963.00,SM Travel Yorkshire Ltd
Nottinghamshire County Council,1111/1001,Children and Young People,CYP,Transport Related,CCA,09/11/2021,10-11669,891.50,SM Travel Yorkshire Ltd
Nottinghamshire County Council,1111/1001,Children and Young People,CYP,Transport Related,CCA,09/11/2021,10-11670,"2,292.80",SM Travel Yorkshire Ltd
Nottinghamshire County Council,1111/1001,Children and Young People,CYP,Transport Related,CCA,09/11/2021,10-11672,817.30,SM Travel Yorkshire Ltd
Nottinghamshire County Council,1111/1001,Children and Young People,CYP,Transport Related,CCA,09/11/2021,10-11673,949.30,SM Travel Yorkshire Ltd
Nottinghamshire County Council,1111/1001,Children and Young People,CYP,Transport Related,CCA,09/11/2021,10-11674,"1,070.30",SM Travel Yorkshire Ltd
Nottinghamshire County Council,1111/1001,Children and Young People,CYP,Transport Related,CCA,09/11/2021,10-11675,"1,114.20",SM Travel Yorkshire Ltd
Nottinghamshire County Council,1111/1001,Children and Young People,CYP,Transport Related,CCA,09/11/2021,10-11677,"1,796.80",SM Travel Yorkshire Ltd
Nottinghamshire County Council,1111/1001,Children and Young People,CYP,Transport Related,CCA,09/11/2021,10-11678,"1,994.56",SM Travel Yorkshire Ltd
Nottinghamshire County Council,1111/1001,Children and Young People,CYP,Transport Related,CCA,09/11/2021,10-11679,850.30,SM Travel Yorkshire Ltd
Nottinghamshire County Council,1111/1001,Children and Young People,CYP,Transport Related,CCA,09/11/2021,10-11680,"1,199.00",Vectare Ltd
Nottinghamshire County Council,1111/1001,Children and Young People,CYP,Transport Related,CCA,11/11/2021,10-12802,"1,046.81",Sharpes Of Nottingham
Nottinghamshire County Council,1111/1001,Children and Young People,CYP,Transport Related,CCA,11/11/2021,10-12803,528.00,6 Five 2s
Nottinghamshire County Council,1111/1001,Children and Young People,CYP,Transport Related,CCA,11/11/2021,10-12804,"1,430.00",All Wayz Travel
Nottinghamshire County Council,1111/1001,Children and Young People,CYP,Transport Related,CCA,11/11/2021,10-12805,"1,978.00",F4Control Ltd (t/a First4care)
Nottinghamshire County Council,1111/1001,Children and Young People,CYP,Transport Related,CCA,11/11/2021,10-12807,"1,622.50",F4Control Ltd (t/a First4care)
Nottinghamshire County Council,1111/1001,Children and Young People,CYP,Transport Related,CCA,11/11/2021,10-12808,"2,167.00",F4Control Ltd (t/a First4care)
Nottinghamshire County Council,1111/1001,Children and Young People,CYP,Transport Related,CCA,11/11/2021,10-12809,"1,567.94",F4Control Ltd (t/a First4care)
Nottinghamshire County Council,1111/1001,Children and Young People,CYP,Transport Related,CCA,11/11/2021,10-12810,"1,237.50",F4Control Ltd (t/a First4care)
Nottinghamshire County Council,1111/1001,Children and Young People,CYP,Transport Related,CCA,11/11/2021,10-12811,"1,527.30",F4Control Ltd (t/a First4care)
Nottinghamshire County Council,1111/1001,Children and Young People,CYP,Transport Related,CCA,11/11/2021,10-12812,"2,300.00",Johnson Bros Tours Ltd
Nottinghamshire County Council,1111/1001,Children and Young People,CYP,Transport Related,CCA,11/11/2021,10-12813,"5,223.00",Johnson Bros Tours Ltd
Nottinghamshire County Council,1111/1001,Children and Young People,CYP,Transport Related,CCA,11/11/2021,10-12814,"4,533.00",Johnson Bros Tours Ltd
Nottinghamshire County Council,1111/1001,Children and Young People,CYP,Transport Related,CCA,11/11/2021,10-12815,"1,360.00",Wrights Coaches T/A Little Transpor
Nottinghamshire County Council,1111/1001,Children and Young People,CYP,Transport Related,CCA,11/11/2021,10-12816,"1,540.00",Arnold Acorn Travel
Nottinghamshire County Council,1111/1001,Children and Young People,CYP,Transport Related,CCA,11/11/2021,10-12817,768.00,Acorn Contracts
Nottinghamshire County Council,1111/1001,Children and Young People,CYP,Transport Related,CCA,11/11/2021,10-12818,915.20,Arrow Specialised Transport Ltd
Nottinghamshire County Council,1111/1001,Children and Young People,CYP,Transport Related,CCA,11/11/2021,10-12819,467.20,D G Private Hire Ltd
Nottinghamshire County Council,1111/1001,Children and Young People,CYP,Transport Related,CCA,11/11/2021,10-12821,924.00,Ng11 Cars
Nottinghamshire County Council,1111/1001,Children and Young People,CYP,Transport Related,CCA,11/11/2021,10-12822,"1,488.00",Ng11 Cars
Nottinghamshire County Council,1111/1001,Children and Young People,CYP,Transport Related,CCA,11/11/2021,10-12824,"1,540.00",Shelleys Taxis Ltd
Nottinghamshire County Council,1111/1001,Children and Young People,CYP,Transport Related,CCA,11/11/2021,10-12825,"1,540.00",Shelleys Taxis Ltd
Nottinghamshire County Council,1111/1001,Children and Young People,CYP,Transport Related,CCA,11/11/2021,10-12826,972.00,Shelleys Taxis Ltd
Nottinghamshire County Council,1111/1001,Children and Young People,CYP,Transport Related,CCA,11/11/2021,10-12827,770.00,Shelleys Taxis Ltd
Nottinghamshire County Council,1111/1001,Children and Young People,CYP,Transport Related,CCA,11/11/2021,10-12828,770.00,Shelleys Taxis Ltd
Nottinghamshire County Council,1111/1001,Children and Young People,CYP,Transport Related,CCA,11/11/2021,10-12829,"1,078.00",Shelleys Taxis Ltd
Nottinghamshire County Council,1111/1001,Children and Young People,CYP,Transport Related,CCA,11/11/2021,10-12830,"1,425.00",Elkingtons Park Garage
Nottinghamshire County Council,1111/1001,Children and Young People,CYP,Transport Related,CCA,11/11/2021,10-12831,"1,815.00",F4Control Ltd (t/a First4care)
Nottinghamshire County Council,1111/1001,Children and Young People,CYP,Transport Related,CCA,11/11/2021,10-12832,"1,430.00",F4Control Ltd (t/a First4care)
Nottinghamshire County Council,1111/1001,Children and Young People,CYP,Transport Related,CCA,11/11/2021,10-12833,"1,492.92",F4Control Ltd (t/a First4care)
Nottinghamshire County Council,1111/1001,Children and Young People,CYP,Transport Related,CCA,11/11/2021,10-12835,"1,677.50",F4Control Ltd (t/a First4care)
Nottinghamshire County Council,1111/1001,Children and Young People,CYP,Transport Related,CCA,11/11/2021,10-12836,"1,347.50",F4Control Ltd (t/a First4care)
Nottinghamshire County Council,1111/1001,Children and Young People,CYP,Transport Related,CCA,11/11/2021,10-12837,"1,415.00",F4Control Ltd (t/a First4care)
Nottinghamshire County Council,1111/1001,Children and Young People,CYP,Transport Related,CCA,11/11/2021,10-12838,"1,654.00",F4Control Ltd (t/a First4care)
Nottinghamshire County Council,1111/1001,Children and Young People,CYP,Transport Related,CCA,11/11/2021,10-12839,"1,317.80",F4Control Ltd (t/a First4care)
Nottinghamshire County Council,1111/1001,Children and Young People,CYP,Transport Related,CCA,11/11/2021,10-12840,"1,492.92",F4Control Ltd (t/a First4care)
Nottinghamshire County Council,1111/1001,Children and Young People,CYP,Transport Related,CCA,11/11/2021,10-12841,"1,436.80",F4Control Ltd (t/a First4care)
Nottinghamshire County Council,1111/1001,Children and Young People,CYP,Transport Related,CCA,11/11/2021,10-12842,"1,690.92",F4Control Ltd (t/a First4care)
Nottinghamshire County Council,1111/1001,Children and Young People,CYP,Transport Related,CCA,11/11/2021,10-12843,"1,406.50",F4Control Ltd (t/a First4care)
Nottinghamshire County Council,1111/1001,Children and Young People,CYP,Transport Related,CCA,11/11/2021,10-12844,"1,382.59",F4Control Ltd (t/a First4care)
Nottinghamshire County Council,1111/1001,Children and Young People,CYP,Transport Related,CCA,11/11/2021,10-12845,"1,779.03",F4Control Ltd (t/a First4care)
Nottinghamshire County Council,1111/1001,Children and Young People,CYP,Transport Related,CCA,11/11/2021,10-12846,"1,757.03",F4Control Ltd (t/a First4care)
Nottinghamshire County Council,1111/1001,Children and Young People,CYP,Transport Related,CCA,11/11/2021,10-12847,"1,335.51",F4Control Ltd (t/a First4care)
Nottinghamshire County Council,1111/1001,Children and Young People,CYP,Transport Related,CCA,11/11/2021,10-12848,"1,512.83",F4Control Ltd (t/a First4care)
Nottinghamshire County Council,1111/1001,Children and Young People,CYP,Transport Related,CCA,11/11/2021,10-12849,"1,867.03",F4Control Ltd (t/a First4care)
Nottinghamshire County Council,1111/1001,Children and Young People,CYP,Transport Related,CCA,11/11/2021,10-12850,"1,457.83",F4Control Ltd (t/a First4care)
Nottinghamshire County Council,1111/1001,Children and Young People,CYP,Transport Related,CCA,11/11/2021,10-12851,"1,622.72",F4Control Ltd (t/a First4care)
Nottinghamshire County Council,1111/1001,Children and Young People,CYP,Transport Related,CCA,11/11/2021,10-12852,"1,597.75",F4Control Ltd (t/a First4care)
Nottinghamshire County Council,1111/1001,Children and Young People,CYP,Transport Related,CCA,11/11/2021,10-12853,"2,388.87",F4Control Ltd (t/a First4care)
Nottinghamshire County Council,1111/1001,Children and Young People,CYP,Transport Related,CCA,11/11/2021,10-12854,"1,383.03",F4Control Ltd (t/a First4care)
Nottinghamshire County Council,1111/1001,Children and Young People,CYP,Transport Related,CCA,11/11/2021,10-12855,"2,467.08",BN Gibson Ltd
Nottinghamshire County Council,1111/1001,Children and Young People,CYP,Transport Related,CCA,11/11/2021,10-12856,"2,702.81",BN Gibson Ltd
Nottinghamshire County Council,1111/1001,Children and Young People,CYP,Transport Related,CCA,11/11/2021,10-12857,"1,498.09",BN Gibson Ltd
Nottinghamshire County Council,1111/1001,Children and Young People,CYP,Transport Related,CCA,11/11/2021,10-12858,"1,493.70",BN Gibson Ltd
Nottinghamshire County Council,1111/1001,Children and Young People,CYP,Transport Related,CCA,11/11/2021,10-12859,"1,625.50",BN Gibson Ltd
Nottinghamshire County Council,1111/1001,Children and Young People,CYP,Transport Related,CCA,11/11/2021,10-12860,"1,356.20",BN Gibson Ltd
Nottinghamshire County Council,1111/1001,Children and Young People,CYP,Transport Related,CCA,11/11/2021,10-12861,"1,745.15",BN Gibson Ltd
Nottinghamshire County Council,1111/1001,Children and Young People,CYP,Transport Related,CCA,11/11/2021,10-12862,"1,836.45",BN Gibson Ltd
Nottinghamshire County Council,1111/1001,Children and Young People,CYP,Transport Related,CCA,11/11/2021,10-12863,"1,498.09",BN Gibson Ltd
Nottinghamshire County Council,1111/1001,Children and Young People,CYP,Transport Related,CCA,11/11/2021,10-12864,"2,259.95",BN Gibson Ltd
Nottinghamshire County Council,1111/1001,Children and Young People,CYP,Transport Related,CCA,11/11/2021,10-12865,"1,950.50",BN Gibson Ltd
Nottinghamshire County Council,1111/1001,Children and Young People,CYP,Transport Related,CCA,11/11/2021,10-12866,"1,859.50",BN Gibson Ltd
Nottinghamshire County Council,1111/1001,Children and Young People,CYP,Transport Related,CCA,11/11/2021,10-12867,"2,070.80",BN Gibson Ltd
Nottinghamshire County Council,1111/1001,Children and Young People,CYP,Transport Related,CCA,11/11/2021,10-12868,"2,376.66",BN Gibson Ltd
Nottinghamshire County Council,1111/1001,Children and Young People,CYP,Transport Related,CCA,11/11/2021,10-12869,"2,182.84",BN Gibson Ltd
Nottinghamshire County Council,1111/1001,Children and Young People,CYP,Transport Related,CCA,11/11/2021,10-12870,"2,349.16",BN Gibson Ltd
Nottinghamshire County Council,1111/1001,Children and Young People,CYP,Transport Related,CCA,11/11/2021,10-12871,"1,793.55",BN Gibson Ltd
Nottinghamshire County Council,1111/1001,Children and Young People,CYP,Transport Related,CCA,11/11/2021,10-12872,"1,361.90",BN Gibson Ltd
Nottinghamshire County Council,1111/1001,Children and Young People,CYP,Transport Related,CCA,11/11/2021,10-12873,"2,042.85",BN Gibson Ltd
Nottinghamshire County Council,1111/1001,Children and Young People,CYP,Transport Related,CCA,11/11/2021,10-12874,"1,353.11",BN Gibson Ltd
Nottinghamshire County Council,1111/1001,Children and Young People,CYP,Transport Related,CCA,11/11/2021,10-12875,"1,188.11",BN Gibson Ltd
Nottinghamshire County Council,1111/1001,Children and Young People,CYP,Transport Related,CCA,11/11/2021,10-12876,"2,276.23",BN Gibson Ltd
Nottinghamshire County Council,1111/1001,Children and Young People,CYP,Transport Related,CCA,11/11/2021,10-12877,"1,932.59",BN Gibson Ltd
Nottinghamshire County Council,1111/1001,Children and Young People,CYP,Transport Related,CCA,11/11/2021,10-12878,"1,629.54",BN Gibson Ltd
Nottinghamshire County Council,1111/1001,Children and Young People,CYP,Transport Related,CCA,11/11/2021,10-12879,"1,643.07",BN Gibson Ltd
Nottinghamshire County Council,1111/1001,Children and Young People,CYP,Transport Related,CCA,11/11/2021,10-12880,"1,643.07",BN Gibson Ltd
Nottinghamshire County Council,1111/1001,Children and Young People,CYP,Transport Related,CCA,11/11/2021,10-12882,"1,427.60",BN Gibson Ltd
Nottinghamshire County Council,1111/1001,Children and Young People,CYP,Transport Related,CCA,11/11/2021,10-12884,"1,643.07",BN Gibson Ltd
Nottinghamshire County Council,1111/1001,Children and Young People,CYP,Transport Related,CCA,11/11/2021,10-12885,"1,756.59",BN Gibson Ltd
Nottinghamshire County Council,1111/1001,Children and Young People,CYP,Transport Related,CCA,11/11/2021,10-12886,"1,498.09",BN Gibson Ltd
Nottinghamshire County Council,1111/1001,Children and Young People,CYP,Transport Related,CCA,11/11/2021,10-12887,"1,155.00",D G Private Hire Ltd
Nottinghamshire County Council,1111/1001,Children and Young People,CYP,Transport Related,CCA,11/11/2021,10-12888,"1,035.00",D G Private Hire Ltd
Nottinghamshire County Council,1111/1001,Children and Young People,CYP,Transport Related,CCA,11/11/2021,10-12889,"1,155.00",D G Private Hire Ltd
Nottinghamshire County Council,1111/1001,Children and Young People,CYP,Transport Related,CCA,11/11/2021,10-12890,"1,029.00",D G Private Hire Ltd
Nottinghamshire County Council,1111/1001,Children and Young People,CYP,Transport Related,CCA,11/11/2021,10-12891,"1,960.00",D G Private Hire Ltd
Nottinghamshire County Council,1111/1001,Children and Young People,CYP,Transport Related,CCA,11/11/2021,10-12892,"1,260.00",D G Private Hire Ltd
Nottinghamshire County Council,1111/1001,Children and Young People,CYP,Transport Related,CCA,11/11/2021,10-12894,720.00,D G Private Hire Ltd
Nottinghamshire County Council,1111/1001,Children and Young People,CYP,Transport Related,CCA,11/11/2021,10-12895,"2,205.00",D G Private Hire Ltd
Nottinghamshire County Council,1111/1001,Children and Young People,CYP,Transport Related,CCA,11/11/2021,10-12896,"1,197.00",D G Private Hire Ltd
Nottinghamshire County Council,1111/1001,Children and Young People,CYP,Transport Related,CCA,11/11/2021,10-12897,748.00,D G Private Hire Ltd
Nottinghamshire County Council,1111/1001,Children and Young People,CYP,Transport Related,CCA,11/11/2021,10-12898,840.00,D G Private Hire Ltd
Nottinghamshire County Council,1111/1001,Children and Young People,CYP,Transport Related,CCA,11/11/2021,10-12899,"1,007.00",D G Private Hire Ltd
Nottinghamshire County Council,1111/1001,Children and Young People,CYP,Transport Related,CCA,11/11/2021,10-12900,924.00,D G Private Hire Ltd
Nottinghamshire County Council,1111/1001,Children and Young People,CYP,Transport Related,CCA,11/11/2021,10-12901,"1,056.00",D G Private Hire Ltd
Nottinghamshire County Council,1111/1001,Children and Young People,CYP,Transport Related,CCA,11/11/2021,10-12902,"1,078.00",D G Private Hire Ltd
Nottinghamshire County Council,1111/1001,Children and Young People,CYP,Transport Related,CCA,11/11/2021,10-12903,840.00,D G Private Hire Ltd
Nottinghamshire County Council,1111/1001,Children and Young People,CYP,Transport Related,CCA,11/11/2021,10-12904,784.00,D G Private Hire Ltd
Nottinghamshire County Council,1111/1001,Children and Young People,CYP,Transport Related,CCA,11/11/2021,10-12905,"1,050.00",D G Private Hire Ltd
Nottinghamshire County Council,1111/1001,Children and Young People,CYP,Transport Related,CCA,11/11/2021,10-12906,605.00,D G Private Hire Ltd
Nottinghamshire County Council,1111/1001,Children and Young People,CYP,Transport Related,CCA,11/11/2021,10-12907,534.00,D G Private Hire Ltd
Nottinghamshire County Council,1111/1001,Children and Young People,CYP,Transport Related,CCA,11/11/2021,10-12908,583.00,D G Private Hire Ltd
Nottinghamshire County Council,1111/1001,Children and Young People,CYP,Transport Related,CCA,11/11/2021,10-12909,506.00,D G Private Hire Ltd
Nottinghamshire County Council,1111/1001,Children and Young People,CYP,Transport Related,CCA,11/11/2021,10-12910,528.00,D G Private Hire Ltd
Nottinghamshire County Council,1111/1001,Children and Young People,CYP,Transport Related,CCA,11/11/2021,10-12912,630.00,Abacus Cars
Nottinghamshire County Council,1111/1001,Children and Young People,CYP,Transport Related,CCA,11/11/2021,10-12914,"1,240.00",Marshalls Of Sutton On Trent Ltd
Nottinghamshire County Council,1111/1001,Children and Young People,CYP,Transport Related,CCA,11/11/2021,10-12916,"3,468.08",Nottingham Minibuses & Coaches
Nottinghamshire County Council,1111/1001,Children and Young People,CYP,Transport Related,CCA,11/11/2021,10-12917,"1,914.06",Nottingham Minibuses & Coaches
Nottinghamshire County Council,1111/1001,Children and Young People,CYP,Transport Related,CCA,11/11/2021,10-12919,"2,280.00",Nottingham Minibuses & Coaches
Nottinghamshire County Council,1111/1001,Children and Young People,CYP,Transport Related,CCA,11/11/2021,10-12920,"1,639.00",Trevor Bailey t/a Trevor Bailey Tra
Nottinghamshire County Council,1111/1001,Children and Young People,CYP,Transport Related,CCA,11/11/2021,10-12921,"3,289.00",Kettlewell Retford Ltd
Nottinghamshire County Council,1111/1001,Children and Young People,CYP,Transport Related,CCA,11/11/2021,10-12922,570.00,AAA Cabs
Nottinghamshire County Council,1111/1001,Children and Young People,CYP,Transport Related,CCA,11/11/2021,10-12924,657.25,Ace Cars & Minibuses Ltd
Nottinghamshire County Council,1111/1001,Children and Young People,CYP,Transport Related,CCA,11/11/2021,10-12926,"1,254.75",Ace Cars & Minibuses Ltd
Nottinghamshire County Council,1111/1001,Children and Young People,CYP,Transport Related,CCA,11/11/2021,10-12929,744.00,Nottingham Cars Ltd
Nottinghamshire County Council,1111/1001,Children and Young People,CYP,Transport Related,CCA,11/11/2021,10-12931,"1,942.90",Ideal Cars (Private Hire) Ltd
Nottinghamshire County Council,1111/1001,Children and Young People,CYP,Transport Related,CCA,11/11/2021,10-12933,"1,560.35",CT4N Ltd
Nottinghamshire County Council,1111/1001,Children and Young People,CYP,Transport Related,CCA,11/11/2021,10-12934,"2,269.60",CT4N Ltd
Nottinghamshire County Council,1111/1001,Children and Young People,CYP,Transport Related,CCA,11/11/2021,10-12935,"1,560.35",CT4N Ltd
Nottinghamshire County Council,1111/1001,Children and Young People,CYP,Transport Related,CCA,11/11/2021,10-12936,"1,332.65",CT4N Ltd
Nottinghamshire County Council,1111/1001,Children and Young People,CYP,Transport Related,CCA,11/11/2021,10-12937,"1,870.00",CT4N Ltd
Nottinghamshire County Council,1111/1001,Children and Young People,CYP,Transport Related,CCA,11/11/2021,10-12938,550.00,CT4N Ltd
Nottinghamshire County Council,1111/1001,Children and Young People,CYP,Transport Related,CCA,11/11/2021,10-12939,"1,211.50",CT4N Ltd
Nottinghamshire County Council,1111/1001,Children and Young People,CYP,Transport Related,CCA,11/11/2021,10-12940,858.00,A1 Private Hire Ltd
Nottinghamshire County Council,1111/1001,Children and Young People,CYP,Transport Related,CCA,11/11/2021,10-12941,"1,188.00",A1 Private Hire Ltd
Nottinghamshire County Council,1111/1001,Children and Young People,CYP,Transport Related,CCA,11/11/2021,10-12942,888.00,A1 Private Hire Ltd
Nottinghamshire County Council,1111/1001,Children and Young People,CYP,Transport Related,CCA,11/11/2021,10-12943,940.00,A1 Private Hire Ltd
Nottinghamshire County Council,1111/1001,Children and Young People,CYP,Transport Related,CCA,11/11/2021,10-12944,882.00,A1 Private Hire Ltd
Nottinghamshire County Council,1111/1001,Children and Young People,CYP,Transport Related,CCA,11/11/2021,10-12945,"1,984.00",A1 Private Hire Ltd
Nottinghamshire County Council,1111/1001,Children and Young People,CYP,Transport Related,CCA,11/11/2021,10-12946,"3,402.00",A1 Private Hire Ltd
Nottinghamshire County Council,1111/1001,Children and Young People,CYP,Transport Related,CCA,11/11/2021,10-12947,"1,504.00",A1 Private Hire Ltd
Nottinghamshire County Council,1111/1001,Children and Young People,CYP,Transport Related,CCA,11/11/2021,10-12949,"2,540.00",A1 Private Hire Ltd
Nottinghamshire County Council,1111/1001,Children and Young People,CYP,Transport Related,CCA,11/11/2021,10-12950,"3,496.50",A1 Private Hire Ltd
Nottinghamshire County Council,1111/1001,Children and Young People,CYP,Transport Related,CCA,11/11/2021,10-12951,"3,439.50",Nottingham Specialist Transport Ltd
Nottinghamshire County Council,1111/1001,Children and Young People,CYP,Transport Related,CCA,11/11/2021,10-12952,"2,650.50",Nottingham Specialist Transport Ltd
Nottinghamshire County Council,1111/1001,Children and Young People,CYP,Transport Related,CCA,11/11/2021,10-12963,"1,136.78",BN Gibson Ltd
Nottinghamshire County Council,1111/1001,Children and Young People,CYP,Transport Related,CCA,11/11/2021,10-12965,"7,348.99",Ace Cars & Minibuses Ltd
Nottinghamshire County Council,1111/1001,Children and Young People,CYP,Transport Related,CCA,11/11/2021,10-12966,"14,029.89",Ace Cars & Minibuses Ltd
Nottinghamshire County Council,1111/1001,Children and Young People,CYP,Transport Related,CCA,15/11/2021,10-13237,"1,380.00",Care @ Rainbows End
Nottinghamshire County Council,1111/1001,Children and Young People,CYP,Transport Related,CCA,15/11/2021,10-13238,"1,035.00",Care @ Rainbows End
Nottinghamshire County Council,1111/1001,Children and Young People,CYP,Transport Related,CCA,16/11/2021,10-13186,"2,570.75",Sharpes Of Nottingham
Nottinghamshire County Council,1111/1001,Children and Young People,CYP,Transport Related,CCA,16/11/2021,10-13187,"2,569.95",Sharpes Of Nottingham
Nottinghamshire County Council,1111/1001,Children and Young People,CYP,Transport Related,CCA,16/11/2021,10-13188,"2,844.75",Sharpes Of Nottingham
Nottinghamshire County Council,1111/1001,Children and Young People,CYP,Transport Related,CCA,16/11/2021,10-13189,"2,682.20",Sharpes Of Nottingham
Nottinghamshire County Council,1111/1001,Children and Young People,CYP,Transport Related,CCA,16/11/2021,10-13190,"2,998.35",Sharpes Of Nottingham
Nottinghamshire County Council,1111/1001,Children and Young People,CYP,Transport Related,CCA,16/11/2021,10-13191,"3,073.45",Sharpes Of Nottingham
Nottinghamshire County Council,1111/1001,Children and Young People,CYP,Transport Related,CCA,16/11/2021,10-13193,"3,104.00",Sharpes Of Nottingham
Nottinghamshire County Council,1111/1001,Children and Young People,CYP,Transport Related,CCA,16/11/2021,10-13195,"3,784.00",Bridges Transport Ltd
Nottinghamshire County Council,1111/1001,Children and Young People,CYP,Transport Related,CCA,16/11/2021,10-13196,"1,892.00",Bridges Transport Ltd
Nottinghamshire County Council,1111/1001,Children and Young People,CYP,Transport Related,CCA,16/11/2021,10-13197,"1,574.97",BN Gibson Ltd
Nottinghamshire County Council,1111/1001,Children and Young People,CYP,Transport Related,CCA,16/11/2021,10-13198,"1,634.28",BN Gibson Ltd
Nottinghamshire County Council,1111/1001,Children and Young People,CYP,Transport Related,CCA,16/11/2021,10-13199,748.00,D G Private Hire Ltd
Nottinghamshire County Council,1111/1001,Children and Young People,CYP,Transport Related,CCA,16/11/2021,10-13203,"1,860.50",Stagecoach Services Ltd
Nottinghamshire County Council,1111/1001,Children and Young People,CYP,Transport Related,CCA,16/11/2021,10-13205,"2,687.10",Stagecoach Services Ltd
Nottinghamshire County Council,1111/1001,Children and Young People,CYP,Transport Related,CCA,16/11/2021,10-13206,"2,791.00",Stagecoach Services Ltd
Nottinghamshire County Council,1111/1001,Children and Young People,CYP,Transport Related,CCA,16/11/2021,10-13207,"2,409.00",Stagecoach Services Ltd
Nottinghamshire County Council,1111/1001,Children and Young People,CYP,Transport Related,CCA,16/11/2021,10-13225,"2,394.70",Aj Travel
Nottinghamshire County Council,1111/1001,Children and Young People,CYP,Transport Related,CCA,16/11/2021,10-13226,"2,888.00",K Matthews Travel
Nottinghamshire County Council,1111/1001,Children and Young People,CYP,Transport Related,CCA,16/11/2021,10-13229,566.40,Ideal Cars (Private Hire) Ltd
Nottinghamshire County Council,1111/1001,Children and Young People,CYP,Transport Related,CCA,16/11/2021,10-13230,560.00,Ideal Cars (Private Hire) Ltd
Nottinghamshire County Council,1111/1001,Children and Young People,CYP,Transport Related,CCA,16/11/2021,10-13231,880.00,Ideal Cars (Private Hire) Ltd
Nottinghamshire County Council,1111/1001,Children and Young People,CYP,Transport Related,CCA,16/11/2021,10-13232,770.00,Carriage Solutions Ltd
Nottinghamshire County Council,1111/1001,Children and Young People,CYP,Transport Related,CCA,16/11/2021,10-13233,"1,639.00",Carriage Solutions Ltd
Nottinghamshire County Council,1111/1001,Children and Young People,CYP,Transport Related,CCA,16/11/2021,10-13234,561.00,Carriage Solutions Ltd
Nottinghamshire County Council,1111/1001,Children and Young People,CYP,Transport Related,CCA,17/11/2021,10-13368,918.50,Bridges Transport Ltd
Nottinghamshire County Council,1111/1001,Children and Young People,CYP,Transport Related,CCA,17/11/2021,10-13369,"1,933.14",Vallances Coaches
Nottinghamshire County Council,1111/1001,Children and Young People,CYP,Transport Related,CCA,17/11/2021,10-13370,"2,308.95",Wallis Coachways
Nottinghamshire County Council,1111/1001,Children and Young People,CYP,Transport Related,CCA,17/11/2021,10-13371,"2,499.00",Wallis Coachways
Nottinghamshire County Council,1111/1001,Children and Young People,CYP,Transport Related,CCA,17/11/2021,10-13372,"1,209.45",Wallis Coachways
Nottinghamshire County Council,1111/1001,Children and Young People,CYP,Transport Related,CCA,17/11/2021,10-13373,"1,309.00",Wallis Coachways
Nottinghamshire County Council,1111/1001,Children and Young People,CYP,Transport Related,CCA,17/11/2021,10-13374,"1,240.00",Travel Liner
Nottinghamshire County Council,1111/1001,Children and Young People,CYP,Transport Related,CCA,17/11/2021,10-13376,"4,958.00",Vectare Ltd
Nottinghamshire County Council,1111/1001,Children and Young People,CYP,Transport Related,CCA,17/11/2021,10-13377,"4,142.00",Vectare Ltd
Nottinghamshire County Council,1111/1001,Children and Young People,CYP,Transport Related,CCA,17/11/2021,10-13378,"3,488.00",Vectare Ltd
Nottinghamshire County Council,1111/1001,Children and Young People,CYP,Transport Related,CCA,17/11/2021,10-13379,"4,720.00",Vectare Ltd
Nottinghamshire County Council,1111/1001,Children and Young People,CYP,Transport Related,CCA,17/11/2021,10-13380,"1,534.50",Nottingham Specialist Transport Ltd
Nottinghamshire County Council,1111/1001,Children and Young People,CYP,Transport Related,CCA,17/11/2021,10-13381,"1,974.50",Nottingham Specialist Transport Ltd
Nottinghamshire County Council,1111/1001,Children and Young People,CYP,Transport Related,CCA,17/11/2021,10-13382,"2,232.00",Nottingham Specialist Transport Ltd
Nottinghamshire County Council,1111/1001,Children and Young People,CYP,Transport Related,CCA,17/11/2021,10-13383,"1,695.00",Nottingham Specialist Transport Ltd
Nottinghamshire County Council,1111/1001,Children and Young People,CYP,Transport Related,CCA,17/11/2021,10-13384,"2,194.50",Nottingham Specialist Transport Ltd
Nottinghamshire County Council,1111/1001,Children and Young People,CYP,Transport Related,CCA,17/11/2021,10-13385,"1,864.50",Nottingham Specialist Transport Ltd
Nottinghamshire County Council,1111/1001,Children and Young People,CYP,Transport Related,CCA,17/11/2021,10-13386,"3,844.50",Nottingham Specialist Transport Ltd
Nottinghamshire County Council,1111/1001,Children and Young People,CYP,Transport Related,CCA,17/11/2021,10-13387,"2,248.00",Nottingham Specialist Transport Ltd
Nottinghamshire County Council,1111/1001,Children and Young People,CYP,Transport Related,CCA,17/11/2021,10-13388,"1,534.50",Nottingham Specialist Transport Ltd
Nottinghamshire County Council,1111/1001,Children and Young People,CYP,Transport Related,CCA,17/11/2021,10-13389,"1,356.00",Nottingham Specialist Transport Ltd
Nottinghamshire County Council,1111/1001,Children and Young People,CYP,Transport Related,CCA,17/11/2021,10-13390,"2,362.50",Nottingham Specialist Transport Ltd
Nottinghamshire County Council,1111/1001,Children and Young People,CYP,Transport Related,CCA,17/11/2021,10-13391,"3,499.00",Nottingham Specialist Transport Ltd
Nottinghamshire County Council,1111/1001,Children and Young People,CYP,Transport Related,CCA,17/11/2021,10-13392,"1,494.00",Nottingham Specialist Transport Ltd
Nottinghamshire County Council,1111/1001,Children and Young People,CYP,Transport Related,CCA,17/11/2021,10-13554,"1,884.40",Southside Cars Ltd
Nottinghamshire County Council,1111/1001,Children and Young People,CYP,Transport Related,CCA,17/11/2021,10-13555,720.00,6 Five 2s
Nottinghamshire County Council,1111/1001,Children and Young People,CYP,Transport Related,CCA,17/11/2021,10-13556,"1,100.00",6 Five 2s
Nottinghamshire County Council,1111/1001,Children and Young People,CYP,Transport Related,CCA,17/11/2021,10-13557,"1,686.44",6 Five 2s
Nottinghamshire County Council,1111/1001,Children and Young People,CYP,Transport Related,CCA,17/11/2021,10-13558,550.00,6 Five 2s
Nottinghamshire County Council,1111/1001,Children and Young People,CYP,Transport Related,CCA,17/11/2021,10-13559,976.36,6 Five 2s
Nottinghamshire County Council,1111/1001,Children and Young People,CYP,Transport Related,CCA,17/11/2021,10-13560,510.40,6 Five 2s
Nottinghamshire County Council,1111/1001,Children and Young People,CYP,Transport Related,CCA,17/11/2021,10-13561,576.00,Ng11 Cars
Nottinghamshire County Council,1111/1001,Children and Young People,CYP,Transport Related,CCA,17/11/2021,10-13562,"3,277.44",BN Gibson Ltd
Nottinghamshire County Council,1111/1001,Children and Young People,CYP,Transport Related,CCA,17/11/2021,10-13563,"2,913.28",BN Gibson Ltd
Nottinghamshire County Council,1111/1001,Children and Young People,CYP,Transport Related,CCA,17/11/2021,10-13564,"1,232.00",AOT Coaches Nottingham LLP
Nottinghamshire County Council,1111/1001,Children and Young People,CYP,Transport Related,CCA,17/11/2021,10-13565,"3,894.00",Kettlewell Retford Ltd
Nottinghamshire County Council,1111/1001,Children and Young People,CYP,Transport Related,CCA,17/11/2021,10-13568,"3,024.00",Rushcliffe Travel Ltd
Nottinghamshire County Council,1111/1001,Children and Young People,CYP,Transport Related,CCA,17/11/2021,10-13570,"1,114.20",SM Travel Yorkshire Ltd
Nottinghamshire County Council,1111/1001,Children and Young People,CYP,Transport Related,CCA,17/11/2021,10-13590,"3,769.50",Nottingham Specialist Transport Ltd
Nottinghamshire County Council,1111/1001,Children and Young People,CYP,Transport Related,CCA,17/11/2021,10-13591,"2,332.00",Nottingham Specialist Transport Ltd
Nottinghamshire County Council,1111/1001,Children and Young People,CYP,Transport Related,CCA,17/11/2021,10-13592,"5,208.00",Nottingham Specialist Transport Ltd
Nottinghamshire County Council,1111/1001,Children and Young People,CYP,Transport Related,CCA,17/11/2021,10-13594,"1,756.00",Nottingham Specialist Transport Ltd
Nottinghamshire County Council,1111/1001,Children and Young People,CYP,Transport Related,CCA,17/11/2021,10-13595,"1,660.00",Nottingham Specialist Transport Ltd
Nottinghamshire County Council,1111/1001,Children and Young People,CYP,Transport Related,CCA,18/11/2021,10-13684,588.00,Sharpes Of Nottingham
Nottinghamshire County Council,1111/1001,Children and Young People,CYP,Transport Related,CCA,18/11/2021,10-13685,"1,644.49",Sharpes Of Nottingham
Nottinghamshire County Council,1111/1001,Children and Young People,CYP,Transport Related,CCA,18/11/2021,10-13686,"1,827.80",Southside Cars Ltd
Nottinghamshire County Council,1111/1001,Children and Young People,CYP,Transport Related,CCA,18/11/2021,10-13687,"2,444.00",Southside Cars Ltd
Nottinghamshire County Council,1111/1001,Children and Young People,CYP,Transport Related,CCA,18/11/2021,10-13688,"1,968.00",Southside Cars Ltd
Nottinghamshire County Council,1111/1001,Children and Young People,CYP,Transport Related,CCA,18/11/2021,10-13689,"3,325.00",Southside Cars Ltd
Nottinghamshire County Council,1111/1001,Children and Young People,CYP,Transport Related,CCA,18/11/2021,10-13690,"2,625.00",Southside Cars Ltd
Nottinghamshire County Council,1111/1001,Children and Young People,CYP,Transport Related,CCA,18/11/2021,10-13691,"1,328.00",Southside Cars Ltd
Nottinghamshire County Council,1111/1001,Children and Young People,CYP,Transport Related,CCA,18/11/2021,10-13692,"1,058.20",Southside Cars Ltd
Nottinghamshire County Council,1111/1001,Children and Young People,CYP,Transport Related,CCA,18/11/2021,10-13693,"1,155.00",Southside Cars Ltd
Nottinghamshire County Council,1111/1001,Children and Young People,CYP,Transport Related,CCA,18/11/2021,10-13694,992.00,Southside Cars Ltd
Nottinghamshire County Council,1111/1001,Children and Young People,CYP,Transport Related,CCA,18/11/2021,10-13695,"1,338.96",Southside Cars Ltd
Nottinghamshire County Council,1111/1001,Children and Young People,CYP,Transport Related,CCA,18/11/2021,10-13697,"5,103.00",Tiger European Uk Ltd
Nottinghamshire County Council,1111/1001,Children and Young People,CYP,Transport Related,CCA,18/11/2021,10-13701,828.00,Reliable Cars Ltd
Nottinghamshire County Council,1111/1001,Children and Young People,CYP,Transport Related,CCA,22/11/2021,10-16189,"1,116.00",Alert Cars Ltd
Nottinghamshire County Council,1111/1001,Children and Young People,CYP,Transport Related,CCA,22/11/2021,10-16190,277.20,Alert Cars Ltd
Nottinghamshire County Council,1111/1001,Children and Young People,CYP,Transport Related,CCA,22/11/2021,10-16192,"3,799.62",Taxicover Uk Ltd
Nottinghamshire County Council,1111/1001,Children and Young People,CYP,Transport Related,CCA,22/11/2021,10-16193,"2,040.00",Taxicover Uk Ltd
Nottinghamshire County Council,1111/1001,Children and Young People,CYP,Transport Related,CCA,22/11/2021,10-16194,"1,899.81",Taxicover Uk Ltd
Nottinghamshire County Council,1111/1001,Children and Young People,CYP,Transport Related,CCA,22/11/2021,10-16195,"1,078.00",Taxicover Uk Ltd
Nottinghamshire County Council,1111/1001,Children and Young People,CYP,Transport Related,CCA,22/11/2021,10-16196,"1,820.00",Taxicover Uk Ltd
Nottinghamshire County Council,1111/1001,Children and Young People,CYP,Transport Related,CCA,22/11/2021,10-16197,"16,412.40",Sharpes Of Nottingham
Nottinghamshire County Council,1111/1001,Children and Young People,CYP,Transport Related,CCA,22/11/2021,10-16198,"1,231.39",Southside Cars Ltd
Nottinghamshire County Council,1111/1001,Children and Young People,CYP,Transport Related,CCA,22/11/2021,10-16199,"1,904.00",Southside Cars Ltd
Nottinghamshire County Council,1111/1001,Children and Young People,CYP,Transport Related,CCA,22/11/2021,10-16200,556.50,Southside Cars Ltd
Nottinghamshire County Council,1111/1001,Children and Young People,CYP,Transport Related,CCA,22/11/2021,10-16201,"1,404.00",Southside Cars Ltd
Nottinghamshire County Council,1111/1001,Children and Young People,CYP,Transport Related,CCA,22/11/2021,10-16202,"2,086.24",Southside Cars Ltd
Nottinghamshire County Council,1111/1001,Children and Young People,CYP,Transport Related,CCA,22/11/2021,10-16203,"1,305.00",Southside Cars Ltd
Nottinghamshire County Council,1111/1001,Children and Young People,CYP,Transport Related,CCA,22/11/2021,10-16205,"6,341.94",Johnson Bros Tours Ltd
Nottinghamshire County Council,1111/1001,Children and Young People,CYP,Transport Related,CCA,22/11/2021,10-16209,"1,787.17",Arrow Specialised Transport Ltd
Nottinghamshire County Council,1111/1001,Children and Young People,CYP,Transport Related,CCA,22/11/2021,10-16210,"2,592.00",Arrow Specialised Transport Ltd
Nottinghamshire County Council,1111/1001,Children and Young People,CYP,Transport Related,CCA,22/11/2021,10-16217,"2,480.00",Marshalls Of Sutton On Trent Ltd
Nottinghamshire County Council,1111/1001,Children and Young People,CYP,Transport Related,CCA,22/11/2021,10-16220,"7,410.00",Wilfreda Beehive
Nottinghamshire County Council,1111/1001,Children and Young People,CYP,Transport Related,CCA,22/11/2021,10-16225,935.00,Reliable Cars Ltd
Nottinghamshire County Council,1111/1001,Children and Young People,CYP,Transport Related,CCA,23/11/2021,10-13235,"1,576.32",AJ's Travel
Nottinghamshire County Council,1111/1001,Children and Young People,CYP,Transport Related,CCA,23/11/2021,10-16521,717.84,Southside Cars Ltd
Nottinghamshire County Council,1111/1001,Children and Young People,CYP,Transport Related,CCA,23/11/2021,10-16522,935.82,Southside Cars Ltd
Nottinghamshire County Council,1111/1001,Children and Young People,CYP,Transport Related,CCA,23/11/2021,10-16523,"2,631.20",Southside Cars Ltd
Nottinghamshire County Council,1111/1001,Children and Young People,CYP,Transport Related,CCA,23/11/2021,10-16524,594.15,Southside Cars Ltd
Nottinghamshire County Council,1111/1001,Children and Young People,CYP,Transport Related,CCA,23/11/2021,10-16544,"2,131.59",Southside Cars Ltd
Nottinghamshire County Council,1111/1001,Children and Young People,CYP,Transport Related,CCA,23/11/2021,10-16545,"2,592.30",Southside Cars Ltd
Nottinghamshire County Council,1111/1001,Children and Young People,CYP,Transport Related,CCA,23/11/2021,10-16555,"2,128.96",Southside Cars Ltd
Nottinghamshire County Council,1111/1001,Children and Young People,CYP,Transport Related,CCA,24/11/2021,10-10664,"1,646.37",Fulwood Travel Ltd
Nottinghamshire County Council,1111/1001,Children and Young People,CYP,Transport Related,CCA,24/11/2021,10-11681,"1,078.00",AJ's Travel
Nottinghamshire County Council,1111/1001,Children and Young People,CYP,Transport Related,CCA,24/11/2021,10-13571,"1,688.28",24 x 7 Nottinghamshire Ltd
Nottinghamshire County Council,1111/1001,Children and Young People,CYP,Transport Related,CCA,24/11/2021,10-13572,"1,099.89",24 x 7 Nottinghamshire Ltd
Nottinghamshire County Council,1111/1001,Children and Young People,CYP,Transport Related,CCA,24/11/2021,10-13573,770.44,24 x 7 Nottinghamshire Ltd
Nottinghamshire County Council,1111/1001,Children and Young People,CYP,Transport Related,CCA,24/11/2021,10-13574,"1,270.60",24 x 7 Nottinghamshire Ltd
Nottinghamshire County Council,1111/1001,Children and Young People,CYP,Transport Related,CCA,24/11/2021,10-13575,"1,281.10",24 x 7 Nottinghamshire Ltd
Nottinghamshire County Council,1111/1001,Children and Young People,CYP,Transport Related,CCA,24/11/2021,10-13576,"1,142.46",24 x 7 Nottinghamshire Ltd
Nottinghamshire County Council,1111/1001,Children and Young People,CYP,Transport Related,CCA,24/11/2021,10-13577,935.88,24 x 7 Nottinghamshire Ltd
Nottinghamshire County Council,1111/1001,Children and Young People,CYP,Transport Related,CCA,24/11/2021,10-13578,"1,624.50",24 x 7 Nottinghamshire Ltd
Nottinghamshire County Council,1111/1001,Children and Young People,CYP,Transport Related,CCA,24/11/2021,10-13579,"1,139.16",24 x 7 Nottinghamshire Ltd
Nottinghamshire County Council,1111/1001,Children and Young People,CYP,Transport Related,CCA,24/11/2021,10-13580,"1,300.20",24 x 7 Nottinghamshire Ltd
Nottinghamshire County Council,1111/1001,Children and Young People,CYP,Transport Related,CCA,24/11/2021,10-13581,"1,403.49",24 x 7 Nottinghamshire Ltd
Nottinghamshire County Council,1111/1001,Children and Young People,CYP,Transport Related,CCA,24/11/2021,10-13582,"1,113.86",24 x 7 Nottinghamshire Ltd
Nottinghamshire County Council,1111/1001,Children and Young People,CYP,Transport Related,CCA,24/11/2021,10-13583,"1,187.45",24 x 7 Nottinghamshire Ltd
Nottinghamshire County Council,1111/1001,Children and Young People,CYP,Transport Related,CCA,24/11/2021,10-13584,"1,900.25",24 x 7 Nottinghamshire Ltd
Nottinghamshire County Council,1111/1001,Children and Young People,CYP,Transport Related,CCA,24/11/2021,10-13585,"1,780.48",24 x 7 Nottinghamshire Ltd
Nottinghamshire County Council,1111/1001,Children and Young People,CYP,Transport Related,CCA,24/11/2021,10-13586,"1,739.16",24 x 7 Nottinghamshire Ltd
Nottinghamshire County Council,1111/1001,Children and Young People,CYP,Transport Related,CCA,24/11/2021,10-13587,"1,393.10",24 x 7 Nottinghamshire Ltd
Nottinghamshire County Council,1111/1001,Children and Young People,CYP,Transport Related,CCA,24/11/2021,10-13588,783.42,24 x 7 Nottinghamshire Ltd
Nottinghamshire County Council,1111/1001,Children and Young People,CYP,Transport Related,CCA,24/11/2021,10-13589,"1,163.14",24 x 7 Nottinghamshire Ltd
Nottinghamshire County Council,1111/1001,Children and Young People,CYP,Transport Related,CCA,24/11/2021,10-16567,"2,528.14",Southside Cars Ltd
Nottinghamshire County Council,1111/1001,Children and Young People,CYP,Transport Related,CCA,24/11/2021,10-16568,"1,360.00",Fozcabs Newark Taxis
Nottinghamshire County Council,1111/1001,Children and Young People,CYP,Transport Related,CCA,24/11/2021,10-16569,"1,980.00",Fozcabs Newark Taxis
Nottinghamshire County Council,1111/1001,Children and Young People,CYP,Transport Related,CCA,24/11/2021,10-16570,"1,890.00",Fozcabs Newark Taxis
Nottinghamshire County Council,1111/1001,Children and Young People,CYP,Transport Related,CCA,24/11/2021,10-16576,"1,795.10",BN Gibson Ltd
Nottinghamshire County Council,1111/1001,Children and Young People,CYP,Transport Related,CCA,24/11/2021,10-16577,"2,601.61",BN Gibson Ltd
Nottinghamshire County Council,1111/1001,Children and Young People,CYP,Transport Related,CCA,24/11/2021,10-16578,"1,335.60",BN Gibson Ltd
Nottinghamshire County Council,1111/1001,Children and Young People,CYP,Transport Related,CCA,24/11/2021,10-16579,"2,121.00",Abacus Cars
Nottinghamshire County Council,1111/1001,Children and Young People,CYP,Transport Related,CCA,24/11/2021,10-16587,"1,920.00",Nottingham Minibuses & Coaches
Nottinghamshire County Council,1111/1001,Children and Young People,CYP,Transport Related,CCA,24/11/2021,10-16588,"1,108.14",Nottingham Minibuses & Coaches
Nottinghamshire County Council,1111/1001,Children and Young People,CYP,Transport Related,CCA,24/11/2021,10-16594,"2,280.00",Home James Cars
Nottinghamshire County Council,1111/1001,Children and Young People,CYP,Transport Related,CCA,24/11/2021,10-16677,"1,375.00",Central Cars Nottm Ltd
Nottinghamshire County Council,1111/1001,Children and Young People,CYP,Transport Related,CCA,24/11/2021,10-16679,"1,498.00",Skills Motor Coaches Ltd
Nottinghamshire County Council,1111/1001,Children and Young People,CYP,Transport Related,CCA,24/11/2021,10-16680,"1,991.00",Skills Motor Coaches Ltd
Nottinghamshire County Council,1111/1001,Children and Young People,CYP,Transport Related,CCA,24/11/2021,10-16681,"1,991.00",Skills Motor Coaches Ltd
Nottinghamshire County Council,1111/1001,Children and Young People,CYP,Transport Related,CCA,24/11/2021,10-16682,"1,868.00",Skills Motor Coaches Ltd
Nottinghamshire County Council,1111/1001,Children and Young People,CYP,Transport Related,CCA,24/11/2021,10-16683,"2,126.00",Skills Motor Coaches Ltd
Nottinghamshire County Council,1111/1001,Children and Young People,CYP,Transport Related,CCA,24/11/2021,10-16684,"1,654.20",Silverdale Tours Nottm Ltd
Nottinghamshire County Council,1111/1001,Children and Young People,CYP,Transport Related,CCA,24/11/2021,10-16685,"1,874.00",Silverdale Tours Nottm Ltd
Nottinghamshire County Council,1111/1001,Children and Young People,CYP,Transport Related,CCA,24/11/2021,10-16686,"1,870.00",Silverdale Tours Nottm Ltd
Nottinghamshire County Council,1111/1001,Children and Young People,CYP,Transport Related,CCA,24/11/2021,10-16691,"4,999.50",Travel Wright Ltd
Nottinghamshire County Council,1111/1001,Children and Young People,CYP,Transport Related,CCA,24/11/2021,10-16694,"1,332.80",SM Travel Yorkshire Ltd
Nottinghamshire County Council,1111/1001,Children and Young People,CYP,Transport Related,CCA,26/11/2021,10-17090,"1,851.00",Alpha Cars
Nottinghamshire County Council,1111/1001,Children and Young People,CYP,Transport Related,CCA,26/11/2021,10-17091,"1,015.50",Alpha Cars
Nottinghamshire County Council,1111/1001,Children and Young People,CYP,Transport Related,CCA,26/11/2021,10-17093,"1,413.62",Alpha Cars
Nottinghamshire County Council,1111/1001,Children and Young People,CYP,Transport Related,CCA,26/11/2021,10-17097,690.00,Galaxy Cabs Ltd
Nottinghamshire County Council,1111/1001,Children and Young People,CYP,Transport Related,CCA,26/11/2021,10-17098,"1,128.00",D G Private Hire Ltd
Nottinghamshire County Council,1111/1001,Children and Young People,CYP,Transport Related,CCA,26/11/2021,10-17100,"2,452.50",SM Travel Yorkshire Ltd
Nottinghamshire County Council,1111/1001,Children and Young People,CYP,Transport Related,CCA,26/11/2021,10-17102,"1,404.16",24 x 7 Nottinghamshire Ltd
Nottinghamshire County Council,1111/1001,Children and Young People,CYP,Transport Related,CCA,26/11/2021,10-17103,"2,057.70",24 x 7 Nottinghamshire Ltd
Nottinghamshire County Council,1111/1001,Children and Young People,CYP,Transport Related,CCA,26/11/2021,10-17104,"1,242.12",24 x 7 Nottinghamshire Ltd
Nottinghamshire County Council,1111/1001,Children and Young People,CYP,Transport Related,CCA,30/11/2021,10-17751,"5,715.73",Via East Midlands Ltd
Nottinghamshire County Council,1111/1001,Children and Young People,CYP,Transport Related,CCA,30/11/2021,10-17793,"2,901.87",F4Control Ltd (t/a First4care)
Nottinghamshire County Council,1111/1001,Children and Young People,CYP,Transport Related,CCA,30/11/2021,10-17794,"3,020.00",Johnson Bros Tours Ltd
Nottinghamshire County Council,1111/1001,Children and Young People,CYP,Transport Related,CCA,30/11/2021,10-17795,"2,964.50",F4Control Ltd (t/a First4care)
Nottinghamshire County Council,1111/1001,Children and Young People,CYP,Transport Related,CCA,30/11/2021,10-17796,"3,113.00",F4Control Ltd (t/a First4care)
Nottinghamshire County Council,1111/1001,Children and Young People,CYP,Transport Related,CCA,30/11/2021,10-17797,"1,155.00",Skills Motor Coaches Ltd
Nottinghamshire County Council,1111/1001,Children and Young People,CYP,Transport Related,CCA,30/11/2021,10-17800,"5,399.25",Freeway Coaches Ltd
Nottinghamshire County Council,1111/1001,Children and Young People,CYP,Transport Related,CCA,30/11/2021,10-17801,"1,565.00",Freeway Coaches Ltd
Nottinghamshire County Council,1111/1001,Children and Young People,CYP,Transport Related,CCA,30/11/2021,10-17802,990.00,Freeway Coaches Ltd
Nottinghamshire County Council,1111/1001,Children and Young People,CYP,Transport Related,CCA,30/11/2021,10-17803,"4,066.00",Freeway Coaches Ltd
Nottinghamshire County Council,1111/1001,Children and Young People,CYP,Transport Related,CCA,30/11/2021,10-17804,"2,354.00",Freeway Coaches Ltd
Nottinghamshire County Council,1111/1001,Children and Young People,CYP,Transport Related,CDA,02/11/2021,10-10417,"1,540.00",Nottingham Minibuses & Coaches
Nottinghamshire County Council,1111/1001,Children and Young People,CYP,Transport Related,CDA,02/11/2021,10-10418,"1,430.00",Nottingham Minibuses & Coaches
Nottinghamshire County Council,1111/1001,Children and Young People,CYP,Transport Related,CDA,02/11/2021,10-10419,"1,045.00",Nottingham Minibuses & Coaches
Nottinghamshire County Council,1111/1001,Children and Young People,CYP,Transport Related,CDA,02/11/2021,10-10420,"1,375.00",Nottingham Minibuses & Coaches
Nottinghamshire County Council,1111/1001,Children and Young People,CYP,Transport Related,CDA,02/11/2021,10-10440,174.55,Millennium Travel (Mansfield) Ltd
Nottinghamshire County Council,1111/1001,Children and Young People,CYP,Transport Related,CDA,03/11/2021,10-10520,"1,262.80",Johnson Bros Tours Ltd
Nottinghamshire County Council,1111/1001,Children and Young People,CYP,Transport Related,CDA,03/11/2021,10-10560,"3,316.50",Marshalls Of Sutton On Trent Ltd
Nottinghamshire County Council,1111/1001,Children and Young People,CYP,Transport Related,CDA,04/11/2021,10-10603,"1,416.00",Galaxy Cabs Ltd
Nottinghamshire County Council,1111/1001,Children and Young People,CYP,Transport Related,CDA,04/11/2021,10-10635,"3,766.40",Paul S Winson Coaches
Nottinghamshire County Council,1111/1001,Children and Young People,CYP,Transport Related,CDA,04/11/2021,10-10638,"2,700.00",C W Moxon Ltd
Nottinghamshire County Council,1111/1001,Children and Young People,CYP,Transport Related,CDA,04/11/2021,10-10639,"2,160.00",C W Moxon Ltd
Nottinghamshire County Council,1111/1001,Children and Young People,CYP,Transport Related,CDA,04/11/2021,10-10660,960.00,Gxpress Cars
Nottinghamshire County Council,1111/1001,Children and Young People,CYP,Transport Related,CDA,08/11/2021,10-11281,"1,644.50",Rushcliffe Travel Ltd
Nottinghamshire County Council,1111/1001,Children and Young People,CYP,Transport Related,CDA,09/11/2021,10-11581,"1,696.20",Southside Cars Ltd
Nottinghamshire County Council,1111/1001,Children and Young People,CYP,Transport Related,CDA,09/11/2021,10-11676,681.10,SM Travel Yorkshire Ltd
Nottinghamshire County Council,1111/1001,Children and Young People,CYP,Transport Related,CDA,11/11/2021,10-12819,467.20,D G Private Hire Ltd
Nottinghamshire County Council,1111/1001,Children and Young People,CYP,Transport Related,CDA,11/11/2021,10-12915,"2,800.00",Nottingham Minibuses & Coaches
Nottinghamshire County Council,1111/1001,Children and Young People,CYP,Transport Related,CDA,11/11/2021,10-12924,657.25,Ace Cars & Minibuses Ltd
Nottinghamshire County Council,1111/1001,Children and Young People,CYP,Transport Related,CDA,11/11/2021,10-12926,"1,254.75",Ace Cars & Minibuses Ltd
Nottinghamshire County Council,1111/1001,Children and Young People,CYP,Transport Related,CDA,16/11/2021,10-13194,"2,031.95",Southside Cars Ltd
Nottinghamshire County Council,1111/1001,Children and Young People,CYP,Transport Related,CDA,16/11/2021,10-13201,"3,192.52",AOT Coaches Nottingham LLP
Nottinghamshire County Council,1111/1001,Children and Young People,CYP,Transport Related,CDA,17/11/2021,10-13410,"1,109.25",Inspire Care (Uk) Ltd
Nottinghamshire County Council,1111/1001,Children and Young People,CYP,Transport Related,CDA,17/11/2021,10-13569,"1,865.70",SM Travel Yorkshire Ltd
Nottinghamshire County Council,1111/1001,Children and Young People,CYP,Transport Related,CDA,22/11/2021,10-16206,"2,464.00",Johnson Bros Tours Ltd
Nottinghamshire County Council,1111/1001,Children and Young People,CYP,Transport Related,CDA,22/11/2021,10-16207,"1,045.00",Johnson Bros Tours Ltd
Nottinghamshire County Council,1111/1001,Children and Young People,CYP,Transport Related,CDA,22/11/2021,10-16208,"3,575.00",Johnson Bros Tours Ltd
Nottinghamshire County Council,1111/1001,Children and Young People,CYP,Transport Related,CDA,24/11/2021,10-16580,"2,257.50",Nottingham Minibuses & Coaches
Nottinghamshire County Council,1111/1001,Children and Young People,CYP,Transport Related,CDA,24/11/2021,10-16581,"3,990.00",Nottingham Minibuses & Coaches
Nottinghamshire County Council,1111/1001,Children and Young People,CYP,Transport Related,CDA,24/11/2021,10-16582,"16,012.50",Nottingham Minibuses & Coaches
Nottinghamshire County Council,1111/1001,Children and Young People,CYP,Transport Related,CDA,24/11/2021,10-16583,"1,182.50",Nottingham Minibuses & Coaches
Nottinghamshire County Council,1111/1001,Children and Young People,CYP,Transport Related,CDA,24/11/2021,10-16584,"2,262.40",Nottingham Minibuses & Coaches
Nottinghamshire County Council,1111/1001,Children and Young People,CYP,Transport Related,CDA,24/11/2021,10-16585,"3,360.00",Nottingham Minibuses & Coaches
Nottinghamshire County Council,1111/1001,Children and Young People,CYP,Transport Related,CDA,24/11/2021,10-16586,"2,080.00",Nottingham Minibuses & Coaches
Nottinghamshire County Council,1111/1001,Children and Young People,CYP,Transport Related,CDA,24/11/2021,10-16589,"8,387.50",Nottingham Minibuses & Coaches
Nottinghamshire County Council,1111/1001,Children and Young People,CYP,Transport Related,CDA,24/11/2021,10-16590,"14,760.00",C W Moxon Ltd
Nottinghamshire County Council,1111/1001,Children and Young People,CYP,Transport Related,CDA,24/11/2021,10-16591,"5,160.00",C W Moxon Ltd
Nottinghamshire County Council,1111/1001,Children and Young People,CYP,Transport Related,CDA,24/11/2021,10-16592,"8,118.00",C W Moxon Ltd
Nottinghamshire County Council,1111/1001,Children and Young People,CYP,Transport Related,CDA,24/11/2021,10-16593,"2,838.00",C W Moxon Ltd
Nottinghamshire County Council,1111/1001,Children and Young People,CYP,Transport Related,CDA,24/11/2021,10-16687,"1,650.00",Silverdale Tours Nottm Ltd
Nottinghamshire County Council,1111/1001,Children and Young People,CYP,Transport Related,CDA,24/11/2021,10-16688,"1,650.00",Silverdale Tours Nottm Ltd
Nottinghamshire County Council,1111/1001,Children and Young People,CYP,Transport Related,CDA,24/11/2021,10-16689,"1,650.00",Silverdale Tours Nottm Ltd
Nottinghamshire County Council,1111/1001,Children and Young People,CYP,Transport Related,CDA,24/11/2021,10-16690,"1,650.00",Silverdale Tours Nottm Ltd
Nottinghamshire County Council,1111/1001,Children and Young People,CYP,Transport Related,CDA,24/11/2021,10-16693,"1,535.40",SM Travel Yorkshire Ltd
Nottinghamshire County Council,1111/1001,Children and Young People,CYP,Transport Related,CDA,26/11/2021,10-17099,"1,435.14",Cloud Cars Ltd
Nottinghamshire County Council,1111/1001,Children and Young People,CYP,Transport Related,CDA,26/11/2021,10-17100,817.50,SM Travel Yorkshire Ltd
Nottinghamshire County Council,1111/1001,Children and Young People,CYP,Transport Related,CEA,02/11/2021,10-10387,"2,923.90",Reed Employment Plc
Nottinghamshire County Council,1111/1001,Children and Young People,CYP,Transport Related,CEA,22/11/2021,10-16231,"2,668.11",Reed Employment Plc
Nottinghamshire County Council,1111/1001,Children and Young People,CYP,Transport Related,CEA,22/11/2021,10-16236,"2,450.12",Reed Employment Plc
Nottinghamshire County Council,1111/1001,Children and Young People,CYP,Transport Related,CEA,22/11/2021,10-16241,"2,693.67",Reed Employment Plc
Nottinghamshire County Council,1111/1001,Children and Young People,CYP,Transport Related,CEA,29/11/2021,10-17390,"2,704.94",Reed Employment Plc
Nottinghamshire County Council,1111/1001,Children and Young People,CYP,Supplies & Services,DBA,02/11/2021,10-10384,212.96,M Maloney Country Butchers & B Ltd
Nottinghamshire County Council,1111/1001,Children and Young People,CYP,Supplies & Services,DBA,03/11/2021,10-10027,"1,471.42",Brake Bros Ltd
Nottinghamshire County Council,1111/1001,Children and Young People,CYP,Supplies & Services,DBA,04/11/2021,10-10582,"1,617.06",John Palin (Wholesale) Ltd
Nottinghamshire County Council,1111/1001,Children and Young People,CYP,Supplies & Services,DBA,10/11/2021,10-12720,312.21,M Maloney Country Butchers & B Ltd
Nottinghamshire County Council,1111/1001,Children and Young People,CYP,Supplies & Services,DBA,11/11/2021,10-12973,"18,043.46",John Palin (Wholesale) Ltd
Nottinghamshire County Council,1111/1001,Children and Young People,CYP,Supplies & Services,DBA,12/11/2021,10-12976,244.95,M Maloney Country Butchers & B Ltd
Nottinghamshire County Council,1111/1001,Children and Young People,CYP,Supplies & Services,DBA,18/11/2021,10-10719,418.65,Brake Bros Ltd
Nottinghamshire County Council,1111/1001,Children and Young People,CYP,Supplies & Services,DBA,19/11/2021,10-13715,230.87,M Maloney Country Butchers & B Ltd
Nottinghamshire County Council,1111/1001,Children and Young People,CYP,Supplies & Services,DBA,24/11/2021,10-10587,635.64,Brake Bros Ltd
Nottinghamshire County Council,1111/1001,Children and Young People,CYP,Supplies & Services,DBA,24/11/2021,10-16597,305.70,M Maloney Country Butchers & B Ltd
Nottinghamshire County Council,1111/1001,Children and Young People,CYP,Supplies & Services,DEA,01/11/2021,10-17826,"1,275.00",Ragdoll Training & Therapeutic Serv
Nottinghamshire County Council,1111/1001,Children and Young People,CYP,Supplies & Services,DEA,01/11/2021,10-17829,"1,445.77",Family Focused Ltd
Nottinghamshire County Council,1111/1001,Children and Young People,CYP,Supplies & Services,DEA,01/11/2021,10-17831,650.00,[Redacted]
Nottinghamshire County Council,1111/1001,Children and Young People,CYP,Supplies & Services,DEA,01/11/2021,10-17832,621.00,Derbyshire Psychology
Nottinghamshire County Council,1111/1001,Children and Young People,CYP,Supplies & Services,DEA,03/11/2021,10-17828,"1,173.00",Playful Family Psychotherapy Ltd
Nottinghamshire County Council,1111/1001,Children and Young People,CYP,Supplies & Services,DEA,04/11/2021,10-17821,"1,100.00",Clive Harrison Consultancy Ltd
Nottinghamshire County Council,1111/1001,Children and Young People,CYP,Supplies & Services,DEA,08/11/2021,10-11565,"9,270.00",Cambridge Education / Mott Macdonal
Nottinghamshire County Council,1111/1001,Children and Young People,CYP,Supplies & Services,DEA,10/11/2021,10-12794,"7,092.00",Phs Group Plc
Nottinghamshire County Council,1111/1001,Children and Young People,CYP,Supplies & Services,DEA,11/11/2021,10-12967,946.69,Phs Group Plc
Nottinghamshire County Council,1111/1001,Children and Young People,CYP,Supplies & Services,DEA,17/11/2021,10-13409,"1,950.00",Clinical Partners Ltd
Nottinghamshire County Council,1111/1001,Children and Young People,CYP,Supplies & Services,DEA,22/11/2021,10-10036,"1,175.00",Cambridge Education / Mott Macdonal
Nottinghamshire County Council,1111/1001,Children and Young People,CYP,Supplies & Services,DEA,22/11/2021,10-10037,"1,788.75",Cambridge Education / Mott Macdonal
Nottinghamshire County Council,1111/1001,Children and Young People,CYP,Supplies & Services,DFA,03/11/2021,10-10514,843.00,Lantec Services Ltd
Nottinghamshire County Council,1111/1001,Children and Young People,CYP,Supplies & Services,DGA,17/11/2021,10-13408,"1,314.24",Foster Care Associates Ltd
Nottinghamshire County Council,1111/1001,Children and Young People,CYP,Supplies & Services,DKA,03/11/2021,10-10506,"2,000.00",Norman Galloway Ltd
Nottinghamshire County Council,1111/1001,Children and Young People,CYP,Supplies & Services,DKA,03/11/2021,10-10507,"1,050.00",[Redacted]
Nottinghamshire County Council,1111/1001,Children and Young People,CYP,Supplies & Services,DKA,03/11/2021,10-10510,523.57,Operation Diversity Ltd
Nottinghamshire County Council,1111/1001,Children and Young People,CYP,Supplies & Services,DKA,03/11/2021,10-10511,"2,700.00",[Redacted]
Nottinghamshire County Council,1111/1001,Children and Young People,CYP,Supplies & Services,DKA,09/11/2021,10-12711,620.00,[Redacted]
Nottinghamshire County Council,1111/1001,Children and Young People,CYP,Supplies & Services,DKA,10/11/2021,10-12713,"2,000.00",Norman Galloway Ltd
Nottinghamshire County Council,1111/1001,Children and Young People,CYP,Supplies & Services,DKA,17/11/2021,10-13401,550.00,Mansfield Property Services LtdT/A
Nottinghamshire County Council,1111/1001,Children and Young People,CYP,Supplies & Services,DKA,17/11/2021,10-13402,978.24,Hits Homes Trust
Nottinghamshire County Council,1111/1001,Children and Young People,CYP,Supplies & Services,DKA,17/11/2021,10-13403,650.00,[Redacted]
Nottinghamshire County Council,1111/1001,Children and Young People,CYP,Supplies & Services,DKA,17/11/2021,10-13404,438.95,Brightside Care Solutions Ltd
Nottinghamshire County Council,1111/1001,Children and Young People,CYP,Supplies & Services,DKA,17/11/2021,10-13406,"4,418.31",Boston Womens Aid
Nottinghamshire County Council,1111/1001,Children and Young People,CYP,Supplies & Services,DKA,17/11/2021,10-13407,"1,500.00",[Redacted]
Nottinghamshire County Council,1111/1001,Children and Young People,CYP,Supplies & Services,DKA,23/11/2021,10-16529,"1,000.00",South Locality Youth Service
Nottinghamshire County Council,1111/1001,Children and Young People,CYP,Supplies & Services,DKA,24/11/2021,10-16676,"1,190.00",Woo Properties Ltd
Nottinghamshire County Council,1111/1001,Children and Young People,CYP,Third Party Payments,EBA,01/11/2021,10-17825,"58,400.00",Nottm Community Housing Assoc (Head
Nottinghamshire County Council,1111/1001,Children and Young People,CYP,Third Party Payments,EDA,03/11/2021,10-10512,600.00,Kimberley School Academy
Nottinghamshire County Council,1111/1001,Children and Young People,CYP,Third Party Payments,EDA,04/11/2021,10-10573,900.00,Yeoman Park Academy
Nottinghamshire County Council,1111/1001,Children and Young People,CYP,Third Party Payments,EDA,04/11/2021,10-10574,833.33,Yeoman Park Academy
Nottinghamshire County Council,1111/1001,Children and Young People,CYP,Third Party Payments,EDA,04/11/2021,10-10575,"1,666.67",Foxwood Academy
Nottinghamshire County Council,1111/1001,Children and Young People,CYP,Third Party Payments,EDA,04/11/2021,10-10576,"4,166.67",Beech Academy
Nottinghamshire County Council,1111/1001,Children and Young People,CYP,Third Party Payments,EDA,04/11/2021,10-10577,"89,786.83",Beech Academy
Nottinghamshire County Council,1111/1001,Children and Young People,CYP,Third Party Payments,EDA,04/11/2021,10-10578,833.33,Beech Academy
Nottinghamshire County Council,1111/1001,Children and Young People,CYP,Third Party Payments,EDA,04/11/2021,10-10579,"55,563.25",Redgate Primary Academy
Nottinghamshire County Council,1111/1001,Children and Young People,CYP,Third Party Payments,EDA,04/11/2021,10-10590,"132,076.67",Harlow Academy (Evolve Trust)
Nottinghamshire County Council,1111/1001,Children and Young People,CYP,Third Party Payments,EDA,04/11/2021,10-10591,"124,413.58",Yeoman Park Academy
Nottinghamshire County Council,1111/1001,Children and Young People,CYP,Third Party Payments,EDA,04/11/2021,10-10592,"106,010.25",Foxwood Academy
Nottinghamshire County Council,1111/1001,Children and Young People,CYP,Third Party Payments,EDA,05/11/2021,10-10679,"9,999.00",Quarrydale Academy
Nottinghamshire County Council,1111/1001,Children and Young People,CYP,Third Party Payments,EDA,10/11/2021,10-10689,"3,460.00",Leverton C Of E Academy
Nottinghamshire County Council,1111/1001,Children and Young People,CYP,Third Party Payments,EDA,11/11/2021,10-12955,"42,088.82",Carlton Le Willows Academy
Nottinghamshire County Council,1111/1001,Children and Young People,CYP,Third Party Payments,EDA,15/11/2021,10-12982,"6,346.00",Chetwynd Primary Academy (Spencer A
Nottinghamshire County Council,1111/1001,Children and Young People,CYP,Third Party Payments,EDA,22/11/2021,10-11315,"5,616.41",Hall Park Academy
Nottinghamshire County Council,1111/1001,Children and Young People,CYP,Third Party Payments,EDA,22/11/2021,10-11316,"44,194.85",Hall Park Academy
Nottinghamshire County Council,1111/1001,Children and Young People,CYP,Third Party Payments,EDA,22/11/2021,10-11317,"4,558.08",Colonel Frank Seeley Academy
Nottinghamshire County Council,1111/1001,Children and Young People,CYP,Third Party Payments,EDA,22/11/2021,10-11318,"21,781.28",Colonel Frank Seeley Academy
Nottinghamshire County Council,1111/1001,Children and Young People,CYP,Third Party Payments,EDA,22/11/2021,10-11319,"4,136.16",South Nottinghamshire Academy
Nottinghamshire County Council,1111/1001,Children and Young People,CYP,Third Party Payments,EDA,22/11/2021,10-11320,"47,077.19",South Nottinghamshire Academy
Nottinghamshire County Council,1111/1001,Children and Young People,CYP,Third Party Payments,EDA,22/11/2021,10-11321,"29,242.88",Redhill Academy
Nottinghamshire County Council,1111/1001,Children and Young People,CYP,Third Party Payments,EDA,22/11/2021,10-11322,"8,874.45",Redhill Academy
Nottinghamshire County Council,1111/1001,Children and Young People,CYP,Third Party Payments,EDA,25/11/2021,10-11314,"49,693.81",Kirkby College
Nottinghamshire County Council,1111/1001,Children and Young People,CYP,Third Party Payments,EDA,25/11/2021,10-12956,"3,762.25",Kirkby College
Nottinghamshire County Council,1111/1001,Children and Young People,CYP,Third Party Payments,EDA,26/11/2021,10-10674,"19,332.00",Samworth Church Academy
Nottinghamshire County Council,1111/1001,Children and Young People,CYP,Third Party Payments,EDA,26/11/2021,10-10675,"19,538.00",John Clifford School
Nottinghamshire County Council,1111/1001,Children and Young People,CYP,Third Party Payments,EDA,26/11/2021,10-10676,"6,920.00",Thrumpton Primary Academy
Nottinghamshire County Council,1111/1001,Children and Young People,CYP,Third Party Payments,EDA,26/11/2021,10-10677,"10,380.00",Retford Oaks Academy
Nottinghamshire County Council,1111/1001,Children and Young People,CYP,Third Party Payments,EDA,26/11/2021,10-10678,"6,960.00",Brookside Primary School (Academy)
Nottinghamshire County Council,1111/1001,Children and Young People,CYP,Third Party Payments,EDA,26/11/2021,10-10680,"28,852.00",Good Shephard Prim Catholic Vol Aca
Nottinghamshire County Council,1111/1001,Children and Young People,CYP,Third Party Payments,EDA,26/11/2021,10-10682,"16,369.00",Sacred Heart Catholic Voluntary Aca
Nottinghamshire County Council,1111/1001,Children and Young People,CYP,Third Party Payments,EDA,26/11/2021,10-10683,"23,518.00",Holy Cross Catholic Voluntary Acade
Nottinghamshire County Council,1111/1001,Children and Young People,CYP,Third Party Payments,EDA,26/11/2021,10-10684,"62,006.00",Christ The King Catholic Voluntary
Nottinghamshire County Council,1111/1001,Children and Young People,CYP,Third Party Payments,EDA,26/11/2021,10-10685,"4,000.00",Sparken Hill Academy
Nottinghamshire County Council,1111/1001,Children and Young People,CYP,Third Party Payments,EDA,26/11/2021,10-10686,"24,545.00",Edwalton Primary (Academy)(Flying H
Nottinghamshire County Council,1111/1001,Children and Young People,CYP,Third Party Payments,EDA,26/11/2021,10-10687,"20,312.00",Abbey Road Primary School Academy
Nottinghamshire County Council,1111/1001,Children and Young People,CYP,Third Party Payments,EDA,26/11/2021,10-10688,"4,844.00",St Swithuns C of E Primary Academy
Nottinghamshire County Council,1111/1001,Children and Young People,CYP,Third Party Payments,EDA,26/11/2021,10-10690,"8,304.00",Bracken Lane Primary Academy
Nottinghamshire County Council,1111/1001,Children and Young People,CYP,Third Party Payments,EDA,26/11/2021,10-10691,"17,331.00",Oak Tree Lane Primary Academy
Nottinghamshire County Council,1111/1001,Children and Young People,CYP,Third Party Payments,EDA,26/11/2021,10-10692,"7,333.00",Abbey Primary Academy(Believe Acade
Nottinghamshire County Council,1111/1001,Children and Young People,CYP,Third Party Payments,EDA,26/11/2021,10-10694,"4,000.00",Worksop Priory CE Primary Academy
Nottinghamshire County Council,1111/1001,Children and Young People,CYP,Third Party Payments,EDA,26/11/2021,10-10695,"7,960.00",Langold Dyscarr Community Academy
Nottinghamshire County Council,1111/1001,Children and Young People,CYP,Third Party Payments,EDA,26/11/2021,10-10696,"2,680.00",Kingston Park Academy
Nottinghamshire County Council,1111/1001,Children and Young People,CYP,Third Party Payments,EDA,26/11/2021,10-10697,"3,320.00",Haggonfields Primary Academy
Nottinghamshire County Council,1111/1001,Children and Young People,CYP,Third Party Payments,EDA,26/11/2021,10-10698,"3,000.00",Barnby Road Academy Prim & Nursery
Nottinghamshire County Council,1111/1001,Children and Young People,CYP,Third Party Payments,EDA,26/11/2021,10-10699,"7,808.00",Selston High Academy(Two Counties T
Nottinghamshire County Council,1111/1001,Children and Young People,CYP,Third Party Payments,EDA,26/11/2021,10-10700,"5,000.00",Christ The King Catholic Voluntary
Nottinghamshire County Council,1111/1001,Children and Young People,CYP,Third Party Payments,EDA,26/11/2021,10-10701,"46,652.00",Kirkby College
Nottinghamshire County Council,1111/1001,Children and Young People,CYP,Third Party Payments,EDA,26/11/2021,10-10702,"15,655.00",East Leake Academy
Nottinghamshire County Council,1111/1001,Children and Young People,CYP,Third Party Payments,EDA,26/11/2021,10-10703,"1,980.00",St Johns C of E Academy
Nottinghamshire County Council,1111/1001,Children and Young People,CYP,Third Party Payments,EDA,26/11/2021,10-10704,"6,841.00",Flying High Trust Beeston Fields Pr
Nottinghamshire County Council,1111/1001,Children and Young People,CYP,Third Party Payments,EDA,26/11/2021,10-10705,"7,217.00",Alderman Pounder Academy(Flying Hig
Nottinghamshire County Council,1111/1001,Children and Young People,CYP,Third Party Payments,EDA,26/11/2021,10-10706,"4,680.00",Alderman White School
Nottinghamshire County Council,1111/1001,Children and Young People,CYP,Third Party Payments,EDA,26/11/2021,10-10707,572.00,Rosecliffe Spencer Academy
Nottinghamshire County Council,1111/1001,Children and Young People,CYP,Third Party Payments,EDA,26/11/2021,10-10709,"45,921.00",Rushcliffe School (Spencer Academie
Nottinghamshire County Council,1111/1001,Children and Young People,CYP,Third Party Payments,EDA,26/11/2021,10-10710,"5,886.00",Rushcliffe School (Spencer Academie
Nottinghamshire County Council,1111/1001,Children and Young People,CYP,Third Party Payments,EDA,26/11/2021,10-11300,"4,179.00",Sunnyside Spencer Academy (Spencer
Nottinghamshire County Council,1111/1001,Children and Young People,CYP,Third Party Payments,EDA,26/11/2021,10-11301,723.00,Rushcliffe School (Spencer Academie
Nottinghamshire County Council,1111/1001,Children and Young People,CYP,Third Party Payments,EDA,26/11/2021,10-11302,"4,047.00",Fairfield Primary Academy (Spencer
Nottinghamshire County Council,1111/1001,Children and Young People,CYP,Third Party Payments,EDA,26/11/2021,10-16728,"2,632.50",Hucknall Flying High Academy
Nottinghamshire County Council,1111/1001,Children and Young People,CYP,Third Party Payments,EDA,26/11/2021,10-16729,"13,500.00",Holgate Academy
Nottinghamshire County Council,1111/1001,Children and Young People,CYP,Third Party Payments,EDA,29/11/2021,10-10513,555.00,South Wolds Academy & Sixth Form
Nottinghamshire County Council,1111/1001,Children and Young People,CYP,Third Party Payments,EDA,30/11/2021,10-17717,"1,000.00",Mount C of E Primary School
Nottinghamshire County Council,1111/1001,Children and Young People,CYP,Third Party Payments,EDA,30/11/2021,10-17718,"1,715.00",Lowes Wong Infants (Academy)
Nottinghamshire County Council,1111/1001,Children and Young People,CYP,Third Party Payments,EDA,30/11/2021,10-17719,"3,269.00",George Spencer Academy
Nottinghamshire County Council,1111/1001,Children and Young People,CYP,Third Party Payments,EFA,01/11/2021,10-17811,830.00,Lincoln Minster School
Nottinghamshire County Council,1111/1001,Children and Young People,CYP,Third Party Payments,EFA,01/11/2021,10-17812,"11,290.50",Lincoln Minster School
Nottinghamshire County Council,1111/1001,Children and Young People,CYP,Third Party Payments,EFA,01/11/2021,10-17830,848.98,Teaching Personnel Ltd
Nottinghamshire County Council,1111/1001,Children and Young People,CYP,Third Party Payments,EFA,09/11/2021,10-11567,"1,883.80",Queen Elizabeth's Academy
Nottinghamshire County Council,1111/1001,Children and Young People,CYP,Third Party Payments,EFA,10/11/2021,10-12716,700.00,Changing Carpets
Nottinghamshire County Council,1111/1001,Children and Young People,CYP,Third Party Payments,EFA,17/11/2021,10-13404,202.00,Brightside Care Solutions Ltd
Nottinghamshire County Council,1111/1001,Children and Young People,CYP,Third Party Payments,EGA,01/11/2021,10-17809,"3,663.93",Thornbury Community Services
Nottinghamshire County Council,1111/1001,Children and Young People,CYP,Third Party Payments,EGA,03/11/2021,10-10509,700.00,[Redacted]
Nottinghamshire County Council,1111/1001,Children and Young People,CYP,Third Party Payments,EGA,04/11/2021,10-17820,"1,462.50",Apollo Home Healthcare Ltd
Nottinghamshire County Council,1111/1001,Children and Young People,CYP,Third Party Payments,EGA,04/11/2021,10-17824,"7,550.00",Hexagon Care Services Ltd
Nottinghamshire County Council,1111/1001,Children and Young People,CYP,Third Party Payments,EGA,10/11/2021,10-12713,"1,225.00",Norman Galloway Ltd
Nottinghamshire County Council,1111/1001,Children and Young People,CYP,Third Party Payments,EGA,19/11/2021,10-13724,"4,186.35",Whitehouse Day Nursery
Nottinghamshire County Council,1111/1001,Children and Young People,CYP,Third Party Payments,EGA,19/11/2021,10-13725,"5,208.42",Rainbows Day Nursery
Nottinghamshire County Council,1111/1001,Children and Young People,CYP,Third Party Payments,EGA,19/11/2021,10-13726,"4,570.86",Whitehouse Day Nursery
Nottinghamshire County Council,1111/1001,Children and Young People,CYP,Third Party Payments,EGA,25/11/2021,10-16714,840.45,Railway Children Playgroup
Nottinghamshire County Council,1111/1001,Children and Young People,CYP,Third Party Payments,EGA,26/11/2021,10-16715,615.00,Alphabet House Day Nurseries Ltd-Lo
Nottinghamshire County Council,1111/1001,Children and Young People,CYP,Third Party Payments,EGA,26/11/2021,10-16716,615.00,Brooklyn Day Nursery
Nottinghamshire County Council,1111/1001,Children and Young People,CYP,Third Party Payments,EGA,26/11/2021,10-16717,615.00,Pippins Pre-School
Nottinghamshire County Council,1111/1001,Children and Young People,CYP,Third Party Payments,EGA,26/11/2021,10-16718,615.00,Bircotes Pre-School
Nottinghamshire County Council,1111/1001,Children and Young People,CYP,Third Party Payments,EGA,26/11/2021,10-16719,615.00,Ryan House Day Nursery
Nottinghamshire County Council,1111/1001,Children and Young People,CYP,Transfer Payments,GAA,03/11/2021,10-10508,500.00,Walton & Allen Lettings Ltd
Nottinghamshire County Council,1111/1001,Children and Young People,CYP,Transfer Payments,GAA,10/11/2021,10-12715,"1,059.09",Broxtowe Borough Council
Nottinghamshire County Council,1111/1001,Children and Young People,CYP,Transfer Payments,GAA,10/11/2021,10-12717,"6,930.00",Sheffield Hallam University
Nottinghamshire County Council,1111/1001,Children and Young People,CYP,Transfer Payments,GAA,10/11/2021,10-12718,"1,300.00",Villa Park Estates
Nottinghamshire County Council,1111/1001,Children and Young People,CYP,Support Services,HAA,11/11/2021,10-12918,840.00,Nottingham Minibuses & Coaches
Nottinghamshire County Council,1111/1001,Children and Young People,CYP,Income,JHA,03/11/2021,10-10009,600.00,Not assigned
Nottinghamshire County Council,1111/1001,Children and Young People,CYP,Income,JHA,12/11/2021,10-10018,723.00,Not assigned
Nottinghamshire County Council,1111/1001,Adult Social Care and Health,ASCH,Premises Related,BAA,01/11/2021,10-10035,869.38,Steven Pay
Nottinghamshire County Council,1111/1001,Adult Social Care and Health,ASCH,Premises Related,BAA,05/11/2021,10-10722,674.00,Harveys Home & Garden Maintenance
Nottinghamshire County Council,1111/1001,Adult Social Care and Health,ASCH,Premises Related,BAA,05/11/2021,10-10723,534.75,Harveys Home & Garden Maintenance
Nottinghamshire County Council,1111/1001,Adult Social Care and Health,ASCH,Premises Related,BAA,05/11/2021,10-10724,545.00,Harveys Home & Garden Maintenance
Nottinghamshire County Council,1111/1001,Adult Social Care and Health,ASCH,Premises Related,BAA,05/11/2021,10-10725,"1,055.75",Ball & Sons Ltd
Nottinghamshire County Council,1111/1001,Adult Social Care and Health,ASCH,Premises Related,BAA,05/11/2021,10-10726,964.75,Ball & Sons Ltd
Nottinghamshire County Council,1111/1001,Adult Social Care and Health,ASCH,Premises Related,BAA,05/11/2021,10-10727,711.62,Ball & Sons Ltd
Nottinghamshire County Council,1111/1001,Adult Social Care and Health,ASCH,Premises Related,BAA,05/11/2021,10-10728,817.75,RC Services
Nottinghamshire County Council,1111/1001,Adult Social Care and Health,ASCH,Premises Related,BAA,05/11/2021,10-10729,5.24,ARC Property Services Partnership L
Nottinghamshire County Council,1111/1001,Adult Social Care and Health,ASCH,Premises Related,BAA,05/11/2021,10-10732,"2,762.65",ARC Property Services Partnership L
Nottinghamshire County Council,1111/1001,Adult Social Care and Health,ASCH,Premises Related,BAA,15/11/2021,10-13184,546.62,TMM & Building Ltd
Nottinghamshire County Council,1111/1001,Adult Social Care and Health,ASCH,Premises Related,BAA,15/11/2021,10-13185,923.00,RC Services
Nottinghamshire County Council,1111/1001,Adult Social Care and Health,ASCH,Premises Related,BAA,17/11/2021,10-13420,150.70,ARC Property Services Partnership L
Nottinghamshire County Council,1111/1001,Adult Social Care and Health,ASCH,Premises Related,BAA,17/11/2021,10-13426,"2,581.88",ARC Property Services Partnership L
Nottinghamshire County Council,1111/1001,Adult Social Care and Health,ASCH,Premises Related,BAA,19/11/2021,10-13708,"6,527.29",ARC Property Services Partnership L
Nottinghamshire County Council,1111/1001,Adult Social Care and Health,ASCH,Premises Related,BAA,22/11/2021,10-16248,593.38,Steven Pay
Nottinghamshire County Council,1111/1001,Adult Social Care and Health,ASCH,Premises Related,BAA,25/11/2021,10-16706,609.25,Pgs Joinery Services Ltd
Nottinghamshire County Council,1111/1001,Adult Social Care and Health,ASCH,Premises Related,BAA,25/11/2021,10-16707,557.50,Pgs Joinery Services Ltd
Nottinghamshire County Council,1111/1001,Adult Social Care and Health,ASCH,Transport Related,CAA,04/11/2021,10-10666,"8,161.41",Via East Midlands Ltd
Nottinghamshire County Council,1111/1001,Adult Social Care and Health,ASCH,Transport Related,CAA,05/11/2021,10-10711,712.93,Via East Midlands Ltd
Nottinghamshire County Council,1111/1001,Adult Social Care and Health,ASCH,Transport Related,CAA,16/11/2021,10-13241,146.85,Via East Midlands Ltd
Nottinghamshire County Council,1111/1001,Adult Social Care and Health,ASCH,Transport Related,CAA,29/11/2021,10-17708,"4,808.00",Via East Midlands Ltd
Nottinghamshire County Council,1111/1001,Adult Social Care and Health,ASCH,Transport Related,CAA,30/11/2021,10-17747,"3,441.03",Via East Midlands Ltd
Nottinghamshire County Council,1111/1001,Adult Social Care and Health,ASCH,Transport Related,CCA,03/11/2021,10-10550,"1,687.91",Abacus Cars
Nottinghamshire County Council,1111/1001,Adult Social Care and Health,ASCH,Transport Related,CCA,09/11/2021,10-11580,"1,440.00",Southside Cars Ltd
Nottinghamshire County Council,1111/1001,Adult Social Care and Health,ASCH,Transport Related,CCA,17/11/2021,10-13593,"2,672.50",Nottingham Specialist Transport Ltd
Nottinghamshire County Council,1111/1001,Adult Social Care and Health,ASCH,Transport Related,CCA,26/11/2021,10-17092,"1,940.00",Alpha Cars
Nottinghamshire County Council,1111/1001,Adult Social Care and Health,ASCH,Transport Related,CCA,30/11/2021,10-17751,166.63,Via East Midlands Ltd
Nottinghamshire County Council,1111/1001,Adult Social Care and Health,ASCH,Transport Related,CDA,02/11/2021,10-10398,"2,025.00",Alpha Cars
Nottinghamshire County Council,1111/1001,Adult Social Care and Health,ASCH,Transport Related,CDA,02/11/2021,10-10399,912.60,Alpha Cars
Nottinghamshire County Council,1111/1001,Adult Social Care and Health,ASCH,Transport Related,CDA,02/11/2021,10-10400,858.50,Bridges Transport Ltd
Nottinghamshire County Council,1111/1001,Adult Social Care and Health,ASCH,Transport Related,CDA,03/11/2021,10-10540,"1,917.50",Fozcabs Newark Taxis
Nottinghamshire County Council,1111/1001,Adult Social Care and Health,ASCH,Transport Related,CDA,03/11/2021,10-10541,"2,263.80",Hawkins Taxis & Transport
Nottinghamshire County Council,1111/1001,Adult Social Care and Health,ASCH,Transport Related,CDA,03/11/2021,10-10550,"3,426.97",Abacus Cars
Nottinghamshire County Council,1111/1001,Adult Social Care and Health,ASCH,Transport Related,CDA,04/11/2021,10-10600,512.82,200 Cars Ltd
Nottinghamshire County Council,1111/1001,Adult Social Care and Health,ASCH,Transport Related,CDA,04/11/2021,10-10604,"2,058.00",Galaxy Cabs Ltd
Nottinghamshire County Council,1111/1001,Adult Social Care and Health,ASCH,Transport Related,CDA,04/11/2021,10-10612,840.00,Ng11 Cars
Nottinghamshire County Council,1111/1001,Adult Social Care and Health,ASCH,Transport Related,CDA,04/11/2021,10-10614,"1,449.00",D G Private Hire Ltd
Nottinghamshire County Council,1111/1001,Adult Social Care and Health,ASCH,Transport Related,CDA,04/11/2021,10-10617,"2,152.50",Abacus Cars
Nottinghamshire County Council,1111/1001,Adult Social Care and Health,ASCH,Transport Related,CDA,04/11/2021,10-10632,"1,056.00",P & P Taxis Ltd
Nottinghamshire County Council,1111/1001,Adult Social Care and Health,ASCH,Transport Related,CDA,04/11/2021,10-10641,"1,866.60",Rio Cabs
Nottinghamshire County Council,1111/1001,Adult Social Care and Health,ASCH,Transport Related,CDA,08/11/2021,10-11267,390.00,6 Five 2s
Nottinghamshire County Council,1111/1001,Adult Social Care and Health,ASCH,Transport Related,CDA,08/11/2021,10-11269,735.00,6 Five 2s
Nottinghamshire County Council,1111/1001,Adult Social Care and Health,ASCH,Transport Related,CDA,08/11/2021,10-11282,"1,040.00",Rushcliffe Travel Ltd
Nottinghamshire County Council,1111/1001,Adult Social Care and Health,ASCH,Transport Related,CDA,09/11/2021,10-11610,852.84,Southside Cars Ltd
Nottinghamshire County Council,1111/1001,Adult Social Care and Health,ASCH,Transport Related,CDA,09/11/2021,10-11613,680.00,Southside Cars Ltd
Nottinghamshire County Council,1111/1001,Adult Social Care and Health,ASCH,Transport Related,CDA,09/11/2021,10-11614,832.00,Southside Cars Ltd
Nottinghamshire County Council,1111/1001,Adult Social Care and Health,ASCH,Transport Related,CDA,09/11/2021,10-11625,"1,470.00",Acorn Contracts
Nottinghamshire County Council,1111/1001,Adult Social Care and Health,ASCH,Transport Related,CDA,09/11/2021,10-11651,930.00,Ideal Cars (Private Hire) Ltd
Nottinghamshire County Council,1111/1001,Adult Social Care and Health,ASCH,Transport Related,CDA,09/11/2021,10-11671,"1,759.20",SM Travel Yorkshire Ltd
Nottinghamshire County Council,1111/1001,Adult Social Care and Health,ASCH,Transport Related,CDA,11/11/2021,10-12806,"1,793.40",F4Control Ltd (t/a First4care)
Nottinghamshire County Council,1111/1001,Adult Social Care and Health,ASCH,Transport Related,CDA,11/11/2021,10-12823,"1,260.00",Ng11 Cars
Nottinghamshire County Council,1111/1001,Adult Social Care and Health,ASCH,Transport Related,CDA,11/11/2021,10-12834,"3,318.00",F4Control Ltd (t/a First4care)
Nottinghamshire County Council,1111/1001,Adult Social Care and Health,ASCH,Transport Related,CDA,11/11/2021,10-12881,"3,469.50",BN Gibson Ltd
Nottinghamshire County Council,1111/1001,Adult Social Care and Health,ASCH,Transport Related,CDA,11/11/2021,10-12883,"4,912.32",BN Gibson Ltd
Nottinghamshire County Council,1111/1001,Adult Social Care and Health,ASCH,Transport Related,CDA,11/11/2021,10-12911,720.00,Abacus Cars
Nottinghamshire County Council,1111/1001,Adult Social Care and Health,ASCH,Transport Related,CDA,11/11/2021,10-12912,420.00,Abacus Cars
Nottinghamshire County Council,1111/1001,Adult Social Care and Health,ASCH,Transport Related,CDA,11/11/2021,10-12923,"1,178.69",AAA Cabs
Nottinghamshire County Council,1111/1001,Adult Social Care and Health,ASCH,Transport Related,CDA,11/11/2021,10-12928,"2,441.22",[Redacted]
Nottinghamshire County Council,1111/1001,Adult Social Care and Health,ASCH,Transport Related,CDA,11/11/2021,10-12930,600.00,Nottingham Cars Ltd
Nottinghamshire County Council,1111/1001,Adult Social Care and Health,ASCH,Transport Related,CDA,11/11/2021,10-12932,"2,031.50",Rushcliffe Travel Ltd
Nottinghamshire County Council,1111/1001,Adult Social Care and Health,ASCH,Transport Related,CDA,11/11/2021,10-12948,"2,002.00",A1 Private Hire Ltd
Nottinghamshire County Council,1111/1001,Adult Social Care and Health,ASCH,Transport Related,CDA,11/11/2021,10-12960,978.56,Alpha Cars
Nottinghamshire County Council,1111/1001,Adult Social Care and Health,ASCH,Transport Related,CDA,11/11/2021,10-12963,553.80,BN Gibson Ltd
Nottinghamshire County Council,1111/1001,Adult Social Care and Health,ASCH,Transport Related,CDA,16/11/2021,10-13200,"1,681.50",D G Private Hire Ltd
Nottinghamshire County Council,1111/1001,Adult Social Care and Health,ASCH,Transport Related,CDA,16/11/2021,10-13228,563.00,Shiny Sky Ltd T/A Arrow Cars
Nottinghamshire County Council,1111/1001,Adult Social Care and Health,ASCH,Transport Related,CDA,17/11/2021,10-13566,557.50,Shiny Sky Ltd T/A Arrow Cars
Nottinghamshire County Council,1111/1001,Adult Social Care and Health,ASCH,Transport Related,CDA,17/11/2021,10-13567,"3,221.50",Rushcliffe Travel Ltd
Nottinghamshire County Council,1111/1001,Adult Social Care and Health,ASCH,Transport Related,CDA,18/11/2021,10-13696,"1,079.40",200 Cars Ltd
Nottinghamshire County Council,1111/1001,Adult Social Care and Health,ASCH,Transport Related,CDA,22/11/2021,10-16190,415.80,Alert Cars Ltd
Nottinghamshire County Council,1111/1001,Adult Social Care and Health,ASCH,Transport Related,CDA,22/11/2021,10-16204,"2,557.84",Southside Cars Ltd
Nottinghamshire County Council,1111/1001,Adult Social Care and Health,ASCH,Transport Related,CDA,23/11/2021,10-13235,"1,050.88",AJ's Travel
Nottinghamshire County Council,1111/1001,Adult Social Care and Health,ASCH,Transport Related,CDA,23/11/2021,10-16520,"1,162.40",Southside Cars Ltd
Nottinghamshire County Council,1111/1001,Adult Social Care and Health,ASCH,Transport Related,CDA,23/11/2021,10-16525,"1,268.50",Southside Cars Ltd
Nottinghamshire County Council,1111/1001,Adult Social Care and Health,ASCH,Transport Related,CDA,23/11/2021,10-16526,"1,144.60",200 Cars Ltd
Nottinghamshire County Council,1111/1001,Adult Social Care and Health,ASCH,Transport Related,CDA,24/11/2021,10-16694,"1,332.80",SM Travel Yorkshire Ltd
Nottinghamshire County Council,1111/1001,Adult Social Care and Health,ASCH,Transport Related,CDA,26/11/2021,10-17093,"2,826.38",Alpha Cars
Nottinghamshire County Council,1111/1001,Adult Social Care and Health,ASCH,Transport Related,CEA,02/11/2021,10-10387,364.64,Reed Employment Plc
Nottinghamshire County Council,1111/1001,Adult Social Care and Health,ASCH,Transport Related,CEA,22/11/2021,10-16231,257.42,Reed Employment Plc
Nottinghamshire County Council,1111/1001,Adult Social Care and Health,ASCH,Transport Related,CEA,22/11/2021,10-16236,388.98,Reed Employment Plc
Nottinghamshire County Council,1111/1001,Adult Social Care and Health,ASCH,Transport Related,CEA,22/11/2021,10-16241,423.98,Reed Employment Plc
Nottinghamshire County Council,1111/1001,Adult Social Care and Health,ASCH,Transport Related,CEA,29/11/2021,10-17390,182.99,Reed Employment Plc
Nottinghamshire County Council,1111/1001,Adult Social Care and Health,ASCH,Supplies & Services,DBA,02/11/2021,10-10384,"2,685.15",M Maloney Country Butchers & B Ltd
Nottinghamshire County Council,1111/1001,Adult Social Care and Health,ASCH,Supplies & Services,DBA,03/11/2021,10-10027,"2,153.17",Brake Bros Ltd
Nottinghamshire County Council,1111/1001,Adult Social Care and Health,ASCH,Supplies & Services,DBA,04/11/2021,10-10582,"3,324.65",John Palin (Wholesale) Ltd
Nottinghamshire County Council,1111/1001,Adult Social Care and Health,ASCH,Supplies & Services,DBA,10/11/2021,10-12720,"2,268.32",M Maloney Country Butchers & B Ltd
Nottinghamshire County Council,1111/1001,Adult Social Care and Health,ASCH,Supplies & Services,DBA,11/11/2021,10-12797,162.32,On A Roll Sandwich Company
Nottinghamshire County Council,1111/1001,Adult Social Care and Health,ASCH,Supplies & Services,DBA,12/11/2021,10-12976,"2,502.38",M Maloney Country Butchers & B Ltd
Nottinghamshire County Council,1111/1001,Adult Social Care and Health,ASCH,Supplies & Services,DBA,17/11/2021,10-13412,146.52,On A Roll Sandwich Company
Nottinghamshire County Council,1111/1001,Adult Social Care and Health,ASCH,Supplies & Services,DBA,18/11/2021,10-10719,"2,001.05",Brake Bros Ltd
Nottinghamshire County Council,1111/1001,Adult Social Care and Health,ASCH,Supplies & Services,DBA,19/11/2021,10-13715,"2,612.39",M Maloney Country Butchers & B Ltd
Nottinghamshire County Council,1111/1001,Adult Social Care and Health,ASCH,Supplies & Services,DBA,19/11/2021,10-13718,168.00,Millside Barrowcliffe Ltd
Nottinghamshire County Council,1111/1001,Adult Social Care and Health,ASCH,Supplies & Services,DBA,19/11/2021,10-13720,19.38,Millside Barrowcliffe Ltd
Nottinghamshire County Council,1111/1001,Adult Social Care and Health,ASCH,Supplies & Services,DBA,24/11/2021,10-10587,"1,562.36",Brake Bros Ltd
Nottinghamshire County Council,1111/1001,Adult Social Care and Health,ASCH,Supplies & Services,DBA,24/11/2021,10-16595,160.92,On A Roll Sandwich Company
Nottinghamshire County Council,1111/1001,Adult Social Care and Health,ASCH,Supplies & Services,DBA,24/11/2021,10-16597,"2,997.35",M Maloney Country Butchers & B Ltd
Nottinghamshire County Council,1111/1001,Adult Social Care and Health,ASCH,Supplies & Services,DEA,04/11/2021,10-10717,526.00,Her Majestys Court & Tribunal Servi
Nottinghamshire County Council,1111/1001,Adult Social Care and Health,ASCH,Supplies & Services,DEA,11/11/2021,10-12967,"1,892.54",Phs Group Plc
Nottinghamshire County Council,1111/1001,Adult Social Care and Health,ASCH,Supplies & Services,DHA,12/11/2021,10-12975,"9,627.88",Vaughandale Construction Ltd
Nottinghamshire County Council,1111/1001,Adult Social Care and Health,ASCH,Third Party Payments,EBA,01/11/2021,10-17813,"1,571.00",A W Lymn
Nottinghamshire County Council,1111/1001,Adult Social Care and Health,ASCH,Third Party Payments,EBA,26/11/2021,10-16964,"11,571.43",Sutton Court Care Home (Ashmere)
Nottinghamshire County Council,1111/1001,Adult Social Care and Health,ASCH,Third Party Payments,ECA,05/11/2021,10-10912,750.40,Giltbrook House Care Home
Nottinghamshire County Council,1111/1001,Adult Social Care and Health,ASCH,Third Party Payments,ECA,05/11/2021,10-10995,696.80,Lowmoor Nursing Home
Nottinghamshire County Council,1111/1001,Adult Social Care and Health,ASCH,Third Party Payments,ECA,05/11/2021,10-11001,750.40,Lawn Park (Four Seasons)
Nottinghamshire County Council,1111/1001,Adult Social Care and Health,ASCH,Third Party Payments,ECA,19/11/2021,10-14987,536.00,Lawn Park (Four Seasons)
Nottinghamshire County Council,1111/1001,Adult Social Care and Health,ASCH,Third Party Payments,ECA,26/11/2021,10-16840,750.40,Forest Manor Care Home (ASHA)
Nottinghamshire County Council,1111/1001,Adult Social Care and Health,ASCH,Third Party Payments,ECA,26/11/2021,10-16884,562.80,Lawn Park (Four Seasons)
Nottinghamshire County Council,1111/1001,Adult Social Care and Health,ASCH,Third Party Payments,ECA,26/11/2021,10-16903,750.40,Lawn Park (Four Seasons)
Nottinghamshire County Council,1111/1001,Adult Social Care and Health,ASCH,Third Party Payments,ECA,26/11/2021,10-16958,375.20,Sycamores CC (Four Seasons)
Nottinghamshire County Council,1111/1001,Adult Social Care and Health,ASCH,Third Party Payments,ECA,26/11/2021,10-17079,750.40,Nightingale Nursing & Care Home
Nottinghamshire County Council,1111/1001,Adult Social Care and Health,ASCH,Third Party Payments,ECA,29/11/2021,10-11299,"21,250.93",NHS Nottm & Nottinghamshire CCG
Nottinghamshire County Council,1111/1001,Adult Social Care and Health,ASCH,Third Party Payments,EGA,01/11/2021,10-10038,562.28,Fosse Healthcare Ltd
Nottinghamshire County Council,1111/1001,Adult Social Care and Health,ASCH,Third Party Payments,EGA,01/11/2021,10-10039,787.08,Fosse Healthcare Ltd
Nottinghamshire County Council,1111/1001,Adult Social Care and Health,ASCH,Third Party Payments,EGA,01/11/2021,10-10040,524.72,Fosse Healthcare Ltd
Nottinghamshire County Council,1111/1001,Adult Social Care and Health,ASCH,Third Party Payments,EGA,01/11/2021,10-10041,852.67,Fosse Healthcare Ltd
Nottinghamshire County Council,1111/1001,Adult Social Care and Health,ASCH,Third Party Payments,EGA,01/11/2021,10-10042,590.31,Fosse Healthcare Ltd
Nottinghamshire County Council,1111/1001,Adult Social Care and Health,ASCH,Third Party Payments,EGA,01/11/2021,10-10043,526.58,Fosse Healthcare Ltd
Nottinghamshire County Council,1111/1001,Adult Social Care and Health,ASCH,Third Party Payments,EGA,01/11/2021,10-10044,562.28,Fosse Healthcare Ltd
Nottinghamshire County Council,1111/1001,Adult Social Care and Health,ASCH,Third Party Payments,EGA,01/11/2021,10-10045,562.28,Fosse Healthcare Ltd
Nottinghamshire County Council,1111/1001,Adult Social Care and Health,ASCH,Third Party Payments,EGA,01/11/2021,10-10046,517.65,Fosse Healthcare Ltd
Nottinghamshire County Council,1111/1001,Adult Social Care and Health,ASCH,Third Party Payments,EGA,01/11/2021,10-10047,580.13,Fosse Healthcare Ltd
Nottinghamshire County Council,1111/1001,Adult Social Care and Health,ASCH,Third Party Payments,EGA,01/11/2021,10-10048,669.38,Fosse Healthcare Ltd
Nottinghamshire County Council,1111/1001,Adult Social Care and Health,ASCH,Third Party Payments,EGA,01/11/2021,10-10049,633.68,Fosse Healthcare Ltd
Nottinghamshire County Council,1111/1001,Adult Social Care and Health,ASCH,Third Party Payments,EGA,01/11/2021,10-10050,562.28,Fosse Healthcare Ltd
Nottinghamshire County Council,1111/1001,Adult Social Care and Health,ASCH,Third Party Payments,EGA,01/11/2021,10-10051,562.28,Fosse Healthcare Ltd
Nottinghamshire County Council,1111/1001,Adult Social Care and Health,ASCH,Third Party Payments,EGA,01/11/2021,10-10052,"1,760.14",Comfort Call Ltd
Nottinghamshire County Council,1111/1001,Adult Social Care and Health,ASCH,Third Party Payments,EGA,01/11/2021,10-10053,714.00,Fosse Healthcare Ltd
Nottinghamshire County Council,1111/1001,Adult Social Care and Health,ASCH,Third Party Payments,EGA,01/11/2021,10-10054,"1,425.48",Comfort Call Ltd
Nottinghamshire County Council,1111/1001,Adult Social Care and Health,ASCH,Third Party Payments,EGA,01/11/2021,10-10055,543.07,Comfort Call Ltd
Nottinghamshire County Council,1111/1001,Adult Social Care and Health,ASCH,Third Party Payments,EGA,01/11/2021,10-10056,"2,131.02",Comfort Call Ltd
Nottinghamshire County Council,1111/1001,Adult Social Care and Health,ASCH,Third Party Payments,EGA,01/11/2021,10-10057,"2,682.72",AMG Consultancy Services Ltd
Nottinghamshire County Council,1111/1001,Adult Social Care and Health,ASCH,Third Party Payments,EGA,01/11/2021,10-10058,544.32,AMG Consultancy Services Ltd
Nottinghamshire County Council,1111/1001,Adult Social Care and Health,ASCH,Third Party Payments,EGA,01/11/2021,10-10059,"2,060.64",AMG Consultancy Services Ltd
Nottinghamshire County Council,1111/1001,Adult Social Care and Health,ASCH,Third Party Payments,EGA,01/11/2021,10-10060,"3,265.92",AMG Consultancy Services Ltd
Nottinghamshire County Council,1111/1001,Adult Social Care and Health,ASCH,Third Party Payments,EGA,01/11/2021,10-10061,"3,693.60",AMG Consultancy Services Ltd
Nottinghamshire County Council,1111/1001,Adult Social Care and Health,ASCH,Third Party Payments,EGA,01/11/2021,10-10062,"2,993.76",AMG Consultancy Services Ltd
Nottinghamshire County Council,1111/1001,Adult Social Care and Health,ASCH,Third Party Payments,EGA,01/11/2021,10-10063,"3,421.44",AMG Consultancy Services Ltd
Nottinghamshire County Council,1111/1001,Adult Social Care and Health,ASCH,Third Party Payments,EGA,01/11/2021,10-10064,"2,566.08",AMG Consultancy Services Ltd
Nottinghamshire County Council,1111/1001,Adult Social Care and Health,ASCH,Third Party Payments,EGA,01/11/2021,10-10065,"3,265.92",AMG Consultancy Services Ltd
Nottinghamshire County Council,1111/1001,Adult Social Care and Health,ASCH,Third Party Payments,EGA,01/11/2021,10-10066,"1,166.40",AMG Consultancy Services Ltd
Nottinghamshire County Council,1111/1001,Adult Social Care and Health,ASCH,Third Party Payments,EGA,01/11/2021,10-10067,"2,177.28",AMG Consultancy Services Ltd
Nottinghamshire County Council,1111/1001,Adult Social Care and Health,ASCH,Third Party Payments,EGA,01/11/2021,10-10068,"4,354.56",AMG Consultancy Services Ltd
Nottinghamshire County Council,1111/1001,Adult Social Care and Health,ASCH,Third Party Payments,EGA,01/11/2021,10-10069,"2,099.52",AMG Consultancy Services Ltd
Nottinghamshire County Council,1111/1001,Adult Social Care and Health,ASCH,Third Party Payments,EGA,01/11/2021,10-10070,749.70,Fosse Healthcare Ltd
Nottinghamshire County Council,1111/1001,Adult Social Care and Health,ASCH,Third Party Payments,EGA,01/11/2021,10-10071,855.36,AMG Consultancy Services Ltd
Nottinghamshire County Council,1111/1001,Adult Social Care and Health,ASCH,Third Party Payments,EGA,01/11/2021,10-10072,"1,049.76",AMG Consultancy Services Ltd
Nottinghamshire County Council,1111/1001,Adult Social Care and Health,ASCH,Third Party Payments,EGA,01/11/2021,10-10073,642.60,Fosse Healthcare Ltd
Nottinghamshire County Council,1111/1001,Adult Social Care and Health,ASCH,Third Party Payments,EGA,01/11/2021,10-10074,"1,088.64",AMG Consultancy Services Ltd
Nottinghamshire County Council,1111/1001,Adult Social Care and Health,ASCH,Third Party Payments,EGA,01/11/2021,10-10075,"3,343.68",AMG Consultancy Services Ltd
Nottinghamshire County Council,1111/1001,Adult Social Care and Health,ASCH,Third Party Payments,EGA,01/11/2021,10-10076,544.32,AMG Consultancy Services Ltd
Nottinghamshire County Council,1111/1001,Adult Social Care and Health,ASCH,Third Party Payments,EGA,01/11/2021,10-10077,524.72,Fosse Healthcare Ltd
Nottinghamshire County Council,1111/1001,Adult Social Care and Health,ASCH,Third Party Payments,EGA,01/11/2021,10-10078,"1,632.96",AMG Consultancy Services Ltd
Nottinghamshire County Council,1111/1001,Adult Social Care and Health,ASCH,Third Party Payments,EGA,01/11/2021,10-10079,"2,410.56",AMG Consultancy Services Ltd
Nottinghamshire County Council,1111/1001,Adult Social Care and Health,ASCH,Third Party Payments,EGA,01/11/2021,10-10080,"2,332.80",AMG Consultancy Services Ltd
Nottinghamshire County Council,1111/1001,Adult Social Care and Health,ASCH,Third Party Payments,EGA,01/11/2021,10-10081,855.36,AMG Consultancy Services Ltd
Nottinghamshire County Council,1111/1001,Adult Social Care and Health,ASCH,Third Party Payments,EGA,01/11/2021,10-10082,"1,594.08",AMG Consultancy Services Ltd
Nottinghamshire County Council,1111/1001,Adult Social Care and Health,ASCH,Third Party Payments,EGA,01/11/2021,10-10083,"2,177.28",AMG Consultancy Services Ltd
Nottinghamshire County Council,1111/1001,Adult Social Care and Health,ASCH,Third Party Payments,EGA,01/11/2021,10-10084,"2,566.08",AMG Consultancy Services Ltd
Nottinghamshire County Council,1111/1001,Adult Social Care and Health,ASCH,Third Party Payments,EGA,01/11/2021,10-10085,590.31,Fosse Healthcare Ltd
Nottinghamshire County Council,1111/1001,Adult Social Care and Health,ASCH,Third Party Payments,EGA,01/11/2021,10-10086,505.44,AMG Consultancy Services Ltd
Nottinghamshire County Council,1111/1001,Adult Social Care and Health,ASCH,Third Party Payments,EGA,01/11/2021,10-10087,"1,632.96",AMG Consultancy Services Ltd
Nottinghamshire County Council,1111/1001,Adult Social Care and Health,ASCH,Third Party Payments,EGA,01/11/2021,10-10088,"3,576.96",AMG Consultancy Services Ltd
Nottinghamshire County Council,1111/1001,Adult Social Care and Health,ASCH,Third Party Payments,EGA,01/11/2021,10-10089,"2,060.64",AMG Consultancy Services Ltd
Nottinghamshire County Council,1111/1001,Adult Social Care and Health,ASCH,Third Party Payments,EGA,01/11/2021,10-10090,"4,354.56",AMG Consultancy Services Ltd
Nottinghamshire County Council,1111/1001,Adult Social Care and Health,ASCH,Third Party Payments,EGA,01/11/2021,10-10091,"2,255.04",AMG Consultancy Services Ltd
Nottinghamshire County Council,1111/1001,Adult Social Care and Health,ASCH,Third Party Payments,EGA,01/11/2021,10-10092,513.44,Kare Plus Home Care Ltd - Newark
Nottinghamshire County Council,1111/1001,Adult Social Care and Health,ASCH,Third Party Payments,EGA,01/11/2021,10-10093,"1,177.04",Kare Plus Home Care Ltd - Newark
Nottinghamshire County Council,1111/1001,Adult Social Care and Health,ASCH,Third Party Payments,EGA,01/11/2021,10-10094,"4,354.56",AMG Consultancy Services Ltd
Nottinghamshire County Council,1111/1001,Adult Social Care and Health,ASCH,Third Party Payments,EGA,01/11/2021,10-10095,"4,354.56",AMG Consultancy Services Ltd
Nottinghamshire County Council,1111/1001,Adult Social Care and Health,ASCH,Third Party Payments,EGA,01/11/2021,10-10096,"4,354.56",AMG Consultancy Services Ltd
Nottinghamshire County Council,1111/1001,Adult Social Care and Health,ASCH,Third Party Payments,EGA,01/11/2021,10-10097,562.28,Fosse Healthcare Ltd
Nottinghamshire County Council,1111/1001,Adult Social Care and Health,ASCH,Third Party Payments,EGA,01/11/2021,10-10098,"2,954.88",AMG Consultancy Services Ltd
Nottinghamshire County Council,1111/1001,Adult Social Care and Health,ASCH,Third Party Payments,EGA,01/11/2021,10-10099,722.93,Fosse Healthcare Ltd
Nottinghamshire County Council,1111/1001,Adult Social Care and Health,ASCH,Third Party Payments,EGA,01/11/2021,10-10100,"2,177.28",AMG Consultancy Services Ltd
Nottinghamshire County Council,1111/1001,Adult Social Care and Health,ASCH,Third Party Payments,EGA,01/11/2021,10-10101,"1,321.92",AMG Consultancy Services Ltd
Nottinghamshire County Council,1111/1001,Adult Social Care and Health,ASCH,Third Party Payments,EGA,01/11/2021,10-10102,"2,177.28",AMG Consultancy Services Ltd
Nottinghamshire County Council,1111/1001,Adult Social Care and Health,ASCH,Third Party Payments,EGA,01/11/2021,10-10103,562.28,Fosse Healthcare Ltd
Nottinghamshire County Council,1111/1001,Adult Social Care and Health,ASCH,Third Party Payments,EGA,01/11/2021,10-10104,797.04,AMG Consultancy Services Ltd
Nottinghamshire County Council,1111/1001,Adult Social Care and Health,ASCH,Third Party Payments,EGA,01/11/2021,10-10105,"1,205.28",AMG Consultancy Services Ltd
Nottinghamshire County Council,1111/1001,Adult Social Care and Health,ASCH,Third Party Payments,EGA,01/11/2021,10-10106,"1,613.52",AMG Consultancy Services Ltd
Nottinghamshire County Council,1111/1001,Adult Social Care and Health,ASCH,Third Party Payments,EGA,01/11/2021,10-10107,"2,255.04",AMG Consultancy Services Ltd
Nottinghamshire County Council,1111/1001,Adult Social Care and Health,ASCH,Third Party Payments,EGA,01/11/2021,10-10108,"4,354.56",AMG Consultancy Services Ltd
Nottinghamshire County Council,1111/1001,Adult Social Care and Health,ASCH,Third Party Payments,EGA,01/11/2021,10-10109,"1,535.76",AMG Consultancy Services Ltd
Nottinghamshire County Council,1111/1001,Adult Social Care and Health,ASCH,Third Party Payments,EGA,01/11/2021,10-10110,"1,866.24",AMG Consultancy Services Ltd
Nottinghamshire County Council,1111/1001,Adult Social Care and Health,ASCH,Third Party Payments,EGA,01/11/2021,10-10111,"4,354.56",AMG Consultancy Services Ltd
Nottinghamshire County Council,1111/1001,Adult Social Care and Health,ASCH,Third Party Payments,EGA,01/11/2021,10-10112,"1,749.60",AMG Consultancy Services Ltd
Nottinghamshire County Council,1111/1001,Adult Social Care and Health,ASCH,Third Party Payments,EGA,01/11/2021,10-10113,"4,354.56",AMG Consultancy Services Ltd
Nottinghamshire County Council,1111/1001,Adult Social Care and Health,ASCH,Third Party Payments,EGA,01/11/2021,10-10114,"4,354.56",AMG Consultancy Services Ltd
Nottinghamshire County Council,1111/1001,Adult Social Care and Health,ASCH,Third Party Payments,EGA,01/11/2021,10-10115,"3,110.40",AMG Consultancy Services Ltd
Nottinghamshire County Council,1111/1001,Adult Social Care and Health,ASCH,Third Party Payments,EGA,01/11/2021,10-10116,"1,030.32",AMG Consultancy Services Ltd
Nottinghamshire County Council,1111/1001,Adult Social Care and Health,ASCH,Third Party Payments,EGA,01/11/2021,10-10117,544.32,AMG Consultancy Services Ltd
Nottinghamshire County Council,1111/1001,Adult Social Care and Health,ASCH,Third Party Payments,EGA,01/11/2021,10-10118,972.00,AMG Consultancy Services Ltd
Nottinghamshire County Council,1111/1001,Adult Social Care and Health,ASCH,Third Party Payments,EGA,01/11/2021,10-10119,"1,399.68",AMG Consultancy Services Ltd
Nottinghamshire County Council,1111/1001,Adult Social Care and Health,ASCH,Third Party Payments,EGA,01/11/2021,10-10120,544.32,AMG Consultancy Services Ltd
Nottinghamshire County Council,1111/1001,Adult Social Care and Health,ASCH,Third Party Payments,EGA,01/11/2021,10-10121,"2,177.28",AMG Consultancy Services Ltd
Nottinghamshire County Council,1111/1001,Adult Social Care and Health,ASCH,Third Party Payments,EGA,01/11/2021,10-10122,"3,032.64",AMG Consultancy Services Ltd
Nottinghamshire County Council,1111/1001,Adult Social Care and Health,ASCH,Third Party Payments,EGA,01/11/2021,10-10123,"1,185.84",AMG Consultancy Services Ltd
Nottinghamshire County Council,1111/1001,Adult Social Care and Health,ASCH,Third Party Payments,EGA,01/11/2021,10-10124,"3,265.92",AMG Consultancy Services Ltd
Nottinghamshire County Council,1111/1001,Adult Social Care and Health,ASCH,Third Party Payments,EGA,01/11/2021,10-10125,615.83,Fosse Healthcare Ltd
Nottinghamshire County Council,1111/1001,Adult Social Care and Health,ASCH,Third Party Payments,EGA,01/11/2021,10-10126,933.12,AMG Consultancy Services Ltd
Nottinghamshire County Council,1111/1001,Adult Social Care and Health,ASCH,Third Party Payments,EGA,01/11/2021,10-10127,"3,071.52",AMG Consultancy Services Ltd
Nottinghamshire County Council,1111/1001,Adult Social Care and Health,ASCH,Third Party Payments,EGA,01/11/2021,10-10128,"1,632.96",AMG Consultancy Services Ltd
Nottinghamshire County Council,1111/1001,Adult Social Care and Health,ASCH,Third Party Payments,EGA,01/11/2021,10-10129,"1,127.52",AMG Consultancy Services Ltd
Nottinghamshire County Council,1111/1001,Adult Social Care and Health,ASCH,Third Party Payments,EGA,01/11/2021,10-10130,"2,080.08",AMG Consultancy Services Ltd
Nottinghamshire County Council,1111/1001,Adult Social Care and Health,ASCH,Third Party Payments,EGA,01/11/2021,10-10131,669.31,Leda Homecare Ltd
Nottinghamshire County Council,1111/1001,Adult Social Care and Health,ASCH,Third Party Payments,EGA,01/11/2021,10-10132,562.28,Fosse Healthcare Ltd
Nottinghamshire County Council,1111/1001,Adult Social Care and Health,ASCH,Third Party Payments,EGA,01/11/2021,10-10133,"3,849.12",AMG Consultancy Services Ltd
Nottinghamshire County Council,1111/1001,Adult Social Care and Health,ASCH,Third Party Payments,EGA,01/11/2021,10-10134,991.98,Leda Homecare Ltd
Nottinghamshire County Council,1111/1001,Adult Social Care and Health,ASCH,Third Party Payments,EGA,01/11/2021,10-10135,"1,477.44",AMG Consultancy Services Ltd
Nottinghamshire County Council,1111/1001,Adult Social Care and Health,ASCH,Third Party Payments,EGA,01/11/2021,10-10136,654.23,Leda Homecare Ltd
Nottinghamshire County Council,1111/1001,Adult Social Care and Health,ASCH,Third Party Payments,EGA,01/11/2021,10-10137,"1,963.51",Leda Homecare Ltd
Nottinghamshire County Council,1111/1001,Adult Social Care and Health,ASCH,Third Party Payments,EGA,01/11/2021,10-10138,"1,088.64",AMG Consultancy Services Ltd
Nottinghamshire County Council,1111/1001,Adult Social Care and Health,ASCH,Third Party Payments,EGA,01/11/2021,10-10139,609.05,Fosse Healthcare Ltd
Nottinghamshire County Council,1111/1001,Adult Social Care and Health,ASCH,Third Party Payments,EGA,01/11/2021,10-10140,"2,235.60",AMG Consultancy Services Ltd
Nottinghamshire County Council,1111/1001,Adult Social Care and Health,ASCH,Third Party Payments,EGA,01/11/2021,10-10141,524.72,Fosse Healthcare Ltd
Nottinghamshire County Council,1111/1001,Adult Social Care and Health,ASCH,Third Party Payments,EGA,01/11/2021,10-10142,544.32,AMG Consultancy Services Ltd
Nottinghamshire County Council,1111/1001,Adult Social Care and Health,ASCH,Third Party Payments,EGA,01/11/2021,10-10143,"1,185.84",AMG Consultancy Services Ltd
Nottinghamshire County Council,1111/1001,Adult Social Care and Health,ASCH,Third Party Payments,EGA,01/11/2021,10-10144,"2,099.52",AMG Consultancy Services Ltd
Nottinghamshire County Council,1111/1001,Adult Social Care and Health,ASCH,Third Party Payments,EGA,01/11/2021,10-10145,"1,944.00",AMG Consultancy Services Ltd
Nottinghamshire County Council,1111/1001,Adult Social Care and Health,ASCH,Third Party Payments,EGA,01/11/2021,10-10146,693.38,Fosse Healthcare Ltd
Nottinghamshire County Council,1111/1001,Adult Social Care and Health,ASCH,Third Party Payments,EGA,01/11/2021,10-10147,"2,177.28",AMG Consultancy Services Ltd
Nottinghamshire County Council,1111/1001,Adult Social Care and Health,ASCH,Third Party Payments,EGA,01/11/2021,10-10148,"3,810.24",AMG Consultancy Services Ltd
Nottinghamshire County Council,1111/1001,Adult Social Care and Health,ASCH,Third Party Payments,EGA,01/11/2021,10-10149,"1,069.20",AMG Consultancy Services Ltd
Nottinghamshire County Council,1111/1001,Adult Social Care and Health,ASCH,Third Party Payments,EGA,01/11/2021,10-10150,894.24,AMG Consultancy Services Ltd
Nottinghamshire County Council,1111/1001,Adult Social Care and Health,ASCH,Third Party Payments,EGA,01/11/2021,10-10151,"1,049.76",AMG Consultancy Services Ltd
Nottinghamshire County Council,1111/1001,Adult Social Care and Health,ASCH,Third Party Payments,EGA,01/11/2021,10-10152,"1,671.84",AMG Consultancy Services Ltd
Nottinghamshire County Council,1111/1001,Adult Social Care and Health,ASCH,Third Party Payments,EGA,01/11/2021,10-10153,602.64,AMG Consultancy Services Ltd
Nottinghamshire County Council,1111/1001,Adult Social Care and Health,ASCH,Third Party Payments,EGA,01/11/2021,10-10154,"4,082.40",AMG Consultancy Services Ltd
Nottinghamshire County Council,1111/1001,Adult Social Care and Health,ASCH,Third Party Payments,EGA,01/11/2021,10-10155,660.96,AMG Consultancy Services Ltd
Nottinghamshire County Council,1111/1001,Adult Social Care and Health,ASCH,Third Party Payments,EGA,01/11/2021,10-10156,"1,477.44",AMG Consultancy Services Ltd
Nottinghamshire County Council,1111/1001,Adult Social Care and Health,ASCH,Third Party Payments,EGA,01/11/2021,10-10157,"1,788.48",AMG Consultancy Services Ltd
Nottinghamshire County Council,1111/1001,Adult Social Care and Health,ASCH,Third Party Payments,EGA,01/11/2021,10-10158,"2,332.80",AMG Consultancy Services Ltd
Nottinghamshire County Council,1111/1001,Adult Social Care and Health,ASCH,Third Party Payments,EGA,01/11/2021,10-10159,894.24,AMG Consultancy Services Ltd
Nottinghamshire County Council,1111/1001,Adult Social Care and Health,ASCH,Third Party Payments,EGA,01/11/2021,10-10160,928.75,Lotus Home Care
Nottinghamshire County Council,1111/1001,Adult Social Care and Health,ASCH,Third Party Payments,EGA,01/11/2021,10-10161,528.44,Lotus Home Care
Nottinghamshire County Council,1111/1001,Adult Social Care and Health,ASCH,Third Party Payments,EGA,01/11/2021,10-10162,556.49,Lotus Home Care
Nottinghamshire County Council,1111/1001,Adult Social Care and Health,ASCH,Third Party Payments,EGA,01/11/2021,10-10163,928.20,Fosse Healthcare Ltd
Nottinghamshire County Council,1111/1001,Adult Social Care and Health,ASCH,Third Party Payments,EGA,01/11/2021,10-10164,802.60,Lotus Home Care
Nottinghamshire County Council,1111/1001,Adult Social Care and Health,ASCH,Third Party Payments,EGA,01/11/2021,10-10165,"1,410.41",Lotus Home Care
Nottinghamshire County Council,1111/1001,Adult Social Care and Health,ASCH,Third Party Payments,EGA,01/11/2021,10-10166,"1,951.32",Lotus Home Care
Nottinghamshire County Council,1111/1001,Adult Social Care and Health,ASCH,Third Party Payments,EGA,01/11/2021,10-10167,714.40,Lotus Home Care
Nottinghamshire County Council,1111/1001,Adult Social Care and Health,ASCH,Third Party Payments,EGA,01/11/2021,10-10168,"2,652.99",Lotus Home Care
Nottinghamshire County Council,1111/1001,Adult Social Care and Health,ASCH,Third Party Payments,EGA,01/11/2021,10-10169,"1,846.15",Lotus Home Care
Nottinghamshire County Council,1111/1001,Adult Social Care and Health,ASCH,Third Party Payments,EGA,01/11/2021,10-10170,532.12,Lotus Home Care
Nottinghamshire County Council,1111/1001,Adult Social Care and Health,ASCH,Third Party Payments,EGA,01/11/2021,10-10171,625.12,Lotus Home Care
Nottinghamshire County Council,1111/1001,Adult Social Care and Health,ASCH,Third Party Payments,EGA,01/11/2021,10-10172,825.26,Lotus Home Care
Nottinghamshire County Council,1111/1001,Adult Social Care and Health,ASCH,Third Party Payments,EGA,01/11/2021,10-10173,629.36,Lotus Home Care
Nottinghamshire County Council,1111/1001,Adult Social Care and Health,ASCH,Third Party Payments,EGA,01/11/2021,10-10174,"1,792.00",Lotus Home Care
Nottinghamshire County Council,1111/1001,Adult Social Care and Health,ASCH,Third Party Payments,EGA,01/11/2021,10-10175,"2,315.05",Lotus Home Care
Nottinghamshire County Council,1111/1001,Adult Social Care and Health,ASCH,Third Party Payments,EGA,01/11/2021,10-10176,562.28,Fosse Healthcare Ltd
Nottinghamshire County Council,1111/1001,Adult Social Care and Health,ASCH,Third Party Payments,EGA,01/11/2021,10-10177,758.93,Lotus Home Care
Nottinghamshire County Council,1111/1001,Adult Social Care and Health,ASCH,Third Party Payments,EGA,01/11/2021,10-10178,733.98,Lotus Home Care
Nottinghamshire County Council,1111/1001,Adult Social Care and Health,ASCH,Third Party Payments,EGA,01/11/2021,10-10179,"1,037.33",Lotus Home Care
Nottinghamshire County Council,1111/1001,Adult Social Care and Health,ASCH,Third Party Payments,EGA,01/11/2021,10-10180,615.83,Fosse Healthcare Ltd
Nottinghamshire County Council,1111/1001,Adult Social Care and Health,ASCH,Third Party Payments,EGA,01/11/2021,10-10181,789.86,Fosse Healthcare Ltd
Nottinghamshire County Council,1111/1001,Adult Social Care and Health,ASCH,Third Party Payments,EGA,01/11/2021,10-10182,542.61,Lotus Home Care
Nottinghamshire County Council,1111/1001,Adult Social Care and Health,ASCH,Third Party Payments,EGA,01/11/2021,10-10183,514.55,Lotus Home Care
Nottinghamshire County Council,1111/1001,Adult Social Care and Health,ASCH,Third Party Payments,EGA,01/11/2021,10-10184,529.01,Lotus Home Care
Nottinghamshire County Council,1111/1001,Adult Social Care and Health,ASCH,Third Party Payments,EGA,01/11/2021,10-10185,978.33,Respectful Care(Peach Peach & Peach
Nottinghamshire County Council,1111/1001,Adult Social Care and Health,ASCH,Third Party Payments,EGA,01/11/2021,10-10186,721.49,Fosse Healthcare Ltd
Nottinghamshire County Council,1111/1001,Adult Social Care and Health,ASCH,Third Party Payments,EGA,01/11/2021,10-10187,665.63,Westminster Homecare Ltd
Nottinghamshire County Council,1111/1001,Adult Social Care and Health,ASCH,Third Party Payments,EGA,01/11/2021,10-10188,"1,888.93",Westminster Homecare Ltd
Nottinghamshire County Council,1111/1001,Adult Social Care and Health,ASCH,Third Party Payments,EGA,01/11/2021,10-10189,"1,088.64",AMG Consultancy Services Ltd
Nottinghamshire County Council,1111/1001,Adult Social Care and Health,ASCH,Third Party Payments,EGA,01/11/2021,10-10190,"1,088.64",AMG Consultancy Services Ltd
Nottinghamshire County Council,1111/1001,Adult Social Care and Health,ASCH,Third Party Payments,EGA,01/11/2021,10-10191,796.45,Fosse Healthcare Ltd
Nottinghamshire County Council,1111/1001,Adult Social Care and Health,ASCH,Third Party Payments,EGA,01/11/2021,10-10192,641.52,AMG Consultancy Services Ltd
Nottinghamshire County Council,1111/1001,Adult Social Care and Health,ASCH,Third Party Payments,EGA,01/11/2021,10-10193,"2,099.52",AMG Consultancy Services Ltd
Nottinghamshire County Council,1111/1001,Adult Social Care and Health,ASCH,Third Party Payments,EGA,01/11/2021,10-10194,544.32,AMG Consultancy Services Ltd
Nottinghamshire County Council,1111/1001,Adult Social Care and Health,ASCH,Third Party Payments,EGA,01/11/2021,10-10195,557.82,Fosse Healthcare Ltd
Nottinghamshire County Council,1111/1001,Adult Social Care and Health,ASCH,Third Party Payments,EGA,01/11/2021,10-10196,"2,099.52",AMG Consultancy Services Ltd
Nottinghamshire County Council,1111/1001,Adult Social Care and Health,ASCH,Third Party Payments,EGA,01/11/2021,10-10197,"1,671.84",AMG Consultancy Services Ltd
Nottinghamshire County Council,1111/1001,Adult Social Care and Health,ASCH,Third Party Payments,EGA,01/11/2021,10-10198,580.13,Fosse Healthcare Ltd
Nottinghamshire County Council,1111/1001,Adult Social Care and Health,ASCH,Third Party Payments,EGA,01/11/2021,10-10199,"6,531.84",AMG Consultancy Services Ltd
Nottinghamshire County Council,1111/1001,Adult Social Care and Health,ASCH,Third Party Payments,EGA,01/11/2021,10-10200,752.26,Fosse Healthcare Ltd
Nottinghamshire County Council,1111/1001,Adult Social Care and Health,ASCH,Third Party Payments,EGA,01/11/2021,10-10201,"1,399.68",AMG Consultancy Services Ltd
Nottinghamshire County Council,1111/1001,Adult Social Care and Health,ASCH,Third Party Payments,EGA,01/11/2021,10-10202,816.48,AMG Consultancy Services Ltd
Nottinghamshire County Council,1111/1001,Adult Social Care and Health,ASCH,Third Party Payments,EGA,01/11/2021,10-10203,"1,088.64",AMG Consultancy Services Ltd
Nottinghamshire County Council,1111/1001,Adult Social Care and Health,ASCH,Third Party Payments,EGA,01/11/2021,10-10204,622.08,AMG Consultancy Services Ltd
Nottinghamshire County Council,1111/1001,Adult Social Care and Health,ASCH,Third Party Payments,EGA,01/11/2021,10-10205,"3,810.24",AMG Consultancy Services Ltd
Nottinghamshire County Council,1111/1001,Adult Social Care and Health,ASCH,Third Party Payments,EGA,01/11/2021,10-10206,"1,749.60",AMG Consultancy Services Ltd
Nottinghamshire County Council,1111/1001,Adult Social Care and Health,ASCH,Third Party Payments,EGA,01/11/2021,10-10207,"2,877.12",AMG Consultancy Services Ltd
Nottinghamshire County Council,1111/1001,Adult Social Care and Health,ASCH,Third Party Payments,EGA,01/11/2021,10-10208,"1,632.96",AMG Consultancy Services Ltd
Nottinghamshire County Council,1111/1001,Adult Social Care and Health,ASCH,Third Party Payments,EGA,01/11/2021,10-10209,544.32,AMG Consultancy Services Ltd
Nottinghamshire County Council,1111/1001,Adult Social Care and Health,ASCH,Third Party Payments,EGA,01/11/2021,10-10210,"4,354.56",AMG Consultancy Services Ltd
Nottinghamshire County Council,1111/1001,Adult Social Care and Health,ASCH,Third Party Payments,EGA,01/11/2021,10-10211,"3,421.44",AMG Consultancy Services Ltd
Nottinghamshire County Council,1111/1001,Adult Social Care and Health,ASCH,Third Party Payments,EGA,01/11/2021,10-10212,"2,410.56",AMG Consultancy Services Ltd
Nottinghamshire County Council,1111/1001,Adult Social Care and Health,ASCH,Third Party Payments,EGA,01/11/2021,10-10213,991.44,AMG Consultancy Services Ltd
Nottinghamshire County Council,1111/1001,Adult Social Care and Health,ASCH,Third Party Payments,EGA,01/11/2021,10-10214,"3,460.32",AMG Consultancy Services Ltd
Nottinghamshire County Council,1111/1001,Adult Social Care and Health,ASCH,Third Party Payments,EGA,01/11/2021,10-10215,"3,032.64",AMG Consultancy Services Ltd
Nottinghamshire County Council,1111/1001,Adult Social Care and Health,ASCH,Third Party Payments,EGA,01/11/2021,10-10216,544.32,AMG Consultancy Services Ltd
Nottinghamshire County Council,1111/1001,Adult Social Care and Health,ASCH,Third Party Payments,EGA,01/11/2021,10-10217,"3,576.96",AMG Consultancy Services Ltd
Nottinghamshire County Council,1111/1001,Adult Social Care and Health,ASCH,Third Party Payments,EGA,01/11/2021,10-10218,562.28,Fosse Healthcare Ltd
Nottinghamshire County Council,1111/1001,Adult Social Care and Health,ASCH,Third Party Payments,EGA,01/11/2021,10-10219,524.72,Fosse Healthcare Ltd
Nottinghamshire County Council,1111/1001,Adult Social Care and Health,ASCH,Third Party Payments,EGA,01/11/2021,10-10220,599.68,Fosse Healthcare Ltd
Nottinghamshire County Council,1111/1001,Adult Social Care and Health,ASCH,Third Party Payments,EGA,01/11/2021,10-10221,830.03,Fosse Healthcare Ltd
Nottinghamshire County Council,1111/1001,Adult Social Care and Health,ASCH,Third Party Payments,EGA,01/11/2021,10-10222,597.98,Fosse Healthcare Ltd
Nottinghamshire County Council,1111/1001,Adult Social Care and Health,ASCH,Third Party Payments,EGA,01/11/2021,10-10223,562.28,Fosse Healthcare Ltd
Nottinghamshire County Council,1111/1001,Adult Social Care and Health,ASCH,Third Party Payments,EGA,01/11/2021,10-10224,562.28,Fosse Healthcare Ltd
Nottinghamshire County Council,1111/1001,Adult Social Care and Health,ASCH,Third Party Payments,EGA,01/11/2021,10-10225,526.58,Fosse Healthcare Ltd
Nottinghamshire County Council,1111/1001,Adult Social Care and Health,ASCH,Third Party Payments,EGA,01/11/2021,10-10226,590.31,Fosse Healthcare Ltd
Nottinghamshire County Council,1111/1001,Adult Social Care and Health,ASCH,Third Party Payments,EGA,01/11/2021,10-10227,590.31,Fosse Healthcare Ltd
Nottinghamshire County Council,1111/1001,Adult Social Care and Health,ASCH,Third Party Payments,EGA,01/11/2021,10-10228,590.31,Fosse Healthcare Ltd
Nottinghamshire County Council,1111/1001,Adult Social Care and Health,ASCH,Third Party Payments,EGA,01/11/2021,10-10229,562.28,Fosse Healthcare Ltd
Nottinghamshire County Council,1111/1001,Adult Social Care and Health,ASCH,Third Party Payments,EGA,01/11/2021,10-10230,660.45,Fosse Healthcare Ltd
Nottinghamshire County Council,1111/1001,Adult Social Care and Health,ASCH,Third Party Payments,EGA,01/11/2021,10-10231,562.28,Fosse Healthcare Ltd
Nottinghamshire County Council,1111/1001,Adult Social Care and Health,ASCH,Third Party Payments,EGA,01/11/2021,10-10232,580.13,Fosse Healthcare Ltd
Nottinghamshire County Council,1111/1001,Adult Social Care and Health,ASCH,Third Party Payments,EGA,01/11/2021,10-10233,508.73,Fosse Healthcare Ltd
Nottinghamshire County Council,1111/1001,Adult Social Care and Health,ASCH,Third Party Payments,EGA,01/11/2021,10-10234,562.28,Fosse Healthcare Ltd
Nottinghamshire County Council,1111/1001,Adult Social Care and Health,ASCH,Third Party Payments,EGA,01/11/2021,10-10235,562.28,Fosse Healthcare Ltd
Nottinghamshire County Council,1111/1001,Adult Social Care and Health,ASCH,Third Party Payments,EGA,01/11/2021,10-10236,687.23,Fosse Healthcare Ltd
Nottinghamshire County Council,1111/1001,Adult Social Care and Health,ASCH,Third Party Payments,EGA,01/11/2021,10-10237,524.72,Fosse Healthcare Ltd
Nottinghamshire County Council,1111/1001,Adult Social Care and Health,ASCH,Third Party Payments,EGA,01/11/2021,10-10238,"1,049.44",Fosse Healthcare Ltd
Nottinghamshire County Council,1111/1001,Adult Social Care and Health,ASCH,Third Party Payments,EGA,01/11/2021,10-10239,562.28,Fosse Healthcare Ltd
Nottinghamshire County Council,1111/1001,Adult Social Care and Health,ASCH,Third Party Payments,EGA,01/11/2021,10-10240,705.08,Fosse Healthcare Ltd
Nottinghamshire County Council,1111/1001,Adult Social Care and Health,ASCH,Third Party Payments,EGA,01/11/2021,10-10241,589.05,Fosse Healthcare Ltd
Nottinghamshire County Council,1111/1001,Adult Social Care and Health,ASCH,Third Party Payments,EGA,01/11/2021,10-10242,722.26,Comfort Call Ltd
Nottinghamshire County Council,1111/1001,Adult Social Care and Health,ASCH,Third Party Payments,EGA,01/11/2021,10-10243,619.29,Bhandal Care Group (BSB Care) Ltd
Nottinghamshire County Council,1111/1001,Adult Social Care and Health,ASCH,Third Party Payments,EGA,01/11/2021,10-10244,584.89,Bhandal Care Group (BSB Care) Ltd
Nottinghamshire County Council,1111/1001,Adult Social Care and Health,ASCH,Third Party Payments,EGA,01/11/2021,10-10245,638.95,Bhandal Care Group (BSB Care) Ltd
Nottinghamshire County Council,1111/1001,Adult Social Care and Health,ASCH,Third Party Payments,EGA,01/11/2021,10-10246,521.64,SPM Quality Care Ltd T/A Caremark(
Nottinghamshire County Council,1111/1001,Adult Social Care and Health,ASCH,Third Party Payments,EGA,01/11/2021,10-10247,642.92,Mi Casa Care Ltd
Nottinghamshire County Council,1111/1001,Adult Social Care and Health,ASCH,Third Party Payments,EGA,01/11/2021,10-10248,590.94,Agincare UK Ltd
Nottinghamshire County Council,1111/1001,Adult Social Care and Health,ASCH,Third Party Payments,EGA,01/11/2021,10-10249,516.04,Bhandal Care Group (BSB Care) Ltd
Nottinghamshire County Council,1111/1001,Adult Social Care and Health,ASCH,Third Party Payments,EGA,01/11/2021,10-10250,590.63,Mercie Grace Care Ltd
Nottinghamshire County Council,1111/1001,Adult Social Care and Health,ASCH,Third Party Payments,EGA,01/11/2021,10-10251,655.52,Premier Nursing Agency Ltd
Nottinghamshire County Council,1111/1001,Adult Social Care and Health,ASCH,Third Party Payments,EGA,01/11/2021,10-10252,523.04,Leda Homecare Ltd
Nottinghamshire County Council,1111/1001,Adult Social Care and Health,ASCH,Third Party Payments,EGA,01/11/2021,10-10253,549.05,Fosse Healthcare Ltd
Nottinghamshire County Council,1111/1001,Adult Social Care and Health,ASCH,Third Party Payments,EGA,01/11/2021,10-10254,590.94,Comfort Call Ltd
Nottinghamshire County Council,1111/1001,Adult Social Care and Health,ASCH,Third Party Payments,EGA,01/11/2021,10-10255,525.28,Gemini Exclusive Care
Nottinghamshire County Council,1111/1001,Adult Social Care and Health,ASCH,Third Party Payments,EGA,01/11/2021,10-10256,698.63,SPM Quality Care Ltd T/A Caremark(
Nottinghamshire County Council,1111/1001,Adult Social Care and Health,ASCH,Third Party Payments,EGA,01/11/2021,10-10257,586.85,SPM Quality Care Ltd T/A Caremark(
Nottinghamshire County Council,1111/1001,Adult Social Care and Health,ASCH,Third Party Payments,EGA,01/11/2021,10-10258,819.00,Raynes Healthcare Ltd
Nottinghamshire County Council,1111/1001,Adult Social Care and Health,ASCH,Third Party Payments,EGA,01/11/2021,10-10259,525.28,Agincare UK Ltd
Nottinghamshire County Council,1111/1001,Adult Social Care and Health,ASCH,Third Party Payments,EGA,01/11/2021,10-10260,525.28,Westminster Homecare Ltd
Nottinghamshire County Council,1111/1001,Adult Social Care and Health,ASCH,Third Party Payments,EGA,01/11/2021,10-10261,504.56,Paradise Hope Ltd
Nottinghamshire County Council,1111/1001,Adult Social Care and Health,ASCH,Third Party Payments,EGA,01/11/2021,10-10262,542.10,Bhandal Care Group (BSB Care) Ltd
Nottinghamshire County Council,1111/1001,Adult Social Care and Health,ASCH,Third Party Payments,EGA,01/11/2021,10-10263,542.08,Art Support Ltd T/A Adicare
Nottinghamshire County Council,1111/1001,Adult Social Care and Health,ASCH,Third Party Payments,EGA,01/11/2021,10-10264,590.63,Mercie Grace Care Ltd
Nottinghamshire County Council,1111/1001,Adult Social Care and Health,ASCH,Third Party Payments,EGA,01/11/2021,10-10265,653.80,Leda Homecare Ltd
Nottinghamshire County Council,1111/1001,Adult Social Care and Health,ASCH,Third Party Payments,EGA,01/11/2021,10-10266,637.88,Premier Nursing Agency Ltd
Nottinghamshire County Council,1111/1001,Adult Social Care and Health,ASCH,Third Party Payments,EGA,01/11/2021,10-10267,764.44,Premier Nursing Agency Ltd
Nottinghamshire County Council,1111/1001,Adult Social Care and Health,ASCH,Third Party Payments,EGA,01/11/2021,10-10268,525.28,Gemini Exclusive Care
Nottinghamshire County Council,1111/1001,Adult Social Care and Health,ASCH,Third Party Payments,EGA,01/11/2021,10-10269,567.63,Paradise Hope Ltd
Nottinghamshire County Council,1111/1001,Adult Social Care and Health,ASCH,Third Party Payments,EGA,01/11/2021,10-10270,717.26,SPM Quality Care Ltd T/A Caremark(
Nottinghamshire County Council,1111/1001,Adult Social Care and Health,ASCH,Third Party Payments,EGA,01/11/2021,10-10271,660.24,Karmad Ltd T/A Respectful Care
Nottinghamshire County Council,1111/1001,Adult Social Care and Health,ASCH,Third Party Payments,EGA,01/11/2021,10-10272,521.25,Bhandal Care Group (BSB Care) Ltd
Nottinghamshire County Council,1111/1001,Adult Social Care and Health,ASCH,Third Party Payments,EGA,01/11/2021,10-10273,749.16,Premier Nursing Agency Ltd
Nottinghamshire County Council,1111/1001,Adult Social Care and Health,ASCH,Third Party Payments,EGA,01/11/2021,10-10274,670.68,SPM Quality Care Ltd T/A Caremark(
Nottinghamshire County Council,1111/1001,Adult Social Care and Health,ASCH,Third Party Payments,EGA,01/11/2021,10-10275,521.64,SPM Quality Care Ltd T/A Caremark(
Nottinghamshire County Council,1111/1001,Adult Social Care and Health,ASCH,Third Party Payments,EGA,01/11/2021,10-10276,540.27,SPM Quality Care Ltd T/A Caremark(
Nottinghamshire County Council,1111/1001,Adult Social Care and Health,ASCH,Third Party Payments,EGA,01/11/2021,10-10277,521.64,SPM Quality Care Ltd T/A Caremark(
Nottinghamshire County Council,1111/1001,Adult Social Care and Health,ASCH,Third Party Payments,EGA,01/11/2021,10-10278,689.31,SPM Quality Care Ltd T/A Caremark(
Nottinghamshire County Council,1111/1001,Adult Social Care and Health,ASCH,Third Party Payments,EGA,01/11/2021,10-10279,566.37,Diamond Care Solutions Ltd
Nottinghamshire County Council,1111/1001,Adult Social Care and Health,ASCH,Third Party Payments,EGA,01/11/2021,10-10280,533.97,Gemini Exclusive Care
Nottinghamshire County Council,1111/1001,Adult Social Care and Health,ASCH,Third Party Payments,EGA,01/11/2021,10-10281,534.66,Agincare UK Ltd
Nottinghamshire County Council,1111/1001,Adult Social Care and Health,ASCH,Third Party Payments,EGA,01/11/2021,10-10282,590.63,Mercie Grace Care Ltd
Nottinghamshire County Council,1111/1001,Adult Social Care and Health,ASCH,Third Party Payments,EGA,01/11/2021,10-10283,655.52,Premier Nursing Agency Ltd
Nottinghamshire County Council,1111/1001,Adult Social Care and Health,ASCH,Third Party Payments,EGA,01/11/2021,10-10284,520.25,Premier Nursing Agency Ltd
Nottinghamshire County Council,1111/1001,Adult Social Care and Health,ASCH,Third Party Payments,EGA,01/11/2021,10-10285,567.00,Premier Nursing Agency Ltd
Nottinghamshire County Council,1111/1001,Adult Social Care and Health,ASCH,Third Party Payments,EGA,01/11/2021,10-10286,607.10,Leda Homecare Ltd
Nottinghamshire County Council,1111/1001,Adult Social Care and Health,ASCH,Third Party Payments,EGA,01/11/2021,10-10287,534.66,Gemini Exclusive Care
Nottinghamshire County Council,1111/1001,Adult Social Care and Health,ASCH,Third Party Payments,EGA,01/11/2021,10-10288,504.56,Paradise Hope Ltd
Nottinghamshire County Council,1111/1001,Adult Social Care and Health,ASCH,Third Party Payments,EGA,01/11/2021,10-10289,657.72,Docmar Ltd T/A Respectful Care Mans
Nottinghamshire County Council,1111/1001,Adult Social Care and Health,ASCH,Third Party Payments,EGA,01/11/2021,10-10290,660.24,Karmad Ltd T/A Respectful Care
Nottinghamshire County Council,1111/1001,Adult Social Care and Health,ASCH,Third Party Payments,EGA,01/11/2021,10-10291,"2,155.89",Karmad Ltd T/A Respectful Care
Nottinghamshire County Council,1111/1001,Adult Social Care and Health,ASCH,Third Party Payments,EGA,01/11/2021,10-10292,571.48,Mi Casa Care Ltd
Nottinghamshire County Council,1111/1001,Adult Social Care and Health,ASCH,Third Party Payments,EGA,01/11/2021,10-10293,525.28,Agincare UK Ltd
Nottinghamshire County Council,1111/1001,Adult Social Care and Health,ASCH,Third Party Payments,EGA,01/11/2021,10-10294,590.94,Agincare UK Ltd
Nottinghamshire County Council,1111/1001,Adult Social Care and Health,ASCH,Third Party Payments,EGA,01/11/2021,10-10295,531.68,Bhandal Care Group (BSB Care) Ltd
Nottinghamshire County Council,1111/1001,Adult Social Care and Health,ASCH,Third Party Payments,EGA,01/11/2021,10-10296,708.75,Premier Nursing Agency Ltd
Nottinghamshire County Council,1111/1001,Adult Social Care and Health,ASCH,Third Party Payments,EGA,01/11/2021,10-10297,550.48,Bhandal Care Group (BSB Care) Ltd
Nottinghamshire County Council,1111/1001,Adult Social Care and Health,ASCH,Third Party Payments,EGA,01/11/2021,10-10298,590.94,Gemini Exclusive Care
Nottinghamshire County Council,1111/1001,Adult Social Care and Health,ASCH,Third Party Payments,EGA,01/11/2021,10-10299,521.64,SPM Quality Care Ltd T/A Caremark(
Nottinghamshire County Council,1111/1001,Adult Social Care and Health,ASCH,Third Party Payments,EGA,01/11/2021,10-10300,586.88,Karmad Ltd T/A Respectful Care
Nottinghamshire County Council,1111/1001,Adult Social Care and Health,ASCH,Third Party Payments,EGA,01/11/2021,10-10301,590.94,Agincare UK Ltd
Nottinghamshire County Council,1111/1001,Adult Social Care and Health,ASCH,Third Party Payments,EGA,01/11/2021,10-10302,"1,136.33",Bhandal Care Group (BSB Care) Ltd
Nottinghamshire County Council,1111/1001,Adult Social Care and Health,ASCH,Third Party Payments,EGA,01/11/2021,10-10303,637.88,Premier Nursing Agency Ltd
Nottinghamshire County Council,1111/1001,Adult Social Care and Health,ASCH,Third Party Payments,EGA,01/11/2021,10-10304,625.78,Leda Homecare Ltd
Nottinghamshire County Council,1111/1001,Adult Social Care and Health,ASCH,Third Party Payments,EGA,01/11/2021,10-10305,619.29,Bhandal Care Group (BSB Care) Ltd
Nottinghamshire County Council,1111/1001,Adult Social Care and Health,ASCH,Third Party Payments,EGA,01/11/2021,10-10306,670.68,SPM Quality Care Ltd T/A Caremark(
Nottinghamshire County Council,1111/1001,Adult Social Care and Health,ASCH,Third Party Payments,EGA,01/11/2021,10-10307,782.46,SPM Quality Care Ltd T/A Caremark(
Nottinghamshire County Council,1111/1001,Adult Social Care and Health,ASCH,Third Party Payments,EGA,01/11/2021,10-10308,554.24,SPM Quality Care Ltd T/A Caremark(
Nottinghamshire County Council,1111/1001,Adult Social Care and Health,ASCH,Third Party Payments,EGA,01/11/2021,10-10309,503.72,Forever Independent Ltd
Nottinghamshire County Council,1111/1001,Adult Social Care and Health,ASCH,Third Party Payments,EGA,01/11/2021,10-10310,690.77,React Homecare Ltd
Nottinghamshire County Council,1111/1001,Adult Social Care and Health,ASCH,Third Party Payments,EGA,01/11/2021,10-10311,649.53,React Homecare Ltd
Nottinghamshire County Council,1111/1001,Adult Social Care and Health,ASCH,Third Party Payments,EGA,01/11/2021,10-10312,970.15,Karmad Ltd T/A Respectful Care
Nottinghamshire County Council,1111/1001,Adult Social Care and Health,ASCH,Third Party Payments,EGA,01/11/2021,10-10313,510.83,Bhandal Care Group (BSB Care) Ltd
Nottinghamshire County Council,1111/1001,Adult Social Care and Health,ASCH,Third Party Payments,EGA,01/11/2021,10-10314,510.83,Bhandal Care Group (BSB Care) Ltd
Nottinghamshire County Council,1111/1001,Adult Social Care and Health,ASCH,Third Party Payments,EGA,01/11/2021,10-10315,501.33,Bhandal Care Group (BSB Care) Ltd
Nottinghamshire County Council,1111/1001,Adult Social Care and Health,ASCH,Third Party Payments,EGA,01/11/2021,10-10316,513.57,Paradise Hope Ltd
Nottinghamshire County Council,1111/1001,Adult Social Care and Health,ASCH,Third Party Payments,EGA,01/11/2021,10-10317,586.85,SPM Quality Care Ltd T/A Caremark(
Nottinghamshire County Council,1111/1001,Adult Social Care and Health,ASCH,Third Party Payments,EGA,01/11/2021,10-10318,657.72,Docmar Ltd T/A Respectful Care Mans
Nottinghamshire County Council,1111/1001,Adult Social Care and Health,ASCH,Third Party Payments,EGA,01/11/2021,10-10319,950.04,Docmar Ltd T/A Respectful Care Mans
Nottinghamshire County Council,1111/1001,Adult Social Care and Health,ASCH,Third Party Payments,EGA,01/11/2021,10-10320,584.64,Docmar Ltd T/A Respectful Care Mans
Nottinghamshire County Council,1111/1001,Adult Social Care and Health,ASCH,Third Party Payments,EGA,01/11/2021,10-10321,"1,131.84",Karmad Ltd T/A Respectful Care
Nottinghamshire County Council,1111/1001,Adult Social Care and Health,ASCH,Third Party Payments,EGA,01/11/2021,10-10322,656.60,Westminster Homecare Ltd
Nottinghamshire County Council,1111/1001,Adult Social Care and Health,ASCH,Third Party Payments,EGA,01/11/2021,10-10323,787.92,Gemini Exclusive Care
Nottinghamshire County Council,1111/1001,Adult Social Care and Health,ASCH,Third Party Payments,EGA,01/11/2021,10-10324,590.94,Gemini Exclusive Care
Nottinghamshire County Council,1111/1001,Adult Social Care and Health,ASCH,Third Party Payments,EGA,01/11/2021,10-10325,583.80,Bhandal Care Group (BSB Care) Ltd
Nottinghamshire County Council,1111/1001,Adult Social Care and Health,ASCH,Third Party Payments,EGA,01/11/2021,10-10326,853.13,Mercie Grace Care Ltd
Nottinghamshire County Council,1111/1001,Adult Social Care and Health,ASCH,Third Party Payments,EGA,01/11/2021,10-10327,590.63,Mercie Grace Care Ltd
Nottinghamshire County Council,1111/1001,Adult Social Care and Health,ASCH,Third Party Payments,EGA,01/11/2021,10-10328,523.04,Leda Homecare Ltd
Nottinghamshire County Council,1111/1001,Adult Social Care and Health,ASCH,Third Party Payments,EGA,01/11/2021,10-10329,687.59,Direct Health (uk) Ltd
Nottinghamshire County Council,1111/1001,Adult Social Care and Health,ASCH,Third Party Payments,EGA,01/11/2021,10-10330,523.88,Direct Health (uk) Ltd
Nottinghamshire County Council,1111/1001,Adult Social Care and Health,ASCH,Third Party Payments,EGA,01/11/2021,10-10331,642.92,Mi Casa Care Ltd
Nottinghamshire County Council,1111/1001,Adult Social Care and Health,ASCH,Third Party Payments,EGA,01/11/2021,10-10332,714.35,Mi Casa Care Ltd
Nottinghamshire County Council,1111/1001,Adult Social Care and Health,ASCH,Third Party Payments,EGA,01/11/2021,10-10333,590.31,Comfort Call Ltd
Nottinghamshire County Council,1111/1001,Adult Social Care and Health,ASCH,Third Party Payments,EGA,01/11/2021,10-10334,590.94,Comfort Call Ltd
Nottinghamshire County Council,1111/1001,Adult Social Care and Health,ASCH,Third Party Payments,EGA,01/11/2021,10-10335,523.88,Direct Health (uk) Ltd
Nottinghamshire County Council,1111/1001,Adult Social Care and Health,ASCH,Third Party Payments,EGA,01/11/2021,10-10336,785.82,Direct Health (uk) Ltd
Nottinghamshire County Council,1111/1001,Adult Social Care and Health,ASCH,Third Party Payments,EGA,01/11/2021,10-10337,523.88,Direct Health (uk) Ltd
Nottinghamshire County Council,1111/1001,Adult Social Care and Health,ASCH,Third Party Payments,EGA,01/11/2021,10-10338,571.48,Mi Casa Care Ltd
Nottinghamshire County Council,1111/1001,Adult Social Care and Health,ASCH,Third Party Payments,EGA,01/11/2021,10-10339,754.37,Comfort Call Ltd
Nottinghamshire County Council,1111/1001,Adult Social Care and Health,ASCH,Third Party Payments,EGA,01/11/2021,10-10340,654.85,Direct Health (uk) Ltd
Nottinghamshire County Council,1111/1001,Adult Social Care and Health,ASCH,Third Party Payments,EGA,01/11/2021,10-10341,654.85,Direct Health (uk) Ltd
Nottinghamshire County Council,1111/1001,Adult Social Care and Health,ASCH,Third Party Payments,EGA,01/11/2021,10-10342,541.43,Caremark (Broxtowe & Erewash)
Nottinghamshire County Council,1111/1001,Adult Social Care and Health,ASCH,Third Party Payments,EGA,01/11/2021,10-10343,525.28,Comfort Call Ltd
Nottinghamshire County Council,1111/1001,Adult Social Care and Health,ASCH,Third Party Payments,EGA,01/11/2021,10-10344,589.37,Direct Health (uk) Ltd
Nottinghamshire County Council,1111/1001,Adult Social Care and Health,ASCH,Third Party Payments,EGA,01/11/2021,10-10345,710.98,Direct Health (uk) Ltd
Nottinghamshire County Council,1111/1001,Adult Social Care and Health,ASCH,Third Party Payments,EGA,01/11/2021,10-10346,561.30,Direct Health (uk) Ltd
Nottinghamshire County Council,1111/1001,Adult Social Care and Health,ASCH,Third Party Payments,EGA,01/11/2021,10-10347,673.56,Direct Health (uk) Ltd
Nottinghamshire County Council,1111/1001,Adult Social Care and Health,ASCH,Third Party Payments,EGA,01/11/2021,10-10348,642.92,Mi Casa Care Ltd
Nottinghamshire County Council,1111/1001,Adult Social Care and Health,ASCH,Third Party Payments,EGA,01/11/2021,10-10349,774.81,Caremark (Broxtowe & Erewash)
Nottinghamshire County Council,1111/1001,Adult Social Care and Health,ASCH,Third Party Payments,EGA,01/11/2021,10-10350,522.76,Caremark (Broxtowe & Erewash)
Nottinghamshire County Council,1111/1001,Adult Social Care and Health,ASCH,Third Party Payments,EGA,01/11/2021,10-10351,525.28,Comfort Call Ltd
Nottinghamshire County Council,1111/1001,Adult Social Care and Health,ASCH,Third Party Payments,EGA,01/11/2021,10-10352,720.34,Direct Health (uk) Ltd
Nottinghamshire County Council,1111/1001,Adult Social Care and Health,ASCH,Third Party Payments,EGA,01/11/2021,10-10353,589.37,Direct Health (uk) Ltd
Nottinghamshire County Council,1111/1001,Adult Social Care and Health,ASCH,Third Party Payments,EGA,01/11/2021,10-10354,642.92,Mi Casa Care Ltd
Nottinghamshire County Council,1111/1001,Adult Social Care and Health,ASCH,Third Party Payments,EGA,01/11/2021,10-10355,655.90,Comfort Call Ltd
Nottinghamshire County Council,1111/1001,Adult Social Care and Health,ASCH,Third Party Payments,EGA,01/11/2021,10-10356,609.70,Comfort Call Ltd
Nottinghamshire County Council,1111/1001,Adult Social Care and Health,ASCH,Third Party Payments,EGA,01/11/2021,10-10357,656.60,Comfort Call Ltd
Nottinghamshire County Council,1111/1001,Adult Social Care and Health,ASCH,Third Party Payments,EGA,01/11/2021,10-10358,523.88,Direct Health (uk) Ltd
Nottinghamshire County Council,1111/1001,Adult Social Care and Health,ASCH,Third Party Payments,EGA,01/11/2021,10-10359,589.37,Direct Health (uk) Ltd
Nottinghamshire County Council,1111/1001,Adult Social Care and Health,ASCH,Third Party Payments,EGA,01/11/2021,10-10360,523.88,Direct Health (uk) Ltd
Nottinghamshire County Council,1111/1001,Adult Social Care and Health,ASCH,Third Party Payments,EGA,01/11/2021,10-10361,523.88,Direct Health (uk) Ltd
Nottinghamshire County Council,1111/1001,Adult Social Care and Health,ASCH,Third Party Payments,EGA,01/11/2021,10-10362,606.78,Caremark (Broxtowe & Erewash)
Nottinghamshire County Council,1111/1001,Adult Social Care and Health,ASCH,Third Party Payments,EGA,01/11/2021,10-10363,653.45,Caremark (Broxtowe & Erewash)
Nottinghamshire County Council,1111/1001,Adult Social Care and Health,ASCH,Third Party Payments,EGA,01/11/2021,10-10364,588.11,Caremark (Broxtowe & Erewash)
Nottinghamshire County Council,1111/1001,Adult Social Care and Health,ASCH,Third Party Payments,EGA,01/11/2021,10-10365,523.88,Direct Health (uk) Ltd
Nottinghamshire County Council,1111/1001,Adult Social Care and Health,ASCH,Third Party Payments,EGA,01/11/2021,10-10366,589.37,Direct Health (uk) Ltd
Nottinghamshire County Council,1111/1001,Adult Social Care and Health,ASCH,Third Party Payments,EGA,01/11/2021,10-10367,589.37,Direct Health (uk) Ltd
Nottinghamshire County Council,1111/1001,Adult Social Care and Health,ASCH,Third Party Payments,EGA,01/11/2021,10-10368,523.88,Direct Health (uk) Ltd
Nottinghamshire County Council,1111/1001,Adult Social Care and Health,ASCH,Third Party Payments,EGA,01/11/2021,10-10369,571.48,Mi Casa Care Ltd
Nottinghamshire County Council,1111/1001,Adult Social Care and Health,ASCH,Third Party Payments,EGA,01/11/2021,10-10370,534.09,Comfort Call Ltd
Nottinghamshire County Council,1111/1001,Adult Social Care and Health,ASCH,Third Party Payments,EGA,01/11/2021,10-10371,560.10,Caremark (Broxtowe & Erewash)
Nottinghamshire County Council,1111/1001,Adult Social Care and Health,ASCH,Third Party Payments,EGA,01/11/2021,10-10372,588.11,Caremark (Broxtowe & Erewash)
Nottinghamshire County Council,1111/1001,Adult Social Care and Health,ASCH,Third Party Payments,EGA,01/11/2021,10-10373,933.31,Comfort Call Ltd
Nottinghamshire County Council,1111/1001,Adult Social Care and Health,ASCH,Third Party Payments,EGA,01/11/2021,10-10374,525.28,Comfort Call Ltd
Nottinghamshire County Council,1111/1001,Adult Social Care and Health,ASCH,Third Party Payments,EGA,01/11/2021,10-10375,654.85,Direct Health (uk) Ltd
Nottinghamshire County Council,1111/1001,Adult Social Care and Health,ASCH,Third Party Payments,EGA,01/11/2021,10-10376,642.92,Mi Casa Care Ltd
Nottinghamshire County Council,1111/1001,Adult Social Care and Health,ASCH,Third Party Payments,EGA,01/11/2021,10-10377,831.71,Mi Casa Care Ltd
Nottinghamshire County Council,1111/1001,Adult Social Care and Health,ASCH,Third Party Payments,EGA,01/11/2021,10-10378,524.72,Comfort Call Ltd
Nottinghamshire County Council,1111/1001,Adult Social Care and Health,ASCH,Third Party Payments,EGA,01/11/2021,10-10379,544.04,Comfort Call Ltd
Nottinghamshire County Council,1111/1001,Adult Social Care and Health,ASCH,Third Party Payments,EGA,01/11/2021,10-10380,589.37,Direct Health (uk) Ltd
Nottinghamshire County Council,1111/1001,Adult Social Care and Health,ASCH,Third Party Payments,EGA,05/11/2021,10-10738,"2,244.00",Annesley Lodge
Nottinghamshire County Council,1111/1001,Adult Social Care and Health,ASCH,Third Party Payments,EGA,05/11/2021,10-10739,"11,971.68",Adams House
Nottinghamshire County Council,1111/1001,Adult Social Care and Health,ASCH,Third Party Payments,EGA,05/11/2021,10-10740,"2,704.00",Albemarle Court
Nottinghamshire County Council,1111/1001,Adult Social Care and Health,ASCH,Third Party Payments,EGA,05/11/2021,10-10741,"2,440.00",Albemarle Court
Nottinghamshire County Council,1111/1001,Adult Social Care and Health,ASCH,Third Party Payments,EGA,05/11/2021,10-10742,"7,242.86",Albemarle Court
Nottinghamshire County Council,1111/1001,Adult Social Care and Health,ASCH,Third Party Payments,EGA,05/11/2021,10-10743,"2,704.00",Albemarle Court
Nottinghamshire County Council,1111/1001,Adult Social Care and Health,ASCH,Third Party Payments,EGA,05/11/2021,10-10744,"2,440.00",Albemarle Court
Nottinghamshire County Council,1111/1001,Adult Social Care and Health,ASCH,Third Party Payments,EGA,05/11/2021,10-10745,"3,606.43",Annesley Lodge
Nottinghamshire County Council,1111/1001,Adult Social Care and Health,ASCH,Third Party Payments,EGA,05/11/2021,10-10746,"2,244.00",Annesley Lodge
Nottinghamshire County Council,1111/1001,Adult Social Care and Health,ASCH,Third Party Payments,EGA,05/11/2021,10-10747,"2,244.00",Annesley Lodge
Nottinghamshire County Council,1111/1001,Adult Social Care and Health,ASCH,Third Party Payments,EGA,05/11/2021,10-10748,"2,244.00",Annesley Lodge
Nottinghamshire County Council,1111/1001,Adult Social Care and Health,ASCH,Third Party Payments,EGA,05/11/2021,10-10749,"2,704.00",Albemarle Court
Nottinghamshire County Council,1111/1001,Adult Social Care and Health,ASCH,Third Party Payments,EGA,05/11/2021,10-10750,"2,244.00",Annesley Lodge
Nottinghamshire County Council,1111/1001,Adult Social Care and Health,ASCH,Third Party Payments,EGA,05/11/2021,10-10751,"2,244.00",Annesley Lodge
Nottinghamshire County Council,1111/1001,Adult Social Care and Health,ASCH,Third Party Payments,EGA,05/11/2021,10-10752,"10,153.84",Adams House
Nottinghamshire County Council,1111/1001,Adult Social Care and Health,ASCH,Third Party Payments,EGA,05/11/2021,10-10753,"2,704.00",Albemarle Court
Nottinghamshire County Council,1111/1001,Adult Social Care and Health,ASCH,Third Party Payments,EGA,05/11/2021,10-10754,"2,704.00",Albemarle Court
Nottinghamshire County Council,1111/1001,Adult Social Care and Health,ASCH,Third Party Payments,EGA,05/11/2021,10-10755,"2,244.00",Annesley Lodge
Nottinghamshire County Council,1111/1001,Adult Social Care and Health,ASCH,Third Party Payments,EGA,05/11/2021,10-10756,"1,602.86",Annesley Lodge
Nottinghamshire County Council,1111/1001,Adult Social Care and Health,ASCH,Third Party Payments,EGA,05/11/2021,10-10757,"7,960.32",Adams House
Nottinghamshire County Council,1111/1001,Adult Social Care and Health,ASCH,Third Party Payments,EGA,05/11/2021,10-10758,"4,191.12",Adams House
Nottinghamshire County Council,1111/1001,Adult Social Care and Health,ASCH,Third Party Payments,EGA,05/11/2021,10-10759,"7,329.20",Adams House
Nottinghamshire County Council,1111/1001,Adult Social Care and Health,ASCH,Third Party Payments,EGA,05/11/2021,10-10760,"1,122.00",Adbolton Hall Nursing Home (MPS)
Nottinghamshire County Council,1111/1001,Adult Social Care and Health,ASCH,Third Party Payments,EGA,05/11/2021,10-10761,881.57,Adbolton Hall Nursing Home (MPS)
Nottinghamshire County Council,1111/1001,Adult Social Care and Health,ASCH,Third Party Payments,EGA,05/11/2021,10-10762,"7,467.56",Adams House
Nottinghamshire County Council,1111/1001,Adult Social Care and Health,ASCH,Third Party Payments,EGA,05/11/2021,10-10763,"2,704.00",Albemarle Court
Nottinghamshire County Council,1111/1001,Adult Social Care and Health,ASCH,Third Party Payments,EGA,05/11/2021,10-10764,"4,216.00",Albemarle Court
Nottinghamshire County Council,1111/1001,Adult Social Care and Health,ASCH,Third Party Payments,EGA,05/11/2021,10-10765,"2,704.00",Albemarle Court
Nottinghamshire County Council,1111/1001,Adult Social Care and Health,ASCH,Third Party Payments,EGA,05/11/2021,10-10766,"5,960.00",Ashlands Residential Care Home
Nottinghamshire County Council,1111/1001,Adult Social Care and Health,ASCH,Third Party Payments,EGA,05/11/2021,10-10767,"5,558.00",[Redacted]
Nottinghamshire County Council,1111/1001,Adult Social Care and Health,ASCH,Third Party Payments,EGA,05/11/2021,10-10768,"2,244.00",Annesley Lodge
Nottinghamshire County Council,1111/1001,Adult Social Care and Health,ASCH,Third Party Payments,EGA,05/11/2021,10-10769,"2,244.00",Annesley Lodge
Nottinghamshire County Council,1111/1001,Adult Social Care and Health,ASCH,Third Party Payments,EGA,05/11/2021,10-10770,"2,704.00",Albemarle Court
Nottinghamshire County Council,1111/1001,Adult Social Care and Health,ASCH,Third Party Payments,EGA,05/11/2021,10-10771,"2,812.00",Albemarle Court
Nottinghamshire County Council,1111/1001,Adult Social Care and Health,ASCH,Third Party Payments,EGA,05/11/2021,10-10773,"1,324.00",Bramcote Hills Care Home
Nottinghamshire County Council,1111/1001,Adult Social Care and Health,ASCH,Third Party Payments,EGA,05/11/2021,10-10774,"4,532.96",Beechdale House Nursing Home
Nottinghamshire County Council,1111/1001,Adult Social Care and Health,ASCH,Third Party Payments,EGA,05/11/2021,10-10775,"2,836.00",Branthwaite Res Home (FBC)
Nottinghamshire County Council,1111/1001,Adult Social Care and Health,ASCH,Third Party Payments,EGA,05/11/2021,10-10776,"2,612.00",Branthwaite Res Home (FBC)
Nottinghamshire County Council,1111/1001,Adult Social Care and Health,ASCH,Third Party Payments,EGA,05/11/2021,10-10777,"2,836.00",Branthwaite Res Home (FBC)
Nottinghamshire County Council,1111/1001,Adult Social Care and Health,ASCH,Third Party Payments,EGA,05/11/2021,10-10778,"2,816.00",Branthwaite Res Home (FBC)
Nottinghamshire County Council,1111/1001,Adult Social Care and Health,ASCH,Third Party Payments,EGA,05/11/2021,10-10779,"2,736.00",Branthwaite Res Home (FBC)
Nottinghamshire County Council,1111/1001,Adult Social Care and Health,ASCH,Third Party Payments,EGA,05/11/2021,10-10780,"2,314.00",Beechdale Manor Care Home
Nottinghamshire County Council,1111/1001,Adult Social Care and Health,ASCH,Third Party Payments,EGA,05/11/2021,10-10781,"2,593.92",Bramble Lodge (Only Care Ltd)
Nottinghamshire County Council,1111/1001,Adult Social Care and Health,ASCH,Third Party Payments,EGA,05/11/2021,10-10782,"6,908.92",Norwood Schools Ltd
Nottinghamshire County Council,1111/1001,Adult Social Care and Health,ASCH,Third Party Payments,EGA,05/11/2021,10-10783,"3,150.29",Balmore Country House (My Care Ltd)
Nottinghamshire County Council,1111/1001,Adult Social Care and Health,ASCH,Third Party Payments,EGA,05/11/2021,10-10784,"1,010.00",Brailsford House Care Home
Nottinghamshire County Council,1111/1001,Adult Social Care and Health,ASCH,Third Party Payments,EGA,05/11/2021,10-10785,"1,010.00",Brailsford House Care Home
Nottinghamshire County Council,1111/1001,Adult Social Care and Health,ASCH,Third Party Payments,EGA,05/11/2021,10-10786,"3,857.14",Branthwaite Res Home (FBC)
Nottinghamshire County Council,1111/1001,Adult Social Care and Health,ASCH,Third Party Payments,EGA,05/11/2021,10-10787,"7,501.08",Norwood Schools Ltd
Nottinghamshire County Council,1111/1001,Adult Social Care and Health,ASCH,Third Party Payments,EGA,05/11/2021,10-10788,"2,636.00",Branthwaite Res Home (FBC)
Nottinghamshire County Council,1111/1001,Adult Social Care and Health,ASCH,Third Party Payments,EGA,05/11/2021,10-10789,"2,816.00",Branthwaite Res Home (FBC)
Nottinghamshire County Council,1111/1001,Adult Social Care and Health,ASCH,Third Party Payments,EGA,05/11/2021,10-10790,"2,314.00",Beechdale Manor Care Home
Nottinghamshire County Council,1111/1001,Adult Social Care and Health,ASCH,Third Party Payments,EGA,05/11/2021,10-10791,"9,179.32",Broadoak Park Residential Home
Nottinghamshire County Council,1111/1001,Adult Social Care and Health,ASCH,Third Party Payments,EGA,05/11/2021,10-10792,"4,529.08",Broadoak Park Residential Home
Nottinghamshire County Council,1111/1001,Adult Social Care and Health,ASCH,Third Party Payments,EGA,05/11/2021,10-10793,"2,724.86",Blyth Country House Care Home
Nottinghamshire County Council,1111/1001,Adult Social Care and Health,ASCH,Third Party Payments,EGA,05/11/2021,10-10794,"5,209.29",Beeches N H (HC One)
Nottinghamshire County Council,1111/1001,Adult Social Care and Health,ASCH,Third Party Payments,EGA,05/11/2021,10-10795,"4,247.57",The Beeches (Just Care Homes Ltd)
Nottinghamshire County Council,1111/1001,Adult Social Care and Health,ASCH,Third Party Payments,EGA,05/11/2021,10-10796,"2,980.00",Bramwell
Nottinghamshire County Council,1111/1001,Adult Social Care and Health,ASCH,Third Party Payments,EGA,05/11/2021,10-10797,"2,836.00",Branthwaite Res Home (FBC)
Nottinghamshire County Council,1111/1001,Adult Social Care and Health,ASCH,Third Party Payments,EGA,05/11/2021,10-10798,"2,836.00",Branthwaite Res Home (FBC)
Nottinghamshire County Council,1111/1001,Adult Social Care and Health,ASCH,Third Party Payments,EGA,05/11/2021,10-10799,"1,256.00",Bowbridge Court (Ideal)
